Ref No,Fund Type,Dept,Cost Centre Description    ,Description    ,Creditor Name    ,GL Code Net Amount,Payment date        
2,Revenue,CAHD,Central - Commissioned Services,Permanent Residential,1 St Georges House,13333.52, 27-Jul-2021
3,Revenue,CAHD,Early Years High Needs Support,Other Private Contractors,100 Acre Wood Day Nursery,637.05, 27-Jul-2021
4,Revenue,CAHD,Supporting People Programme,Grants to Voluntary Bodies,1625 Independent People,15167.00, 01-Jul-2021
5,Revenue,CAHD,Supporting People Programme,Grants to Voluntary Bodies,1625 Independent People,15167.00, 30-Jul-2021
6,Revenue,CAHD,South - Commissioned Services,Permanent Residential,2Nd Floor Building,5630.76, 27-Jul-2021
7,Revenue,CAHD,South - Commissioned Services,Permanent Residential,2Nd Floor Building,2806.12, 27-Jul-2021
8,Revenue,CAHD,Central - Commissioned Services,Other Small Contracts,3 Trees Community Support Ltd,7671.16, 09-Jul-2021
9,Revenue,CAHD,Central - Commissioned Services,Supported Living,3 Trees Community Support Ltd,2999.97, 09-Jul-2021
10,Revenue,CAHD,Central - Commissioned Services,Other Small Contracts,3 Trees Community Support Ltd,6570.36, 09-Jul-2021
11,Revenue,CAHD,Central - Commissioned Services,Supported Living,3 Trees Community Support Ltd,2990.53, 09-Jul-2021
12,Revenue,CAHD,Central - Commissioned Services,Other Small Contracts,3 Trees Community Support Ltd,7584.99, 20-Jul-2021
13,Revenue,CAHD,Central - Commissioned Services,Supported Living,3 Trees Community Support Ltd,3004.69, 20-Jul-2021
14,Revenue,CAHD,Central - Commissioned Services,Other Small Contracts,3 Trees Community Support Ltd,7538.82, 26-Jul-2021
15,Revenue,CAHD,Central - Commissioned Services,Supported Living,3 Trees Community Support Ltd,3009.41, 26-Jul-2021
16,Revenue,CAHD,Central - Commissioned Services,Permanent Residential,5Th Floor Harlech Court,15254.92, 27-Jul-2021
17,Revenue,CAHD,South - Commissioned Services,Permanent Residential,5Th Floor Harlech Court,17391.48, 27-Jul-2021
18,Revenue,CAHD,South - Commissioned Services,Permanent Residential,5Th Floor Harlech Court,18290.84, 27-Jul-2021
19,Revenue,CAHD,S28A cases,Permanent Residential,5Th Floor Harlech Court,11378.60, 27-Jul-2021
20,Revenue,CAHD,South - Commissioned Services,Permanent Residential,5Th Floor Harlech Court,11933.40, 27-Jul-2021
21,Revenue,CAHD,North - Community based support,Permanent Residential,5Th Floor Harlech Court,12498.56, 27-Jul-2021
22,Revenue,CAHD,North - Community based support,Permanent Residential,5Th Floor Harlech Court,10537.24, 27-Jul-2021
23,Revenue,CAHD,North - Community based support,Permanent Residential,5Th Floor Harlech Court,9071.12, 27-Jul-2021
24,Revenue,CAHD,18-25 Year Olds,Day Care / Social Activities,A+bility Ltd,556.00, 29-Jul-2021
25,Revenue,CAHD,18-25 Year Olds,Day Care / Social Activities,A+bility Ltd,1640.00, 29-Jul-2021
26,Revenue,CAHD,18-25 Year Olds,Day Care / Social Activities,A+bility Ltd,1084.00, 29-Jul-2021
27,Revenue,CAHD,Early Years Inclusion Fund,Other Public Bodies,Abacus Pre-School,650.00, 19-Jul-2021
28,Revenue,CAHD,Early Years Inclusion Fund,Other Public Bodies,Abacus Pre-School,700.00, 19-Jul-2021
29,Revenue,CAHD,Early Years High Needs Support,Other Private Contractors,Abacus Pre-School (Meadowbrook),910.07, 27-Jul-2021
30,Revenue,CAHD,CSC - Vinney Green Secure Unit,R & M by Departments,Abbey Fire Protection Limited,1537.41, 02-Jul-2021
31,Revenue,CAHD,South - Commissioned Services,Permanent Nursing,Acacia House,9918.90, 27-Jul-2021
32,Revenue,CAHD,South - Commissioned Services,Permanent Nursing,Acacia House,3085.88, 27-Jul-2021
33,Revenue,CAHD,South - Commissioned Services,Fees & Charges Income - General,Acacia House,3391.96, 27-Jul-2021
34,Revenue,CAHD,Community Support - Central,Preventative Assistance,ACE Services (Bristol) Ltd,1746.00, 19-Jul-2021
35,Revenue,CAHD,CSC - Care Leavers Support Costs,Personal Needs of Clients,ACE Services (Bristol) Ltd,560.00, 19-Jul-2021
36,Revenue,CAHD,Mental Health  Projects,Training Expenses,Ace Wellbeing Ltd,586.00, 01-Jul-2021
37,Revenue,CAHD,CSC - Residential Placements,Permanent Residential,Acorn Care & Education Ltd,17005.71, 09-Jul-2021
38,Revenue,CAHD,CSC - Residential Placements,Permanent Residential,Acorn Care & Education Ltd,16457.14, 23-Jul-2021
39,Revenue,CAHD,Jointly Funded H&SC Packages,Permanent Residential,Acorn Care Providers,2366.36, 27-Jul-2021
40,Revenue,CAHD,Section 117 Placements MH Younger,Permanent Residential,Acorn Care Providers,5605.08, 27-Jul-2021
41,Revenue,CAHD,North - S117,Permanent Residential,Acorn Care Providers,4067.36, 27-Jul-2021
42,Revenue,CAHD,Jointly Funded H&SC Packages,Permanent Residential,Acorn Care Providers,2193.40, 27-Jul-2021
43,Revenue,CAHD,MH Purchasing - Younger,Permanent Residential,Acorn Care Providers,6528.83, 27-Jul-2021
44,Revenue,CAHD,Jointly Funded H&SC Packages,Permanent Residential,Acorn Care Providers,3515.53, 27-Jul-2021
45,Revenue,CAHD,MH Purchasing - Younger,Permanent Residential,Acorn Care Providers,6411.00, 27-Jul-2021
46,Revenue,CAHD,Training - Adult Services,Training Expenses,Acorn Health & Safety Limited,477.00, 01-Jul-2021
47,Revenue,CAHD,Training - Adult Services,Training Expenses,Acorn Health & Safety Limited,477.00, 29-Jul-2021
48,Revenue,CAHD,Early Years Inclusion Fund,Other Public Bodies,Acorns Aviva,950.00, 23-Jul-2021
49,Revenue,CAHD,CSC - Legal Assessments,One-off Planned Direct Payment,ACPAS Limited,960.97, 16-Jul-2021
50,Revenue,CAHD,CSC - Legal Assessments,One-off Planned Direct Payment,ACPAS Limited,960.97, 16-Jul-2021
51,Revenue,CAHD,CSC - Agency Fostering,Foster Parent Allowances,Action for Children,3771.30, 16-Jul-2021
52,Revenue,CAHD,18-25 Year Olds,Permanent Residential,Action on Hearing Loss,5091.08, 27-Jul-2021
53,Revenue,CAHD,South - Commissioned Services,Permanent Nursing,Administration And Revenue Centre,2502.20, 27-Jul-2021
54,Revenue,CAHD,South - Commissioned Services,Permanent Nursing,Administration And Revenue Centre,2502.20, 27-Jul-2021
55,Revenue,CAHD,South Glos Users in South Glos Homes,Permanent Nursing,Administration And Revenue Centre,750.40, 27-Jul-2021
56,Revenue,CAHD,South - Commissioned Services,Permanent Residential,Administration And Revenue Centre,2569.56, 27-Jul-2021
57,Revenue,CAHD,South Glos Users in South Glos Homes,Permanent Nursing,Administration And Revenue Centre,750.40, 27-Jul-2021
58,Revenue,CAHD,South Glos Users in South Glos Homes,Permanent Nursing,Administration And Revenue Centre,616.40, 27-Jul-2021
59,Revenue,CAHD,South Glos Users in South Glos Homes,Permanent Nursing,Administration And Revenue Centre,750.40, 27-Jul-2021
60,Revenue,CAHD,South - Commissioned Services,Permanent Nursing,Administration And Revenue Centre,3017.44, 27-Jul-2021
61,Revenue,CAHD,South Glos Users in South Glos Homes,Permanent Nursing,Administration And Revenue Centre,750.40, 27-Jul-2021
62,Revenue,CAHD,South Glos Users in South Glos Homes,Permanent Nursing,Administration And Revenue Centre,750.40, 27-Jul-2021
63,Revenue,CAHD,South - Commissioned Services,Permanent Residential,Administration And Revenue Centre,3400.00, 27-Jul-2021
64,Revenue,CAHD,North - Community based support,Permanent Residential,Administration And Revenue Centre,3800.00, 27-Jul-2021
65,Revenue,CAHD,South Glos Users in South Glos Homes,Permanent Nursing,Administration And Revenue Centre,750.40, 27-Jul-2021
66,Revenue,CAHD,South - Commissioned Services,Permanent Residential,Administration And Revenue Centre,3366.00, 27-Jul-2021
67,Revenue,CAHD,South - Commissioned Services,Permanent Nursing,Administration And Revenue Centre,2991.84, 27-Jul-2021
68,Revenue,CAHD,South - Commissioned Services,Permanent Nursing,Administration And Revenue Centre,3468.00, 27-Jul-2021
69,Revenue,CAHD,South - Commissioned Services,Permanent Residential,Administration And Revenue Centre,3263.96, 27-Jul-2021
70,Revenue,CAHD,South - Commissioned Services,Permanent Residential,Administration And Revenue Centre,3263.96, 27-Jul-2021
71,Revenue,CAHD,South - Commissioned Services,Permanent Nursing,Administration And Revenue Centre,2569.56, 27-Jul-2021
72,Revenue,CAHD,South Glos Users in South Glos Homes,Permanent Nursing,Administration And Revenue Centre,750.40, 27-Jul-2021
73,Revenue,CAHD,South - Commissioned Services,Permanent Nursing,Administration And Revenue Centre,2502.20, 27-Jul-2021
74,Revenue,CAHD,South Glos Users in South Glos Homes,Permanent Nursing,Administration And Revenue Centre,750.40, 27-Jul-2021
75,Revenue,CAHD,South - Commissioned Services,Permanent Nursing,Administration And Revenue Centre,2502.20, 27-Jul-2021
76,Revenue,CAHD,South Glos Users in South Glos Homes,Permanent Nursing,Administration And Revenue Centre,750.40, 27-Jul-2021
77,Revenue,CAHD,South - Commissioned Services,Permanent Residential,Administration And Revenue Centre,3263.96, 27-Jul-2021
78,Revenue,CAHD,South - Commissioned Services,Permanent Nursing,Administration And Revenue Centre,2502.20, 27-Jul-2021
79,Revenue,CAHD,South Glos Users in South Glos Homes,Permanent Nursing,Administration And Revenue Centre,750.40, 27-Jul-2021
80,Revenue,CAHD,South Glos Users in South Glos Homes,Permanent Nursing,Administration And Revenue Centre,750.40, 27-Jul-2021
81,Revenue,CAHD,South - Commissioned Services,Permanent Residential,Administration And Revenue Centre,3017.44, 27-Jul-2021
82,Revenue,CAHD,South Glos Users in South Glos Homes,Permanent Nursing,Administration And Revenue Centre,750.40, 27-Jul-2021
83,Revenue,CAHD,Covid - ASC - Infection Control,Grants to Voluntary Bodies,Administration And Revenue Centre,11103.18, 30-Jul-2021
84,Revenue,CAHD,Covid - ASC - Infection Control,Grants to Voluntary Bodies,Administration And Revenue Centre,1700.40, 07-Jul-2021
85,Revenue,CAHD,ASC Rapid Testing Fund,Grants to Voluntary Bodies,Administration And Revenue Centre,11299.20, 30-Jul-2021
86,Revenue,CAHD,ASC Rapid Testing Fund,Grants to Voluntary Bodies,Administration And Revenue Centre,1842.15, 07-Jul-2021
87,Revenue,CAHD,South - Commissioned Services,Other Small Contracts,Advantedge Commercial Finance Limited,2400.84, 02-Jul-2021
88,Revenue,CAHD,Covid - ASC - Infection Control,Grants to Voluntary Bodies,Advantedge Commercial Finance Limited,979.02, 09-Jul-2021
89,Revenue,CAHD,South - Commissioned Services,Day Care / Social Activities,Age Concern,648.64, 27-Jul-2021
90,Revenue,CAHD,Central - Commissioned Services,Day Care / Social Activities,Age Concern,559.36, 27-Jul-2021
91,Revenue,CAHD,Central - Commissioned Services,Day Care / Social Activities,Age Concern,559.36, 27-Jul-2021
92,Revenue,CAHD,Mental Health and Emotional Wellbeing,Grants to Voluntary Bodies,Age UK South Gloucestershire,13725.00, 01-Jul-2021
93,Revenue,CAHD,Covid - ASC - Infection Control,Grants to Voluntary Bodies,Age UK South Gloucestershire,1702.73, 06-Jul-2021
94,Revenue,CAHD,Covid - ASC - Infection Control,Grants to Voluntary Bodies,Age UK South Gloucestershire,592.56, 07-Jul-2021
95,Revenue,CAHD,ASC Rapid Testing Fund,Grants to Voluntary Bodies,Age UK South Gloucestershire,4305.14, 06-Jul-2021
96,Revenue,CAHD,ASC Rapid Testing Fund,Grants to Voluntary Bodies,Age UK South Gloucestershire,641.96, 07-Jul-2021
97,Revenue,CAHD,Community Support - Central,Preventative Assistance,Agincare Live-in South West Ltd,2200.64, 09-Jul-2021
98,Revenue,CAHD,South - Commissioned Services,Other Small Contracts,Agincare UK Limited,652.08, 02-Jul-2021
99,Revenue,CAHD,Younger MH non-res purchasing,Other Small Contracts,Agincare UK Limited,138.32, 02-Jul-2021
100,Revenue,CAHD,South - Commissioned Services,Other Small Contracts,Agincare UK Limited,652.08, 09-Jul-2021
101,Revenue,CAHD,Younger MH non-res purchasing,Other Small Contracts,Agincare UK Limited,138.32, 09-Jul-2021
102,Revenue,CAHD,South - Commissioned Services,Other Small Contracts,Agincare UK Limited,627.38, 09-Jul-2021
103,Revenue,CAHD,Younger MH non-res purchasing,Other Small Contracts,Agincare UK Limited,158.08, 09-Jul-2021
104,Revenue,CAHD,South - Commissioned Services,Other Small Contracts,Agincare UK Limited,671.84, 19-Jul-2021
105,Revenue,CAHD,Younger MH non-res purchasing,Other Small Contracts,Agincare UK Limited,148.20, 19-Jul-2021
106,Revenue,CAHD,South - Commissioned Services,Other Small Contracts,Agincare UK Limited,523.64, 19-Jul-2021
107,Revenue,CAHD,Younger MH non-res purchasing,Other Small Contracts,Agincare UK Limited,158.08, 19-Jul-2021
108,Revenue,CAHD,South - Commissioned Services,Other Small Contracts,Agincare UK Limited,528.58, 27-Jul-2021
109,Revenue,CAHD,Younger MH non-res purchasing,Other Small Contracts,Agincare UK Limited,158.08, 27-Jul-2021
110,Revenue,CAHD,South - Commissioned Services,Other Small Contracts,Agincare UK Limited,528.58, 30-Jul-2021
111,Revenue,CAHD,Younger MH non-res purchasing,Other Small Contracts,Agincare UK Limited,118.56, 30-Jul-2021
112,Revenue,CAHD,Extra Care Housing,Private & Voluntary Home Care,Agincare UK Limited,24448.84, 01-Jul-2021
113,Revenue,CAHD,Extra Care Housing,Private & Voluntary Home Care,Agincare UK Limited,24448.84, 30-Jul-2021
114,Revenue,CAHD,Extra Care Housing,Private & Voluntary Home Care,Agincare UK Limited,11763.39, 01-Jul-2021
115,Revenue,CAHD,Extra Care Housing,Private & Voluntary Home Care,Agincare UK Limited,11763.39, 30-Jul-2021
116,Revenue,CAHD,Extra Care Housing,Private & Voluntary Home Care,Agincare UK Limited,29078.70, 02-Jul-2021
117,Revenue,CAHD,Covid - ASC - Infection Control,Grants to Voluntary Bodies,Agincare UK Limited,979.02, 07-Jul-2021
118,Revenue,CAHD,Covid - ASC - Infection Control,Grants to Voluntary Bodies,Agincare UK Limited,2292.96, 07-Jul-2021
119,Revenue,CAHD,Covid - ASC - Infection Control,Grants to Voluntary Bodies,Agincare UK Limited,2021.98, 30-Jul-2021
120,Revenue,CAHD,Covid - ASC - Infection Control,Grants to Voluntary Bodies,Agincare UK Limited,4735.69, 30-Jul-2021
121,Revenue,CAHD,Covid - ASC - Infection Control,Grants to Voluntary Bodies,Agincare UK Limited,1925.46, 30-Jul-2021
122,Revenue,CAHD,Covid - ASC - Infection Control,Grants to Voluntary Bodies,Agincare UK Limited,4509.63, 30-Jul-2021
123,Revenue,CAHD,ASC Rapid Testing Fund,Grants to Voluntary Bodies,Agincare UK Limited,1060.64, 07-Jul-2021
124,Revenue,CAHD,ASC Rapid Testing Fund,Grants to Voluntary Bodies,Agincare UK Limited,2484.11, 07-Jul-2021
125,Revenue,CAHD,Extra Care Housing,Private & Voluntary Home Care,Agincare UK Limited,2505.09, 02-Jul-2021
126,Revenue,CAHD,Extra Care Housing,Private & Voluntary Home Care,Agincare UK Limited,2532.74, 06-Jul-2021
127,Revenue,CAHD,Extra Care Housing,Private & Voluntary Home Care,Agincare UK Limited,2079.28, 06-Jul-2021
128,Revenue,CAHD,Prison Assessments & Costs,Other Supplies & Services,Agincare UK Limited,2871.00, 22-Jul-2021
129,Revenue,CAHD,Schools Specific Grant Income,Other Public Bodies,Air Balloon Hill Primary School,630.00, 30-Jul-2021
130,Revenue,CAHD,Schools Specific Grant Income,Other Public Bodies,Air Balloon Hill Primary School,630.00, 30-Jul-2021
131,Revenue,CAHD,Statemented Support Payments to OLAs,Other L.A.s - General,Air Balloon Hill Primary School,801.92, 27-Jul-2021
132,Revenue,CAHD,Covid 19 -Adult Social Care,Other Small Contracts,AliMo Care Ltd,9.78, 05-Jul-2021
133,Revenue,CAHD,South - Commissioned Services,Other Small Contracts,AliMo Care Ltd,860.64, 05-Jul-2021
134,Revenue,CAHD,North - Community based support,Other Small Contracts,AliMo Care Ltd,117.36, 05-Jul-2021
135,Revenue,CAHD,Covid 19 -Adult Social Care,Other Small Contracts,AliMo Care Ltd,9.78, 05-Jul-2021
136,Revenue,CAHD,South - Commissioned Services,Other Small Contracts,AliMo Care Ltd,782.40, 05-Jul-2021
137,Revenue,CAHD,North - Community based support,Other Small Contracts,AliMo Care Ltd,107.58, 05-Jul-2021
138,Revenue,CAHD,Covid 19 -Adult Social Care,Other Small Contracts,AliMo Care Ltd,9.78, 19-Jul-2021
139,Revenue,CAHD,South - Commissioned Services,Other Small Contracts,AliMo Care Ltd,948.66, 19-Jul-2021
140,Revenue,CAHD,North - Community based support,Other Small Contracts,AliMo Care Ltd,122.25, 19-Jul-2021
141,Revenue,CAHD,South - Commissioned Services,Other Small Contracts,AliMo Care Ltd,880.20, 19-Jul-2021
142,Revenue,CAHD,North - Community based support,Other Small Contracts,AliMo Care Ltd,136.92, 19-Jul-2021
143,Revenue,CAHD,Covid 19 -Adult Social Care,Other Small Contracts,AliMo Care Ltd,9.78, 30-Jul-2021
144,Revenue,CAHD,South - Commissioned Services,Other Small Contracts,AliMo Care Ltd,792.18, 30-Jul-2021
145,Revenue,CAHD,North - Community based support,Other Small Contracts,AliMo Care Ltd,127.14, 30-Jul-2021
146,Revenue,CAHD,Covid 19 -Adult Social Care,Other Small Contracts,AliMo Care Ltd,9.78, 30-Jul-2021
147,Revenue,CAHD,South - Commissioned Services,Other Small Contracts,AliMo Care Ltd,1110.03, 30-Jul-2021
148,Revenue,CAHD,North - Community based support,Other Small Contracts,AliMo Care Ltd,141.81, 30-Jul-2021
149,Revenue,CAHD,Covid - ASC - Infection Control,Grants to Voluntary Bodies,AliMo Care Ltd,1442.76, 07-Jul-2021
150,Revenue,CAHD,Covid - ASC - Infection Control,Grants to Voluntary Bodies,Alina Homecare Services Limited,798.67, 07-Jul-2021
151,Revenue,CAHD,Covid - ASC - Infection Control,Grants to Voluntary Bodies,Alina Homecare Services Limited,2075.19, 30-Jul-2021
152,Revenue,CAHD,Covid - ASC - Infection Control,Grants to Voluntary Bodies,Alina Homecare Services Limited,1976.13, 30-Jul-2021
153,Revenue,CAHD,Covid Winter Grant Funding,Other Supplies & Services,Allpay Limited - Trust Fund,26890.00, 15-Jul-2021
154,Revenue,CAHD,Central - Commissioned Services,Permanent Residential,Alvony House Residential Care Home,3000.00, 27-Jul-2021
155,Revenue,CAHD,Mental Health and Emotional Wellbeing,Grants to Voluntary Bodies,Alzheimers Society,11142.75, 01-Jul-2021
156,Revenue,CAHD,CSC - Residential Placements,Permanent Residential,Amberleigh Care Ltd,17439.71, 29-Jul-2021
157,Revenue,CAHD,CSC - Residential Placements,Permanent Residential,Amberleigh Care Ltd,17439.71, 29-Jul-2021
158,Revenue,CAHD,Schools Specific Grant Income,Other Public Bodies,Amberleigh Care Ltd,630.00, 22-Jul-2021
159,Revenue,CAHD,CSC - Residential Placements,Permanent Residential,Ambito Care and Education,19920.87, 05-Jul-2021
160,Revenue,CAHD,CSC - Residential Placements,Permanent Residential,Ambito Care and Education,19930.88, 05-Jul-2021
161,Revenue,CAHD,CSC - Residential Placements,Permanent Residential,Ambito Care and Education,19920.87, 30-Jul-2021
162,Revenue,CAHD,CSC - Residential Placements,Permanent Residential,Ambito Care and Education,19930.88, 30-Jul-2021
163,Revenue,CAHD,Early Years High Needs Support,Other Private Contractors,Ambourne House Day Nursery,637.05, 27-Jul-2021
164,Revenue,CAHD,CSC - Agency Fostering,Foster Parent Allowances,Amicus Foster Care Ltd,4879.00, 01-Jul-2021
165,Revenue,CAHD,CSC - Agency Fostering,Foster Parent Allowances,Amicus Foster Care Ltd,4721.61, 02-Jul-2021
166,Revenue,CAHD,CSC - Agency Fostering,Foster Parent Allowances,Amicus Foster Care Ltd,4641.72, 02-Jul-2021
167,Revenue,CAHD,Supporting People Programme,Grants to Voluntary Bodies,Anchor Hanover Group,1039.00, 01-Jul-2021
168,Revenue,CAHD,Supporting People Programme,Grants to Voluntary Bodies,Anchor Hanover Group,1039.00, 30-Jul-2021
169,Revenue,CAHD,Supporting People Programme,Grants to Voluntary Bodies,Anchor Hanover Group,847.00, 01-Jul-2021
170,Revenue,CAHD,Supporting People Programme,Grants to Voluntary Bodies,Anchor Hanover Group,847.00, 30-Jul-2021
171,Revenue,CAHD,Covid - ASC - Infection Control,Grants to Voluntary Bodies,Angel Care Support Limited,1406.60, 16-Jul-2021
172,Revenue,CAHD,Social Lettings Agency,Rent,Individual,822.73, 20-Jul-2021
173,Revenue,CAHD,Social Lettings Agency,Fees & Charges Income - General,Individual,-65.82, 20-Jul-2021
174,Revenue,CAHD,Statemented Support Equipment,Educational Supplies & Equipment,Apple Retail UK Ltd,832.50, 30-Jul-2021
175,Revenue,CAHD,Younger MH non-res purchasing,Supported Living,Arch Care Rehab Services Ltd,756.80, 29-Jul-2021
176,Revenue,CAHD,Younger MH non-res purchasing,Supported Living,Arch Care Rehab Services Ltd,681.12, 29-Jul-2021
177,Revenue,CAHD,Younger MH non-res purchasing,Supported Living,Arch Care Rehab Services Ltd,662.20, 29-Jul-2021
178,Revenue,CAHD,Younger MH non-res purchasing,Supported Living,Arch Care Rehab Services Ltd,718.96, 29-Jul-2021
179,Revenue,CAHD,Younger MH non-res purchasing,Supported Living,Archcare Rehab Limited,2002.44, 27-Jul-2021
180,Revenue,CAHD,Cambrian Green Day Service,Uniforms & Clothing,Arco Limited,758.10, 21-Jul-2021
181,Revenue,CAHD,North - Community based support,Permanent Residential,Argentum Lodge,7054.74, 27-Jul-2021
182,Revenue,CAHD,North - Community based support,Permanent Residential,Argentum Lodge,4935.68, 27-Jul-2021
183,Revenue,CAHD,North - Community based support,Permanent Nursing,Argentum Lodge,4000.00, 27-Jul-2021
184,Revenue,CAHD,South - Commissioned Services,Permanent Residential,Ash View House,5655.48, 27-Jul-2021
185,Revenue,CAHD,Jointly Funded H&SC Packages,Permanent Residential,Ash View House,1160.84, 27-Jul-2021
186,Revenue,CAHD,S117 Placements PCT,Permanent Residential,Ash View House,7884.72, 27-Jul-2021
187,Revenue,CAHD,North - Community based support,Permanent Residential,Ash View House,7099.52, 27-Jul-2021
188,Revenue,CAHD,North - Community based support,Permanent Residential,Ash View House,7120.00, 27-Jul-2021
189,Revenue,CAHD,Section 117 Placements MH Younger,Permanent Residential,Ash View House,5135.96, 27-Jul-2021
190,Revenue,CAHD,Jointly Funded H&SC Packages,Permanent Residential,Ash View House,2204.28, 27-Jul-2021
191,Revenue,CAHD,South - S117,Permanent Residential,Ash View House,6983.64, 27-Jul-2021
192,Revenue,CAHD,South - Commissioned Services,Permanent Residential,Ash View House,6903.04, 27-Jul-2021
193,Revenue,CAHD,Supporting People Programme,Grants to Voluntary Bodies,Aspects and Milestones Trust,3441.00, 01-Jul-2021
194,Revenue,CAHD,Supporting People Programme,Grants to Voluntary Bodies,Aspects and Milestones Trust,1725.00, 01-Jul-2021
195,Revenue,CAHD,Supporting People Programme,Grants to Voluntary Bodies,Aspects and Milestones Trust,3441.00, 30-Jul-2021
196,Revenue,CAHD,Supporting People Programme,Grants to Voluntary Bodies,Aspects and Milestones Trust,1725.00, 30-Jul-2021
197,Revenue,CAHD,18-25 Year Olds,Other Small Contracts,Aspirations,3797.54, 09-Jul-2021
198,Revenue,CAHD,18-25 Year Olds,Supported Living,Aspirations,361.86, 09-Jul-2021
199,Revenue,CAHD,Central - Commissioned Services,Other Small Contracts,Aspirations,168.00, 09-Jul-2021
200,Revenue,CAHD,South - Commissioned Services,Day Care / Social Activities,Aspirations,1491.45, 09-Jul-2021
201,Revenue,CAHD,South - Commissioned Services,Other Small Contracts,Aspirations,181.80, 09-Jul-2021
202,Revenue,CAHD,South - Commissioned Services,Supported Living,Aspirations,16757.33, 09-Jul-2021
203,Revenue,CAHD,North - Community based support,Supported Living,Aspirations,3427.20, 09-Jul-2021
204,Revenue,CAHD,18-25 Year Olds,Other Small Contracts,Aspirations,3579.38, 23-Jul-2021
205,Revenue,CAHD,18-25 Year Olds,Supported Living,Aspirations,361.86, 23-Jul-2021
206,Revenue,CAHD,Central - Commissioned Services,Other Small Contracts,Aspirations,144.00, 23-Jul-2021
207,Revenue,CAHD,South - Commissioned Services,Day Care / Social Activities,Aspirations,1486.56, 23-Jul-2021
208,Revenue,CAHD,South - Commissioned Services,Other Small Contracts,Aspirations,132.90, 23-Jul-2021
209,Revenue,CAHD,South - Commissioned Services,Supported Living,Aspirations,16639.55, 23-Jul-2021
210,Revenue,CAHD,North - Community based support,Supported Living,Aspirations,3438.72, 23-Jul-2021
211,Revenue,CAHD,18-25 Year Olds,Other Small Contracts,Aspirations,3501.94, 23-Jul-2021
212,Revenue,CAHD,18-25 Year Olds,Supported Living,Aspirations,273.84, 23-Jul-2021
213,Revenue,CAHD,Central - Commissioned Services,Other Small Contracts,Aspirations,144.00, 23-Jul-2021
214,Revenue,CAHD,South - Commissioned Services,Day Care / Social Activities,Aspirations,1515.90, 23-Jul-2021
215,Revenue,CAHD,South - Commissioned Services,Other Small Contracts,Aspirations,181.80, 23-Jul-2021
216,Revenue,CAHD,South - Commissioned Services,Supported Living,Aspirations,17498.19, 23-Jul-2021
217,Revenue,CAHD,North - Community based support,Supported Living,Aspirations,3450.24, 23-Jul-2021
218,Revenue,CAHD,18-25 Year Olds,Other Small Contracts,Aspirations,2870.60, 23-Jul-2021
219,Revenue,CAHD,18-25 Year Olds,Supported Living,Aspirations,273.84, 23-Jul-2021
220,Revenue,CAHD,Central - Commissioned Services,Other Small Contracts,Aspirations,48.00, 23-Jul-2021
221,Revenue,CAHD,South - Commissioned Services,Day Care / Social Activities,Aspirations,1486.56, 23-Jul-2021
222,Revenue,CAHD,South - Commissioned Services,Other Small Contracts,Aspirations,132.90, 23-Jul-2021
223,Revenue,CAHD,South - Commissioned Services,Supported Living,Aspirations,17703.77, 23-Jul-2021
224,Revenue,CAHD,North - Community based support,Supported Living,Aspirations,3426.36, 23-Jul-2021
225,Revenue,CAHD,18-25 Year Olds,Other Small Contracts,Aspirations,3399.25, 28-Jul-2021
226,Revenue,CAHD,18-25 Year Olds,Supported Living,Aspirations,361.86, 28-Jul-2021
227,Revenue,CAHD,Central - Commissioned Services,Other Small Contracts,Aspirations,144.00, 28-Jul-2021
228,Revenue,CAHD,South - Commissioned Services,Day Care / Social Activities,Aspirations,1511.01, 28-Jul-2021
229,Revenue,CAHD,South - Commissioned Services,Other Small Contracts,Aspirations,84.00, 28-Jul-2021
230,Revenue,CAHD,South - Commissioned Services,Supported Living,Aspirations,15406.46, 28-Jul-2021
231,Revenue,CAHD,North - Community based support,Supported Living,Aspirations,3409.08, 28-Jul-2021
232,Revenue,CAHD,Covid - ASC - Infection Control,Grants to Voluntary Bodies,Aspirations,2061.09, 07-Jul-2021
233,Revenue,CAHD,Covid - ASC - Infection Control,Grants to Voluntary Bodies,Aspirations,4256.80, 30-Jul-2021
234,Revenue,CAHD,Covid - ASC - Infection Control,Grants to Voluntary Bodies,Aspirations,4053.60, 30-Jul-2021
235,Revenue,CAHD,ASC Rapid Testing Fund,Grants to Voluntary Bodies,Aspirations,976.90, 07-Jul-2021
236,Revenue,CAHD,CSC - Care Leavers Independent Living,Adults - Family Support,Aspirations Support Bristol Limited,15419.68, 29-Jul-2021
237,Revenue,CAHD,South - Commissioned Services,Adults - Family Support,Ategi Limited,17042.85, 21-Jul-2021
238,Revenue,CAHD,Schools Specific Grant Income,Other Public Bodies,Athelstan Trust,630.00, 16-Jul-2021
239,Revenue,CAHD,Statemented Support Academies,Other Public Bodies,Athelstan Trust,825.30, 30-Jul-2021
240,Revenue,CAHD,Statemented Support Academies,Other Public Bodies,Athelstan Trust,1101.42, 30-Jul-2021
241,Revenue,CAHD,Statemented Support Academies,Other Public Bodies,Athelstan Trust,1367.64, 30-Jul-2021
242,Revenue,CAHD,Statemented Support Academies,Other Public Bodies,Athelstan Trust,1436.25, 28-Jul-2021
243,Revenue,CAHD,Statemented Support Academies,Other Public Bodies,Athelstan Trust,588.75, 30-Jul-2021
244,Revenue,CAHD,Statemented Support Academies,Other Public Bodies,Athelstan Trust,1155.42, 30-Jul-2021
245,Revenue,CAHD,Statemented Support Academies,Other Public Bodies,Athelstan Trust,1556.28, 30-Jul-2021
246,Revenue,CAHD,Statemented Support Academies,Other Public Bodies,Athelstan Trust,926.58, 28-Jul-2021
247,Revenue,CAHD,Statemented Support Academies,Other Public Bodies,Athelstan Trust,624.87, 30-Jul-2021
248,Revenue,CAHD,Academy Resource Base Funding,Other Public Bodies,Athelstan Trust,2547.96, 30-Jul-2021
249,Revenue,CAHD,Academy Resource Base Funding,Other Public Bodies,Athelstan Trust,2513.88, 30-Jul-2021
250,Revenue,CAHD,Academy Resource Base Funding,Other Public Bodies,Athelstan Trust,2513.88, 30-Jul-2021
251,Revenue,CAHD,Academy Resource Base Funding,Other Public Bodies,Athelstan Trust,2513.88, 30-Jul-2021
252,Revenue,CAHD,Academy Resource Base Funding,Other Public Bodies,Athelstan Trust,2513.88, 30-Jul-2021
253,Revenue,CAHD,Academy Resource Base Funding,Other Public Bodies,Athelstan Trust,2513.88, 30-Jul-2021
254,Revenue,CAHD,Academy Resource Base Funding,Other Public Bodies,Athelstan Trust,2513.88, 30-Jul-2021
255,Revenue,CAHD,Academy Resource Base Funding,Other Public Bodies,Athelstan Trust,2513.88, 30-Jul-2021
256,Revenue,CAHD,Academy Resource Base Funding,Other Public Bodies,Athelstan Trust,2513.88, 30-Jul-2021
257,Revenue,CAHD,Academy Resource Base Funding,Other Public Bodies,Athelstan Trust,2513.88, 30-Jul-2021
258,Revenue,CAHD,Academy Resource Base Funding,Other Public Bodies,Athelstan Trust,2513.88, 30-Jul-2021
259,Revenue,CAHD,Academy Resource Base Funding,Other Public Bodies,Athelstan Trust,2513.88, 30-Jul-2021
260,Revenue,CAHD,Academy Resource Base Funding,Other Public Bodies,Athelstan Trust,2513.88, 30-Jul-2021
261,Revenue,CAHD,Academy Resource Base Funding,Other Public Bodies,Athelstan Trust,2513.88, 30-Jul-2021
262,Revenue,CAHD,South - Commissioned Services,Permanent Residential,Autism Specialised Care Homes,6506.88, 27-Jul-2021
263,Revenue,CAHD,Younger Adult Mental Health,Health Services (Third Party Payments),Avon & Wiltshire Mental Health,1693.33, 08-Jul-2021
264,Revenue,CAHD,Younger Adult Mental Health,Health Services (Third Party Payments),Avon & Wiltshire Mental Health,14583.00, 09-Jul-2021
265,Revenue,CAHD,Younger Adult Mental Health,Agency Staff (Admin/Support Staff) Pay,Avon & Wiltshire Mental Health,5920.00, 19-Jul-2021
266,Revenue,CAHD,Younger Adult Mental Health,Health Services (Third Party Payments),Avon & Wiltshire Mental Health,1693.33, 28-Jul-2021
267,Revenue,CAHD,South - Commissioned Services,Permanent Nursing,Avon Lodge Care Centre,4441.20, 27-Jul-2021
268,Revenue,CAHD,South Glos Users in South Glos Homes,Permanent Nursing,Avon Lodge Care Centre,750.40, 27-Jul-2021
269,Revenue,CAHD,South Glos Users in South Glos Homes,Permanent Nursing,Avon Lodge Care Centre,750.40, 27-Jul-2021
270,Revenue,CAHD,South Glos Users in South Glos Homes,Permanent Nursing,Avon Lodge Care Centre,750.40, 27-Jul-2021
271,Revenue,CAHD,South Glos Users in South Glos Homes,Permanent Nursing,Avon Lodge Care Centre,750.40, 27-Jul-2021
272,Revenue,CAHD,South Glos Users in South Glos Homes,Permanent Nursing,Avon Lodge Care Centre,750.40, 27-Jul-2021
273,Revenue,CAHD,South Glos Users in South Glos Homes,Permanent Nursing,Avon Lodge Care Centre,2733.60, 27-Jul-2021
274,Revenue,CAHD,South - Commissioned Services,Permanent Nursing,Avon Lodge Care Centre,3339.08, 27-Jul-2021
275,Revenue,CAHD,South Glos Users in South Glos Homes,Permanent Nursing,Avon Lodge Care Centre,1681.55, 27-Jul-2021
276,Revenue,CAHD,South Glos Users in South Glos Homes,Permanent Nursing,Avon Lodge Care Centre,750.40, 27-Jul-2021
277,Revenue,CAHD,South - Commissioned Services,Permanent Nursing,Avon Lodge Care Centre,7978.29, 27-Jul-2021
278,Revenue,CAHD,South - Commissioned Services,Permanent Nursing,Avon Lodge Care Centre,4296.00, 27-Jul-2021
279,Revenue,CAHD,South Glos Users in South Glos Homes,Permanent Nursing,Avon Lodge Care Centre,750.40, 27-Jul-2021
280,Revenue,CAHD,South - Commissioned Services,Permanent Nursing,Avon Lodge Care Centre,4410.32, 27-Jul-2021
281,Revenue,CAHD,South Glos Users in South Glos Homes,Permanent Nursing,Avon Lodge Care Centre,750.40, 27-Jul-2021
282,Revenue,CAHD,South - Commissioned Services,Permanent Nursing,Avon Lodge Care Centre,3539.60, 27-Jul-2021
283,Revenue,CAHD,South Glos Users in South Glos Homes,Permanent Nursing,Avon Lodge Care Centre,2733.60, 27-Jul-2021
284,Revenue,CAHD,South Glos Users in South Glos Homes,Permanent Nursing,Avon Lodge Care Centre,1471.36, 27-Jul-2021
285,Revenue,CAHD,South Glos Users in South Glos Homes,Permanent Nursing,Avon Lodge Care Centre,750.40, 27-Jul-2021
286,Revenue,CAHD,South Glos Users in South Glos Homes,Permanent Nursing,Avon Lodge Care Centre,1956.40, 27-Jul-2021
287,Revenue,CAHD,South Glos Users in South Glos Homes,Permanent Nursing,Avon Lodge Care Centre,750.40, 27-Jul-2021
288,Revenue,CAHD,South - Commissioned Services,Permanent Nursing,Avon Lodge Care Centre,4447.88, 27-Jul-2021
289,Revenue,CAHD,South Glos Users in South Glos Homes,Permanent Nursing,Avon Lodge Care Centre,750.40, 27-Jul-2021
290,Revenue,CAHD,South Glos Users in South Glos Homes,Permanent Nursing,Avon Lodge Care Centre,750.40, 27-Jul-2021
291,Revenue,CAHD,South - Commissioned Services,Permanent Nursing,Avon Lodge Care Centre,4505.12, 27-Jul-2021
292,Revenue,CAHD,South Glos Users in South Glos Homes,Permanent Nursing,Avon Lodge Care Centre,750.40, 27-Jul-2021
293,Revenue,CAHD,South Glos Users in South Glos Homes,Permanent Nursing,Avon Lodge Care Centre,2733.60, 27-Jul-2021
294,Revenue,CAHD,South - Commissioned Services,Permanent Nursing,Avon Lodge Care Centre,2637.88, 27-Jul-2021
295,Revenue,CAHD,South Glos Users in South Glos Homes,Permanent Nursing,Avon Lodge Care Centre,2312.14, 27-Jul-2021
296,Revenue,CAHD,South Glos Users in South Glos Homes,Permanent Nursing,Avon Lodge Care Centre,750.40, 27-Jul-2021
297,Revenue,CAHD,South - Commissioned Services,Permanent Nursing,Avon Lodge Care Centre,4410.32, 27-Jul-2021
298,Revenue,CAHD,South Glos Users in South Glos Homes,Permanent Nursing,Avon Lodge Care Centre,750.40, 27-Jul-2021
299,Revenue,CAHD,South Glos Users in South Glos Homes,Permanent Nursing,Avon Lodge Care Centre,2733.60, 27-Jul-2021
300,Revenue,CAHD,South Glos Users in South Glos Homes,Permanent Nursing,Avon Lodge Care Centre,750.40, 27-Jul-2021
301,Revenue,CAHD,South Glos Users in South Glos Homes,Permanent Nursing,Avon Lodge Care Centre,2599.60, 27-Jul-2021
302,Revenue,CAHD,South Glos Users in South Glos Homes,Permanent Nursing,Avon Lodge Care Centre,750.40, 27-Jul-2021
303,Revenue,CAHD,South Glos Users in South Glos Homes,Permanent Nursing,Avon Lodge Care Centre,750.40, 27-Jul-2021
304,Revenue,CAHD,Central - Commissioned Services,Permanent Nursing,Avon Lodge Care Centre,3974.16, 27-Jul-2021
305,Revenue,CAHD,South Glos Users in South Glos Homes,Permanent Nursing,Avon Lodge Care Centre,750.40, 27-Jul-2021
306,Revenue,CAHD,Central - Commissioned Services,Permanent Residential,Avon Lodge Care Centre,3478.20, 27-Jul-2021
307,Revenue,CAHD,South Glos Users in South Glos Homes,Permanent Nursing,Avon Lodge Care Centre,2733.60, 27-Jul-2021
308,Revenue,CAHD,South Glos Users in South Glos Homes,Permanent Nursing,Avon Lodge Care Centre,1786.65, 27-Jul-2021
309,Revenue,CAHD,South Glos Users in South Glos Homes,Permanent Nursing,Avon Lodge Care Centre,750.40, 27-Jul-2021
310,Revenue,CAHD,South - Commissioned Services,Permanent Nursing,Avon Lodge Care Centre,3887.40, 27-Jul-2021
311,Revenue,CAHD,South Glos Users in South Glos Homes,Permanent Nursing,Avon Lodge Care Centre,750.40, 27-Jul-2021
312,Revenue,CAHD,North - Community based support,Respite Planned - Nursing,Avon Lodge Care Centre,4836.24, 27-Jul-2021
313,Revenue,CAHD,North - Community based support,Permanent Nursing,Avon Lodge Care Centre,3130.40, 27-Jul-2021
314,Revenue,CAHD,South Glos Users in South Glos Homes,Permanent Nursing,Avon Lodge Care Centre,2733.60, 27-Jul-2021
315,Revenue,CAHD,South Glos Users in South Glos Homes,Permanent Nursing,Avon Lodge Care Centre,1812.93, 27-Jul-2021
316,Revenue,CAHD,South Glos Users in South Glos Homes,Permanent Nursing,Avon Lodge Care Centre,750.40, 27-Jul-2021
317,Revenue,CAHD,South Glos Users in South Glos Homes,Permanent Nursing,Avon Lodge Care Centre,1018.40, 27-Jul-2021
318,Revenue,CAHD,South Glos Users in South Glos Homes,Permanent Nursing,Avon Lodge Care Centre,750.40, 27-Jul-2021
319,Revenue,CAHD,Central - Commissioned Services,Permanent Nursing,Avon Lodge Care Centre,3887.40, 27-Jul-2021
320,Revenue,CAHD,South Glos Users in South Glos Homes,Permanent Nursing,Avon Lodge Care Centre,750.40, 27-Jul-2021
321,Revenue,CAHD,South Glos Users in South Glos Homes,Permanent Nursing,Avon Lodge Care Centre,2733.60, 27-Jul-2021
322,Revenue,CAHD,North - Community based support,Permanent Residential,Avon Lodge Care Centre,3539.60, 27-Jul-2021
323,Revenue,CAHD,South Glos Users in South Glos Homes,Permanent Nursing,Avon Lodge Care Centre,1786.65, 27-Jul-2021
324,Revenue,CAHD,South Glos Users in South Glos Homes,Permanent Nursing,Avon Lodge Care Centre,750.40, 27-Jul-2021
325,Revenue,CAHD,South Glos Users in South Glos Homes,Permanent Nursing,Avon Lodge Care Centre,750.40, 27-Jul-2021
326,Revenue,CAHD,South Glos Users in South Glos Homes,Permanent Nursing,Avon Lodge Care Centre,1554.40, 27-Jul-2021
327,Revenue,CAHD,South Glos Users in South Glos Homes,Permanent Nursing,Avon Lodge Care Centre,750.40, 27-Jul-2021
328,Revenue,CAHD,South Glos Users in South Glos Homes,Permanent Nursing,Avon Lodge Care Centre,750.40, 27-Jul-2021
329,Revenue,CAHD,South - Commissioned Services,Permanent Nursing,Avon Lodge Care Centre,1227.57, 27-Jul-2021
330,Revenue,CAHD,South - Commissioned Services,Permanent Nursing,Avon Lodge Care Centre,4634.24, 27-Jul-2021
331,Revenue,CAHD,South Glos Users in South Glos Homes,Permanent Nursing,Avon Lodge Care Centre,750.40, 27-Jul-2021
332,Revenue,CAHD,South - S117,Permanent Nursing,Avon Lodge Care Centre,3974.84, 27-Jul-2021
333,Revenue,CAHD,South Glos Users in South Glos Homes,Permanent Nursing,Avon Lodge Care Centre,750.40, 27-Jul-2021
334,Revenue,CAHD,South - Commissioned Services,Respite Planned - Nursing,Avon Lodge Care Centre,3539.60, 27-Jul-2021
335,Revenue,CAHD,South Glos Users in South Glos Homes,Permanent Nursing,Avon Lodge Care Centre,2733.60, 27-Jul-2021
336,Revenue,CAHD,South Glos Users in South Glos Homes,Permanent Nursing,Avon Lodge Care Centre,1786.65, 27-Jul-2021
337,Revenue,CAHD,South Glos Users in South Glos Homes,Permanent Nursing,Avon Lodge Care Centre,750.40, 27-Jul-2021
338,Revenue,CAHD,North - Community based support,Permanent Nursing,Avon Lodge Care Centre,3887.40, 27-Jul-2021
339,Revenue,CAHD,South Glos Users in South Glos Homes,Permanent Nursing,Avon Lodge Care Centre,2733.60, 27-Jul-2021
340,Revenue,CAHD,South Glos Users in South Glos Homes,Permanent Nursing,Avon Lodge Care Centre,1812.93, 27-Jul-2021
341,Revenue,CAHD,South Glos Users in South Glos Homes,Permanent Nursing,Avon Lodge Care Centre,750.40, 27-Jul-2021
342,Revenue,CAHD,South - Commissioned Services,Permanent Residential,Avon Lodge Care Centre,3130.40, 27-Jul-2021
343,Revenue,CAHD,South Glos Users in South Glos Homes,Permanent Nursing,Avon Lodge Care Centre,750.40, 27-Jul-2021
344,Revenue,CAHD,South Glos Users in South Glos Homes,Permanent Nursing,Avon Lodge Care Centre,750.40, 27-Jul-2021
345,Revenue,CAHD,South - Commissioned Services,Permanent Nursing,Avon Lodge Care Centre,3800.00, 27-Jul-2021
346,Revenue,CAHD,South Glos Users in South Glos Homes,Permanent Nursing,Avon Lodge Care Centre,750.40, 27-Jul-2021
347,Revenue,CAHD,Covid - ASC - Infection Control,Grants to Voluntary Bodies,Avon Lodge Care Centre,10430.26, 30-Jul-2021
348,Revenue,CAHD,Covid - ASC - Infection Control,Grants to Voluntary Bodies,Avon Lodge Care Centre,1597.35, 07-Jul-2021
349,Revenue,CAHD,ASC Rapid Testing Fund,Grants to Voluntary Bodies,Avon Lodge Care Centre,10614.40, 30-Jul-2021
350,Revenue,CAHD,ASC Rapid Testing Fund,Grants to Voluntary Bodies,Avon Lodge Care Centre,1730.51, 07-Jul-2021
351,Revenue,CAHD,South - Commissioned Services,Permanent Residential,Avon Valley Care Home,4092.00, 27-Jul-2021
352,Revenue,CAHD,South - Commissioned Services,Permanent Residential,Avon Valley Care Home,4270.00, 27-Jul-2021
353,Revenue,CAHD,South - S117,Permanent Residential,Avon Valley Care Home,4092.00, 27-Jul-2021
354,Revenue,CAHD,South - Commissioned Services,Permanent Residential,Avon Valley Care Home,4051.08, 27-Jul-2021
355,Revenue,CAHD,South - Commissioned Services,Permanent Residential,Avon Valley Care Home,4230.00, 27-Jul-2021
356,Revenue,CAHD,South - Commissioned Services,Permanent Residential,Avon Valley Care Home,4051.08, 27-Jul-2021
357,Revenue,CAHD,South - Commissioned Services,Permanent Residential,Avon Valley Care Home,4092.00, 27-Jul-2021
358,Revenue,CAHD,South - Commissioned Services,Permanent Residential,Avon Valley Care Home,4270.00, 27-Jul-2021
359,Revenue,CAHD,South - Commissioned Services,Permanent Residential,Avon Valley Care Home,4910.40, 27-Jul-2021
360,Revenue,CAHD,South - Commissioned Services,Permanent Residential,Avon Valley Care Home,4230.00, 27-Jul-2021
361,Revenue,CAHD,South - Commissioned Services,Permanent Residential,Avon Valley Care Home,4051.08, 27-Jul-2021
362,Revenue,CAHD,South - Commissioned Services,Fees & Charges Income - General,Avon Valley Care Home,660.34, 27-Jul-2021
363,Revenue,CAHD,South - Commissioned Services,Permanent Residential,Avon Valley Care Home,4051.08, 27-Jul-2021
364,Revenue,CAHD,Central - Commissioned Services,Permanent Residential,Avon Valley Care Home,4092.00, 27-Jul-2021
365,Revenue,CAHD,South - Commissioned Services,Permanent Residential,Avon Valley Care Home,4092.00, 27-Jul-2021
366,Revenue,CAHD,South - Commissioned Services,Permanent Residential,Avon Valley Care Home,4230.00, 27-Jul-2021
367,Revenue,CAHD,Covid - ASC - Infection Control,Grants to Voluntary Bodies,Avon Valley Care Home,2009.56, 07-Jul-2021
368,Revenue,CAHD,ASC Rapid Testing Fund,Grants to Voluntary Bodies,Avon Valley Care Home,2177.09, 07-Jul-2021
369,Revenue,CAHD,North - Community based support,Permanent Residential,Avonmere Care Home,12034.29, 27-Jul-2021
370,Revenue,CAHD,North - Community based support,Permanent Residential,Avonmere Care Home,4680.00, 27-Jul-2021
371,Revenue,CAHD,North - Community based support,Fees & Charges Income - General,Avonmere Care Home,2700.64, 27-Jul-2021
372,Revenue,CAHD,North - Community based support,Permanent Residential,Avonmere Care Home,4892.00, 27-Jul-2021
373,Revenue,CAHD,North - Community based support,Permanent Residential,Avonmere Care Home,4521.68, 27-Jul-2021
374,Revenue,CAHD,South - Commissioned Services,Permanent Nursing,Avonmere Care Home,4800.00, 27-Jul-2021
375,Revenue,CAHD,North - Community based support,Permanent Residential,Avonmere Care Home,4600.00, 27-Jul-2021
376,Revenue,CAHD,North - Community based support,Permanent Residential,Avonmere Care Home,4720.00, 27-Jul-2021
377,Revenue,CAHD,North - Community based support,Permanent Residential,Avonmere Care Home,4892.00, 27-Jul-2021
378,Revenue,CAHD,Covid - ASC - Infection Control,Grants to Voluntary Bodies,Avonmere Care Home,1958.04, 07-Jul-2021
379,Revenue,CAHD,ASC Rapid Testing Fund,Grants to Voluntary Bodies,Avonmere Care Home,2121.27, 07-Jul-2021
380,Revenue,CAHD,North - Community based support,Permanent Nursing,Badminton Place,4864.32, 27-Jul-2021
381,Revenue,CAHD,Covid 19- Spend on behalf of NHS,Respite Planned - Nursing,Badminton Place,8228.57, 27-Jul-2021
382,Revenue,CAHD,South Glos Users in South Glos Homes,Permanent Nursing,Badminton Place,2733.60, 27-Jul-2021
383,Revenue,CAHD,South Glos Users in South Glos Homes,Permanent Nursing,Badminton Place,750.40, 27-Jul-2021
384,Revenue,CAHD,Central - Commissioned Services,Respite Planned - Residential,Badminton Place,12857.14, 27-Jul-2021
385,Revenue,CAHD,Central - Commissioned Services,Respite Planned - Residential,Badminton Place,857.14, 27-Jul-2021
386,Revenue,CAHD,North - Community based support,Respite Planned - Nursing,Badminton Place,6857.14, 27-Jul-2021
387,Revenue,CAHD,North - Community based support,Respite Planned - Nursing,Badminton Place,1142.86, 27-Jul-2021
388,Revenue,CAHD,Covid - ASC - Infection Control,Grants to Voluntary Bodies,Badminton Place,1854.98, 07-Jul-2021
389,Revenue,CAHD,ASC Rapid Testing Fund,Grants to Voluntary Bodies,Badminton Place,2009.62, 07-Jul-2021
390,Revenue,CAHD,Early Years High Needs Support,Other Private Contractors,Baker Street Nursery & Pre-School,788.73, 27-Jul-2021
391,Revenue,CAHD,Children & Young People`s Health,Other Small Contracts,Barnardos,7650.00, 30-Jul-2021
392,Revenue,CAHD,Pensions - Non DSG,Annual Pension,Bath & North East Somerset Council,103355.80, 05-Jul-2021
393,Revenue,CAHD,Pensions - Non DSG,Annual Pension,Bath & North East Somerset Council,103601.14, 05-Jul-2021
394,Revenue,CAHD,Schools Specific Grant Income,Other Public Bodies,Bath & North East Somerset Council,630.00, 22-Jul-2021
395,Revenue,CAHD,Central - Commissioned Services,Respite Planned - Nursing,Beaufort Care Ltd,6000.00, 09-Jul-2021
396,Revenue,CAHD,South Glos Users in South Glos Homes,Permanent Nursing,Beaufort Grange Care Home,750.40, 27-Jul-2021
397,Revenue,CAHD,South Glos Users in South Glos Homes,Permanent Nursing,Beaufort Grange Care Home,750.40, 27-Jul-2021
398,Revenue,CAHD,South Glos Users in South Glos Homes,Permanent Nursing,Beaufort Grange Care Home,750.40, 27-Jul-2021
399,Revenue,CAHD,Covid 19- Spend on behalf of NHS,Respite Planned - Nursing,Beaufort Grange Care Home,37973.00, 27-Jul-2021
400,Revenue,CAHD,South Glos Users in South Glos Homes,Permanent Nursing,Beaufort Grange Care Home,750.40, 27-Jul-2021
401,Revenue,CAHD,South Glos Users in South Glos Homes,Permanent Nursing,Beaufort Grange Care Home,750.40, 27-Jul-2021
402,Revenue,CAHD,North - S117,Permanent Nursing,Beaufort Grange Care Home,4877.04, 27-Jul-2021
403,Revenue,CAHD,South Glos Users in South Glos Homes,Permanent Nursing,Beaufort Grange Care Home,750.40, 27-Jul-2021
404,Revenue,CAHD,Central - Commissioned Services,Permanent Nursing,Beaufort Grange Care Home,5400.00, 27-Jul-2021
405,Revenue,CAHD,South Glos Users in South Glos Homes,Permanent Nursing,Beaufort Grange Care Home,750.40, 27-Jul-2021
406,Revenue,CAHD,South Glos Users in South Glos Homes,Permanent Nursing,Beaufort Grange Care Home,750.40, 27-Jul-2021
407,Revenue,CAHD,South Glos Users in South Glos Homes,Permanent Nursing,Beaufort Grange Care Home,750.40, 27-Jul-2021
408,Revenue,CAHD,South Glos Users in South Glos Homes,Permanent Nursing,Beaufort Grange Care Home,750.40, 27-Jul-2021
409,Revenue,CAHD,South Glos Users in South Glos Homes,Permanent Nursing,Beaufort Grange Care Home,750.40, 27-Jul-2021
410,Revenue,CAHD,Central - Commissioned Services,Fees & Charges Income - General,Beaufort Grange Care Home,608.80, 27-Jul-2021
411,Revenue,CAHD,South Glos Users in South Glos Homes,Permanent Nursing,Beaufort Grange Care Home,750.40, 27-Jul-2021
412,Revenue,CAHD,Covid 19- Spend on behalf of NHS,Respite Planned - Nursing,Beaufort Grange Care Home,12604.00, 27-Jul-2021
413,Revenue,CAHD,Covid 19- Spend on behalf of NHS,Respite Planned - Nursing,Beaufort Grange Care Home,7652.43, 27-Jul-2021
414,Revenue,CAHD,South Glos Users in South Glos Homes,Permanent Nursing,Beaufort Grange Care Home,750.40, 27-Jul-2021
415,Revenue,CAHD,South Glos Users in South Glos Homes,Permanent Nursing,Beaufort Grange Care Home,750.40, 27-Jul-2021
416,Revenue,CAHD,South Glos Users in South Glos Homes,Permanent Nursing,Beaufort Grange Care Home,750.40, 27-Jul-2021
417,Revenue,CAHD,South Glos Users in South Glos Homes,Permanent Nursing,Beaufort Grange Care Home,750.40, 27-Jul-2021
418,Revenue,CAHD,South Glos Users in South Glos Homes,Permanent Nursing,Beaufort Grange Care Home,750.40, 27-Jul-2021
419,Revenue,CAHD,South Glos Users in South Glos Homes,Permanent Nursing,Beaufort Grange Care Home,750.40, 27-Jul-2021
420,Revenue,CAHD,South Glos Users in South Glos Homes,Permanent Nursing,Beaufort Grange Care Home,750.40, 27-Jul-2021
421,Revenue,CAHD,South Glos Users in South Glos Homes,Permanent Nursing,Beaufort Grange Care Home,750.40, 27-Jul-2021
422,Revenue,CAHD,South Glos Users in South Glos Homes,Permanent Nursing,Beaufort Grange Care Home,750.40, 27-Jul-2021
423,Revenue,CAHD,South Glos Users in South Glos Homes,Permanent Nursing,Beaufort Grange Care Home,750.40, 27-Jul-2021
424,Revenue,CAHD,North - S117,Permanent Nursing,Beaufort Grange Care Home,5400.00, 27-Jul-2021
425,Revenue,CAHD,South Glos Users in South Glos Homes,Permanent Nursing,Beaufort Grange Care Home,1179.20, 27-Jul-2021
426,Revenue,CAHD,South Glos Users in South Glos Homes,Permanent Nursing,Beaufort Grange Care Home,750.40, 27-Jul-2021
427,Revenue,CAHD,Central - Commissioned Services,Permanent Nursing,Beaufort Grange Care Home,5500.00, 27-Jul-2021
428,Revenue,CAHD,South Glos Users in South Glos Homes,Permanent Nursing,Beaufort Grange Care Home,750.40, 27-Jul-2021
429,Revenue,CAHD,South Glos Users in South Glos Homes,Permanent Nursing,Beaufort Grange Care Home,750.40, 27-Jul-2021
430,Revenue,CAHD,North - Community based support,Permanent Nursing,Beaufort Grange Care Home,10620.00, 27-Jul-2021
431,Revenue,CAHD,South Glos Users in South Glos Homes,Permanent Nursing,Beaufort Grange Care Home,750.40, 27-Jul-2021
432,Revenue,CAHD,South Glos Users in South Glos Homes,Permanent Nursing,Beaufort Grange Care Home,750.40, 27-Jul-2021
433,Revenue,CAHD,South Glos Users in South Glos Homes,Permanent Nursing,Beaufort Grange Care Home,750.40, 27-Jul-2021
434,Revenue,CAHD,South Glos Users in South Glos Homes,Permanent Nursing,Beaufort Grange Care Home,750.40, 27-Jul-2021
435,Revenue,CAHD,South Glos Users in South Glos Homes,Permanent Nursing,Beaufort Grange Care Home,750.40, 27-Jul-2021
436,Revenue,CAHD,South Glos Users in South Glos Homes,Permanent Nursing,Beaufort Grange Care Home,750.40, 27-Jul-2021
437,Revenue,CAHD,South Glos Users in South Glos Homes,Permanent Nursing,Beaufort Grange Care Home,2733.60, 27-Jul-2021
438,Revenue,CAHD,South Glos Users in South Glos Homes,Permanent Nursing,Beaufort Grange Care Home,2075.67, 27-Jul-2021
439,Revenue,CAHD,South Glos Users in South Glos Homes,Permanent Nursing,Beaufort Grange Care Home,750.40, 27-Jul-2021
440,Revenue,CAHD,South Glos Users in South Glos Homes,Permanent Nursing,Beaufort Grange Care Home,750.40, 27-Jul-2021
441,Revenue,CAHD,South Glos Users in South Glos Homes,Permanent Nursing,Beaufort Grange Care Home,750.40, 27-Jul-2021
442,Revenue,CAHD,South Glos Users in South Glos Homes,Permanent Nursing,Beaufort Grange Care Home,750.40, 27-Jul-2021
443,Revenue,CAHD,South Glos Users in South Glos Homes,Permanent Nursing,Beaufort Grange Care Home,750.40, 27-Jul-2021
444,Revenue,CAHD,South Glos Users in South Glos Homes,Permanent Nursing,Beaufort Grange Care Home,750.40, 27-Jul-2021
445,Revenue,CAHD,South Glos Users in South Glos Homes,Permanent Nursing,Beaufort Grange Care Home,750.40, 27-Jul-2021
446,Revenue,CAHD,South Glos Users in South Glos Homes,Permanent Nursing,Beaufort Grange Care Home,2733.60, 27-Jul-2021
447,Revenue,CAHD,South Glos Users in South Glos Homes,Permanent Nursing,Beaufort Grange Care Home,604.31, 27-Jul-2021
448,Revenue,CAHD,South Glos Users in South Glos Homes,Permanent Nursing,Beaufort Grange Care Home,750.40, 27-Jul-2021
449,Revenue,CAHD,Central - Commissioned Services,Permanent Nursing,Beaufort Grange Care Home,5332.32, 27-Jul-2021
450,Revenue,CAHD,South Glos Users in South Glos Homes,Permanent Nursing,Beaufort Grange Care Home,750.40, 27-Jul-2021
451,Revenue,CAHD,Central - Commissioned Services,Permanent Residential,Beaufort House,2991.84, 27-Jul-2021
452,Revenue,CAHD,Central - Commissioned Services,Permanent Residential,Beaufort House,2896.24, 27-Jul-2021
453,Revenue,CAHD,North - Community based support,Permanent Residential,Beaufort House,2683.16, 27-Jul-2021
454,Revenue,CAHD,Central - Commissioned Services,Permanent Residential,Beaufort House,3800.00, 27-Jul-2021
455,Revenue,CAHD,North - Community based support,Fees & Charges Income - General,Beaufort House,10746.39, 27-Jul-2021
456,Revenue,CAHD,North - Community based support,Fees & Charges Income - General,Beaufort House,7714.29, 27-Jul-2021
457,Revenue,CAHD,North - Community based support,Permanent Residential,Beaufort House,4000.00, 27-Jul-2021
458,Revenue,CAHD,North - Community based support,Fees & Charges Income - General,Beaufort House,3636.51, 27-Jul-2021
459,Revenue,CAHD,North - Community based support,Fees & Charges Income - General,Beaufort House,2630.57, 27-Jul-2021
460,Revenue,CAHD,North - Community based support,Permanent Residential,Beaufort House,2817.28, 27-Jul-2021
461,Revenue,CAHD,Central - Commissioned Services,Permanent Residential,Beaufort House,4000.00, 27-Jul-2021
462,Revenue,CAHD,Central - Commissioned Services,Permanent Residential,Beaufort House,3200.00, 27-Jul-2021
463,Revenue,CAHD,Central - Commissioned Services,Permanent Residential,Beaufort House,3600.00, 27-Jul-2021
464,Revenue,CAHD,Central - Commissioned Services,Respite Planned - Nursing,Beaufort House,5857.14, 27-Jul-2021
465,Revenue,CAHD,Central - Commissioned Services,Permanent Residential,Beaufort House,3600.00, 27-Jul-2021
466,Revenue,CAHD,Central - Commissioned Services,Permanent Residential,Beaufort House,3478.20, 27-Jul-2021
467,Revenue,CAHD,Covid - ASC - Infection Control,Grants to Voluntary Bodies,Beaufort House,4710.44, 30-Jul-2021
468,Revenue,CAHD,Covid - ASC - Infection Control,Grants to Voluntary Bodies,Beaufort House,721.38, 07-Jul-2021
469,Revenue,CAHD,ASC Rapid Testing Fund,Grants to Voluntary Bodies,Beaufort House,4793.60, 30-Jul-2021
470,Revenue,CAHD,ASC Rapid Testing Fund,Grants to Voluntary Bodies,Beaufort House,781.52, 07-Jul-2021
471,Revenue,CAHD,South - Commissioned Services,Permanent Residential,Beech House,3088.28, 27-Jul-2021
472,Revenue,CAHD,South Glos Users in South Glos Homes,Permanent Nursing,Beech House,750.40, 27-Jul-2021
473,Revenue,CAHD,South Glos Users in South Glos Homes,Permanent Nursing,Beech House,750.40, 27-Jul-2021
474,Revenue,CAHD,South Glos Users in South Glos Homes,Permanent Nursing,Beech House,750.40, 27-Jul-2021
475,Revenue,CAHD,North - Community based support,Permanent Nursing,Beech House,5500.00, 27-Jul-2021
476,Revenue,CAHD,South Glos Users in South Glos Homes,Permanent Nursing,Beech House,750.40, 27-Jul-2021
477,Revenue,CAHD,South Glos Users in South Glos Homes,Permanent Nursing,Beech House,750.40, 27-Jul-2021
478,Revenue,CAHD,South Glos Users in South Glos Homes,Permanent Nursing,Beech House,750.40, 27-Jul-2021
479,Revenue,CAHD,South Glos Users in South Glos Homes,Permanent Nursing,Beech House,750.40, 27-Jul-2021
480,Revenue,CAHD,North - Community based support,Permanent Nursing,Beech House,4378.44, 27-Jul-2021
481,Revenue,CAHD,South Glos Users in South Glos Homes,Permanent Nursing,Beech House,750.40, 27-Jul-2021
482,Revenue,CAHD,South Glos Users in South Glos Homes,Permanent Nursing,Beech House,1688.40, 27-Jul-2021
483,Revenue,CAHD,South Glos Users in South Glos Homes,Permanent Nursing,Beech House,750.40, 27-Jul-2021
484,Revenue,CAHD,North - Community based support,Permanent Nursing,Beech House,4378.44, 27-Jul-2021
485,Revenue,CAHD,South Glos Users in South Glos Homes,Permanent Nursing,Beech House,750.40, 27-Jul-2021
486,Revenue,CAHD,North - Community based support,Permanent Nursing,Beech House,4407.12, 27-Jul-2021
487,Revenue,CAHD,South Glos Users in South Glos Homes,Permanent Nursing,Beech House,750.40, 27-Jul-2021
488,Revenue,CAHD,South Glos Users in South Glos Homes,Permanent Nursing,Beech House,750.40, 27-Jul-2021
489,Revenue,CAHD,South Glos Users in South Glos Homes,Permanent Nursing,Beech House,750.40, 27-Jul-2021
490,Revenue,CAHD,South Glos Users in South Glos Homes,Permanent Nursing,Beech House,2733.60, 27-Jul-2021
491,Revenue,CAHD,South Glos Users in South Glos Homes,Permanent Nursing,Beech House,1156.07, 27-Jul-2021
492,Revenue,CAHD,South Glos Users in South Glos Homes,Permanent Nursing,Beech House,750.40, 27-Jul-2021
493,Revenue,CAHD,South Glos Users in South Glos Homes,Permanent Nursing,Beech House,750.40, 27-Jul-2021
494,Revenue,CAHD,South Glos Users in South Glos Homes,Permanent Nursing,Beech House,750.40, 27-Jul-2021
495,Revenue,CAHD,South Glos Users in South Glos Homes,Permanent Nursing,Beech House,750.40, 27-Jul-2021
496,Revenue,CAHD,South Glos Users in South Glos Homes,Permanent Nursing,Beech House,750.40, 27-Jul-2021
497,Revenue,CAHD,South Glos Users in South Glos Homes,Permanent Nursing,Beech House,750.40, 27-Jul-2021
498,Revenue,CAHD,North - Community based support,Permanent Residential,Beech House,4460.28, 27-Jul-2021
499,Revenue,CAHD,Covid - ASC - Infection Control,Grants to Voluntary Bodies,Beech House,9252.65, 30-Jul-2021
500,Revenue,CAHD,Covid - ASC - Infection Control,Grants to Voluntary Bodies,Beech House,1417.00, 07-Jul-2021
501,Revenue,CAHD,ASC Rapid Testing Fund,Grants to Voluntary Bodies,Beech House,9416.00, 30-Jul-2021
502,Revenue,CAHD,ASC Rapid Testing Fund,Grants to Voluntary Bodies,Beech House,1535.13, 07-Jul-2021
503,Revenue,CAHD,South Glos Users in South Glos Homes,Permanent Nursing,Beechwood Care Home,1122.00, 27-Jul-2021
504,Revenue,CAHD,South Glos Users in South Glos Homes,Permanent Nursing,Beechwood Care Home,4087.29, 27-Jul-2021
505,Revenue,CAHD,18-25 Year Olds,Permanent Residential,Beechwood Court Ltd,20867.62, 29-Jul-2021
506,Revenue,CAHD,South - Commissioned Services,Permanent Nursing,Begbrook House Nursing Home,3593.88, 27-Jul-2021
507,Revenue,CAHD,Central - Commissioned Services,Permanent Nursing,Begbrook House Nursing Home,3400.00, 27-Jul-2021
508,Revenue,CAHD,North - Community based support,Permanent Nursing,Begbrook House Nursing Home,3234.72, 27-Jul-2021
509,Revenue,CAHD,Covid 19- Spend on behalf of NHS,Respite Planned - Nursing,Begbrook House Nursing Home,3688.29, 27-Jul-2021
510,Revenue,CAHD,Covid 19- Spend on behalf of NHS,Respite Planned - Nursing,Begbrook House Nursing Home,2269.71, 27-Jul-2021
511,Revenue,CAHD,South - Commissioned Services,Permanent Residential,Begbrook House Nursing Home,3400.00, 27-Jul-2021
512,Revenue,CAHD,Central - Commissioned Services,Permanent Nursing,Begbrook House Nursing Home,3400.00, 27-Jul-2021
513,Revenue,CAHD,Schools Specific Grant Income,Other Public Bodies,Begbrook Primary Academy,630.00, 13-Jul-2021
514,Revenue,CAHD,Schools Specific Grant Income,Other Public Bodies,Begbrook Primary Academy,630.00, 13-Jul-2021
515,Revenue,CAHD,Schools Specific Grant Income,Other Public Bodies,Begbrook Primary Academy,630.00, 13-Jul-2021
516,Revenue,CAHD,South - S117,Permanent Residential,Bidna House,3774.24, 27-Jul-2021
517,Revenue,CAHD,Schools Specific Grant Income,Other Public Bodies,Blaise High School,630.00, 13-Jul-2021
518,Revenue,CAHD,Placements OLA Special Schools and RB,Other L.A.s - General,Blaise High School,834.88, 27-Jul-2021
519,Revenue,CAHD,Statemented Support Payments to OLAs,Other L.A.s - General,Blaise High School,907.83, 27-Jul-2021
520,Revenue,CAHD,Central - Commissioned Services,Other Small Contracts,Blakehill Healthcare Ltd,5050.00, 09-Jul-2021
521,Revenue,CAHD,South - Commissioned Services,Other Small Contracts,Blakehill Healthcare Ltd,4274.36, 09-Jul-2021
522,Revenue,CAHD,North - Community based support,Other Small Contracts,Blakehill Healthcare Ltd,5042.70, 09-Jul-2021
523,Revenue,CAHD,Central - Commissioned Services,Other Small Contracts,Blakehill Healthcare Ltd,4868.75, 09-Jul-2021
524,Revenue,CAHD,South - Commissioned Services,Other Small Contracts,Blakehill Healthcare Ltd,4272.31, 09-Jul-2021
525,Revenue,CAHD,North - Community based support,Other Small Contracts,Blakehill Healthcare Ltd,5546.60, 09-Jul-2021
526,Revenue,CAHD,Central - Commissioned Services,Other Small Contracts,Blakehill Healthcare Ltd,4706.25, 14-Jul-2021
527,Revenue,CAHD,South - Commissioned Services,Other Small Contracts,Blakehill Healthcare Ltd,3517.07, 14-Jul-2021
528,Revenue,CAHD,North - Community based support,Other Small Contracts,Blakehill Healthcare Ltd,5461.00, 14-Jul-2021
529,Revenue,CAHD,Central - Commissioned Services,Other Small Contracts,Blakehill Healthcare Ltd,4681.25, 14-Jul-2021
530,Revenue,CAHD,South - Commissioned Services,Other Small Contracts,Blakehill Healthcare Ltd,3253.56, 14-Jul-2021
531,Revenue,CAHD,North - Community based support,Other Small Contracts,Blakehill Healthcare Ltd,5313.90, 14-Jul-2021
532,Revenue,CAHD,Central - Commissioned Services,Other Small Contracts,Blakehill Healthcare Ltd,4831.25, 22-Jul-2021
533,Revenue,CAHD,South - Commissioned Services,Other Small Contracts,Blakehill Healthcare Ltd,3257.66, 22-Jul-2021
534,Revenue,CAHD,North - Community based support,Other Small Contracts,Blakehill Healthcare Ltd,5176.15, 22-Jul-2021
535,Revenue,CAHD,Central - Commissioned Services,Other Small Contracts,Blakehill Healthcare Ltd,4831.25, 28-Jul-2021
536,Revenue,CAHD,South - Commissioned Services,Other Small Contracts,Blakehill Healthcare Ltd,3016.06, 28-Jul-2021
537,Revenue,CAHD,North - Community based support,Other Small Contracts,Blakehill Healthcare Ltd,4393.20, 28-Jul-2021
538,Revenue,CAHD,Central - Commissioned Services,Other Small Contracts,Blakehill Healthcare Ltd,3473.28, 12-Jul-2021
539,Revenue,CAHD,Covid - ASC - Infection Control,Grants to Voluntary Bodies,Blakehill Healthcare Ltd,850.20, 07-Jul-2021
540,Revenue,CAHD,North - Community based support,Other Small Contracts,Blakehill Healthcare Ltd,518.75, 22-Jul-2021
541,Revenue,CAHD,South Glos Users in South Glos Homes,Permanent Nursing,Blossom Fields Nursing Home,750.40, 27-Jul-2021
542,Revenue,CAHD,North - S117,Respite Planned - Nursing,Blossom Fields Nursing Home,1623.80, 27-Jul-2021
543,Revenue,CAHD,South Glos Users in South Glos Homes,Permanent Nursing,Blossom Fields Nursing Home,750.40, 27-Jul-2021
544,Revenue,CAHD,North - Community based support,Permanent Nursing,Blossom Fields Nursing Home,5000.00, 27-Jul-2021
545,Revenue,CAHD,South Glos Users in South Glos Homes,Permanent Nursing,Blossom Fields Nursing Home,750.40, 27-Jul-2021
546,Revenue,CAHD,North - Community based support,Permanent Nursing,Blossom Fields Nursing Home,4880.12, 27-Jul-2021
547,Revenue,CAHD,South Glos Users in South Glos Homes,Permanent Nursing,Blossom Fields Nursing Home,750.40, 27-Jul-2021
548,Revenue,CAHD,South Glos Users in South Glos Homes,Permanent Nursing,Blossom Fields Nursing Home,750.40, 27-Jul-2021
549,Revenue,CAHD,South Glos Users in South Glos Homes,Permanent Nursing,Blossom Fields Nursing Home,750.40, 27-Jul-2021
550,Revenue,CAHD,North - Community based support,Permanent Nursing,Blossom Fields Nursing Home,4910.28, 27-Jul-2021
551,Revenue,CAHD,South Glos Users in South Glos Homes,Permanent Nursing,Blossom Fields Nursing Home,750.40, 27-Jul-2021
552,Revenue,CAHD,South Glos Users in South Glos Homes,Permanent Nursing,Blossom Fields Nursing Home,750.40, 27-Jul-2021
553,Revenue,CAHD,North - Community based support,Permanent Nursing,Blossom Fields Nursing Home,4910.40, 27-Jul-2021
554,Revenue,CAHD,South Glos Users in South Glos Homes,Permanent Nursing,Blossom Fields Nursing Home,750.40, 27-Jul-2021
555,Revenue,CAHD,South Glos Users in South Glos Homes,Permanent Nursing,Blossom Fields Nursing Home,750.40, 27-Jul-2021
556,Revenue,CAHD,South Glos Users in South Glos Homes,Permanent Nursing,Blossom Fields Nursing Home,750.40, 27-Jul-2021
557,Revenue,CAHD,South Glos Users in South Glos Homes,Permanent Nursing,Blossom Fields Nursing Home,750.40, 27-Jul-2021
558,Revenue,CAHD,South Glos Users in South Glos Homes,Permanent Nursing,Blossom Fields Nursing Home,750.40, 27-Jul-2021
559,Revenue,CAHD,North - Community based support,Permanent Residential,Blossom Fields Nursing Home,4132.12, 27-Jul-2021
560,Revenue,CAHD,South Glos Users in South Glos Homes,Permanent Nursing,Blossom Fields Nursing Home,750.40, 27-Jul-2021
561,Revenue,CAHD,South Glos Users in South Glos Homes,Permanent Nursing,Blossom Fields Nursing Home,750.40, 27-Jul-2021
562,Revenue,CAHD,North - Community based support,Permanent Nursing,Blossom Fields Nursing Home,4132.12, 27-Jul-2021
563,Revenue,CAHD,South Glos Users in South Glos Homes,Permanent Nursing,Blossom Fields Nursing Home,1661.60, 27-Jul-2021
564,Revenue,CAHD,South Glos Users in South Glos Homes,Permanent Nursing,Blossom Fields Nursing Home,750.40, 27-Jul-2021
565,Revenue,CAHD,South Glos Users in South Glos Homes,Permanent Nursing,Blossom Fields Nursing Home,750.40, 27-Jul-2021
566,Revenue,CAHD,South Glos Users in South Glos Homes,Permanent Nursing,Blossom Fields Nursing Home,750.40, 27-Jul-2021
567,Revenue,CAHD,Central - Commissioned Services,Permanent Nursing,Blossom Fields Nursing Home,4132.12, 27-Jul-2021
568,Revenue,CAHD,South Glos Users in South Glos Homes,Permanent Nursing,Blossom Fields Nursing Home,750.40, 27-Jul-2021
569,Revenue,CAHD,South Glos Users in South Glos Homes,Permanent Nursing,Blossom Fields Nursing Home,750.40, 27-Jul-2021
570,Revenue,CAHD,South Glos Users in South Glos Homes,Permanent Nursing,Blossom Fields Nursing Home,750.40, 27-Jul-2021
571,Revenue,CAHD,South Glos Users in South Glos Homes,Permanent Nursing,Blossom Fields Nursing Home,750.40, 27-Jul-2021
572,Revenue,CAHD,South Glos Users in South Glos Homes,Permanent Nursing,Blossom Fields Nursing Home,750.40, 27-Jul-2021
573,Revenue,CAHD,South Glos Users in South Glos Homes,Permanent Nursing,Blossom Fields Nursing Home,1500.80, 27-Jul-2021
574,Revenue,CAHD,South Glos Users in South Glos Homes,Permanent Nursing,Blossom Fields Nursing Home,750.40, 27-Jul-2021
575,Revenue,CAHD,South Glos Users in South Glos Homes,Permanent Nursing,Blossom Fields Nursing Home,750.40, 27-Jul-2021
576,Revenue,CAHD,North - Community based support,Permanent Nursing,Blossom Fields Nursing Home,4132.12, 27-Jul-2021
577,Revenue,CAHD,South Glos Users in South Glos Homes,Permanent Nursing,Blossom Fields Nursing Home,750.40, 27-Jul-2021
578,Revenue,CAHD,Central - Commissioned Services,Permanent Nursing,Blossom Fields Nursing Home,4132.12, 27-Jul-2021
579,Revenue,CAHD,South Glos Users in South Glos Homes,Permanent Nursing,Blossom Fields Nursing Home,750.40, 27-Jul-2021
580,Revenue,CAHD,South Glos Users in South Glos Homes,Permanent Nursing,Blossom Fields Nursing Home,750.40, 27-Jul-2021
581,Revenue,CAHD,North - Community based support,Permanent Nursing,Blossom Fields Nursing Home,3792.92, 27-Jul-2021
582,Revenue,CAHD,South Glos Users in South Glos Homes,Permanent Nursing,Blossom Fields Nursing Home,750.40, 27-Jul-2021
583,Revenue,CAHD,Covid - ASC - Infection Control,Grants to Voluntary Bodies,Blossom Fields Nursing Home,1107.84, 07-Jul-2021
584,Revenue,CAHD,ASC Rapid Testing Fund,Grants to Voluntary Bodies,Blossom Fields Nursing Home,1200.19, 07-Jul-2021
585,Revenue,CAHD,South Glos Users in South Glos Homes,Permanent Nursing,Blossom Fields Nursing Home,750.40, 27-Jul-2021
586,Revenue,CAHD,South Glos Users in South Glos Homes,Permanent Nursing,Blossom Fields Nursing Home,750.40, 27-Jul-2021
587,Revenue,CAHD,Covid 19- Spend on behalf of NHS,Respite Planned - Residential,Blossom Fields Nursing Home,3492.50, 27-Jul-2021
588,Revenue,CAHD,North - Community based support,Permanent Residential,Blossom Fields Nursing Home,3800.00, 27-Jul-2021
589,Revenue,CAHD,South Glos Users in South Glos Homes,Permanent Nursing,Blossom Fields Nursing Home,1018.40, 27-Jul-2021
590,Revenue,CAHD,South Glos Users in South Glos Homes,Permanent Nursing,Blossom Fields Nursing Home,750.40, 27-Jul-2021
591,Revenue,CAHD,South Glos Users in South Glos Homes,Permanent Nursing,Blossom Fields Nursing Home,750.40, 27-Jul-2021
592,Revenue,CAHD,Central - Commissioned Services,Respite Planned - Nursing,Blossom Fields Nursing Home,5700.00, 27-Jul-2021
593,Revenue,CAHD,South Glos Users in South Glos Homes,Permanent Nursing,Blossom Fields Nursing Home,1608.00, 27-Jul-2021
594,Revenue,CAHD,Central - Commissioned Services,Permanent Residential,Blossom Fields Nursing Home,3800.00, 27-Jul-2021
595,Revenue,CAHD,South Glos Users in South Glos Homes,Permanent Nursing,Blossom Fields Nursing Home,2063.60, 27-Jul-2021
596,Revenue,CAHD,South Glos Users in South Glos Homes,Permanent Nursing,Blossom Fields Nursing Home,750.40, 27-Jul-2021
597,Revenue,CAHD,Central - Commissioned Services,Permanent Nursing,Blossom Fields Nursing Home,4132.12, 27-Jul-2021
598,Revenue,CAHD,South Glos Users in South Glos Homes,Permanent Nursing,Blossom Fields Nursing Home,750.40, 27-Jul-2021
599,Revenue,CAHD,South Glos Users in South Glos Homes,Permanent Nursing,Blossom Fields Nursing Home,750.40, 27-Jul-2021
600,Revenue,CAHD,South - Commissioned Services,Permanent Nursing,Blossom Fields Nursing Home,4790.76, 27-Jul-2021
601,Revenue,CAHD,South Glos Users in South Glos Homes,Permanent Nursing,Blossom Fields Nursing Home,750.40, 27-Jul-2021
602,Revenue,CAHD,Central - Commissioned Services,Permanent Nursing,Blossom Fields Nursing Home,5123.80, 27-Jul-2021
603,Revenue,CAHD,South Glos Users in South Glos Homes,Permanent Nursing,Blossom Fields Nursing Home,750.40, 27-Jul-2021
604,Revenue,CAHD,Central - Commissioned Services,Permanent Nursing,Blossom Fields Nursing Home,4132.12, 27-Jul-2021
605,Revenue,CAHD,South Glos Users in South Glos Homes,Permanent Nursing,Blossom Fields Nursing Home,750.40, 27-Jul-2021
606,Revenue,CAHD,South - Commissioned Services,Permanent Nursing,Blossom Fields Nursing Home,3943.04, 27-Jul-2021
607,Revenue,CAHD,South Glos Users in South Glos Homes,Permanent Nursing,Blossom Fields Nursing Home,750.40, 27-Jul-2021
608,Revenue,CAHD,North - Community based support,Permanent Nursing,Blossom Fields Nursing Home,4132.12, 27-Jul-2021
609,Revenue,CAHD,South Glos Users in South Glos Homes,Permanent Nursing,Blossom Fields Nursing Home,750.40, 27-Jul-2021
610,Revenue,CAHD,Central - Commissioned Services,Permanent Nursing,Blossom Fields Nursing Home,4132.12, 27-Jul-2021
611,Revenue,CAHD,South Glos Users in South Glos Homes,Permanent Nursing,Blossom Fields Nursing Home,750.40, 27-Jul-2021
612,Revenue,CAHD,Central - Commissioned Services,Fees & Charges Income - General,Blossom Fields Nursing Home,8501.22, 27-Jul-2021
613,Revenue,CAHD,Central - Commissioned Services,Fees & Charges Income - General,Blossom Fields Nursing Home,8488.93, 27-Jul-2021
614,Revenue,CAHD,Central - Commissioned Services,Fees & Charges Income - General,Blossom Fields Nursing Home,12891.96, 27-Jul-2021
615,Revenue,CAHD,Central - Commissioned Services,Permanent Nursing,Blossom Fields Nursing Home,4790.76, 27-Jul-2021
616,Revenue,CAHD,South Glos Users in South Glos Homes,Permanent Nursing,Blossom Fields Nursing Home,750.40, 27-Jul-2021
617,Revenue,CAHD,South - Commissioned Services,Permanent Residential,Blossom Fields Nursing Home,5115.00, 27-Jul-2021
618,Revenue,CAHD,South - Commissioned Services,Permanent Residential,Blossom Fields Nursing Home,3828.57, 27-Jul-2021
619,Revenue,CAHD,South Glos Users in South Glos Homes,Permanent Nursing,Blossom Fields Nursing Home,750.40, 27-Jul-2021
620,Revenue,CAHD,South - Commissioned Services,Permanent Residential,Blossom Fields Nursing Home,535.71, 27-Jul-2021
621,Revenue,CAHD,South Glos Users in South Glos Homes,Permanent Nursing,Blossom Fields Nursing Home,750.40, 27-Jul-2021
622,Revenue,CAHD,Central - Commissioned Services,Permanent Nursing,Blossom Fields Nursing Home,4782.96, 27-Jul-2021
623,Revenue,CAHD,South Glos Users in South Glos Homes,Permanent Nursing,Blossom Fields Nursing Home,750.40, 27-Jul-2021
624,Revenue,CAHD,North - Community based support,Permanent Nursing,Blossom Fields Nursing Home,5319.60, 27-Jul-2021
625,Revenue,CAHD,South Glos Users in South Glos Homes,Permanent Nursing,Blossom Fields Nursing Home,750.40, 27-Jul-2021
626,Revenue,CAHD,South Glos Users in South Glos Homes,Permanent Nursing,Blossom Fields Nursing Home,750.40, 27-Jul-2021
627,Revenue,CAHD,North - S117,Permanent Residential,Blossom Fields Nursing Home,4910.40, 27-Jul-2021
628,Revenue,CAHD,South Glos Users in South Glos Homes,Permanent Nursing,Blossom Fields Nursing Home,750.40, 27-Jul-2021
629,Revenue,CAHD,South Glos Users in South Glos Homes,Permanent Nursing,Blossom Fields Nursing Home,750.40, 27-Jul-2021
630,Revenue,CAHD,North - S117,Permanent Residential,Blossom Fields Nursing Home,5115.00, 27-Jul-2021
631,Revenue,CAHD,South Glos Users in South Glos Homes,Permanent Nursing,Blossom Fields Nursing Home,750.40, 27-Jul-2021
632,Revenue,CAHD,South Glos Users in South Glos Homes,Permanent Nursing,Blossom Fields Nursing Home,750.40, 27-Jul-2021
633,Revenue,CAHD,Central - Commissioned Services,Permanent Nursing,Blossom Fields Nursing Home,4818.72, 27-Jul-2021
634,Revenue,CAHD,South Glos Users in South Glos Homes,Permanent Nursing,Blossom Fields Nursing Home,750.40, 27-Jul-2021
635,Revenue,CAHD,South Glos Users in South Glos Homes,Permanent Nursing,Blossom Fields Nursing Home,750.40, 27-Jul-2021
636,Revenue,CAHD,Central - Commissioned Services,Permanent Nursing,Blossom Fields Nursing Home,4132.12, 27-Jul-2021
637,Revenue,CAHD,South Glos Users in South Glos Homes,Permanent Nursing,Blossom Fields Nursing Home,750.40, 27-Jul-2021
638,Revenue,CAHD,South Glos Users in South Glos Homes,Permanent Nursing,Blossom Fields Nursing Home,750.40, 27-Jul-2021
639,Revenue,CAHD,South Glos Users in South Glos Homes,Permanent Nursing,Blossom Fields Nursing Home,670.00, 27-Jul-2021
640,Revenue,CAHD,South Glos Users in South Glos Homes,Permanent Nursing,Blossom Fields Nursing Home,750.40, 27-Jul-2021
641,Revenue,CAHD,South Glos Users in South Glos Homes,Permanent Nursing,Blossom Fields Nursing Home,750.40, 27-Jul-2021
642,Revenue,CAHD,South Glos Users in South Glos Homes,Permanent Nursing,Blossom Fields Nursing Home,750.40, 27-Jul-2021
643,Revenue,CAHD,South Glos Users in South Glos Homes,Permanent Nursing,Blossom Fields Nursing Home,750.40, 27-Jul-2021
644,Revenue,CAHD,South Glos Users in South Glos Homes,Permanent Nursing,Blossom Fields Nursing Home,750.40, 27-Jul-2021
645,Revenue,CAHD,South - Commissioned Services,Permanent Nursing,Blossom Fields Nursing Home,5000.00, 27-Jul-2021
646,Revenue,CAHD,South Glos Users in South Glos Homes,Permanent Nursing,Blossom Fields Nursing Home,750.40, 27-Jul-2021
647,Revenue,CAHD,Central - Commissioned Services,Permanent Residential,Blossom Fields Nursing Home,5115.00, 27-Jul-2021
648,Revenue,CAHD,South Glos Users in South Glos Homes,Permanent Nursing,Blossom Fields Nursing Home,750.40, 27-Jul-2021
649,Revenue,CAHD,Central - Commissioned Services,Permanent Nursing,Blossom Fields Nursing Home,4910.40, 27-Jul-2021
650,Revenue,CAHD,South Glos Users in South Glos Homes,Permanent Nursing,Blossom Fields Nursing Home,750.40, 27-Jul-2021
651,Revenue,CAHD,Central - Commissioned Services,Permanent Nursing,Blossom Fields Nursing Home,4132.12, 27-Jul-2021
652,Revenue,CAHD,South Glos Users in South Glos Homes,Permanent Nursing,Blossom Fields Nursing Home,750.40, 27-Jul-2021
653,Revenue,CAHD,Central - Commissioned Services,Permanent Nursing,Blossom Fields Nursing Home,5115.00, 27-Jul-2021
654,Revenue,CAHD,South Glos Users in South Glos Homes,Permanent Nursing,Blossom Fields Nursing Home,750.40, 27-Jul-2021
655,Revenue,CAHD,Central - Commissioned Services,Permanent Nursing,Blossom Fields Nursing Home,4132.12, 27-Jul-2021
656,Revenue,CAHD,South Glos Users in South Glos Homes,Permanent Nursing,Blossom Fields Nursing Home,750.40, 27-Jul-2021
657,Revenue,CAHD,Covid - ASC - Infection Control,Grants to Voluntary Bodies,Blossom Fields Nursing Home,1674.65, 07-Jul-2021
658,Revenue,CAHD,ASC Rapid Testing Fund,Grants to Voluntary Bodies,Blossom Fields Nursing Home,1814.25, 07-Jul-2021
659,Revenue,CAHD,Statemented Support Payments to OLAs,Other L.A.s - General,Blue Coat CE VA Primary School,837.09, 27-Jul-2021
660,Revenue,CAHD,Statemented Support Payments to OLAs,Other L.A.s - General,Blue Coat CE VA Primary School,1292.50, 27-Jul-2021
661,Revenue,CAHD,North - Community based support,Permanent Residential,Bluebells,3699.60, 27-Jul-2021
662,Revenue,CAHD,Pathway 1 - Re-Ablement Home Care,Other Small Contracts,Bluebird Care (South Gloucestershire),596.45, 02-Jul-2021
663,Revenue,CAHD,Pathway 1 - Re-Ablement Home Care,Other Small Contracts,Bluebird Care (South Gloucestershire),671.95, 02-Jul-2021
664,Revenue,CAHD,Central - Commissioned Services,Other Small Contracts,Bluebird Care (South Gloucestershire),12289.44, 05-Jul-2021
665,Revenue,CAHD,South - Commissioned Services,Other Small Contracts,Bluebird Care (South Gloucestershire),4927.69, 05-Jul-2021
666,Revenue,CAHD,North - Community based support,Other Small Contracts,Bluebird Care (South Gloucestershire),4178.97, 05-Jul-2021
667,Revenue,CAHD,Resilience Team,Other Small Contracts,Bluebird Care (South Gloucestershire),120.80, 05-Jul-2021
668,Revenue,CAHD,Central - Commissioned Services,Other Small Contracts,Bluebird Care (South Gloucestershire),12045.89, 05-Jul-2021
669,Revenue,CAHD,South - Commissioned Services,Other Small Contracts,Bluebird Care (South Gloucestershire),4701.49, 05-Jul-2021
670,Revenue,CAHD,North - Community based support,Other Small Contracts,Bluebird Care (South Gloucestershire),4422.52, 05-Jul-2021
671,Revenue,CAHD,Resilience Team,Other Small Contracts,Bluebird Care (South Gloucestershire),120.80, 05-Jul-2021
672,Revenue,CAHD,Central - Commissioned Services,Other Small Contracts,Bluebird Care (South Gloucestershire),11713.29, 05-Jul-2021
673,Revenue,CAHD,South - Commissioned Services,Other Small Contracts,Bluebird Care (South Gloucestershire),4866.54, 05-Jul-2021
674,Revenue,CAHD,North - Community based support,Other Small Contracts,Bluebird Care (South Gloucestershire),4005.17, 05-Jul-2021
675,Revenue,CAHD,Resilience Team,Other Small Contracts,Bluebird Care (South Gloucestershire),128.35, 05-Jul-2021
676,Revenue,CAHD,Central - Commissioned Services,Other Small Contracts,Bluebird Care (South Gloucestershire),11768.44, 14-Jul-2021
677,Revenue,CAHD,South - Commissioned Services,Other Small Contracts,Bluebird Care (South Gloucestershire),4609.84, 14-Jul-2021
678,Revenue,CAHD,North - Community based support,Other Small Contracts,Bluebird Care (South Gloucestershire),3987.22, 14-Jul-2021
679,Revenue,CAHD,Resilience Team,Other Small Contracts,Bluebird Care (South Gloucestershire),113.25, 14-Jul-2021
680,Revenue,CAHD,Covid - ASC - Infection Control,Grants to Voluntary Bodies,Bluebird Care (South Gloucestershire),3864.55, 07-Jul-2021
681,Revenue,CAHD,Schools Specific Grant Income,Educational Materials,Booktrust,5038.02, 30-Jul-2021
682,Revenue,CAHD,S28A cases,Permanent Residential,Bradbury House,6505.16, 27-Jul-2021
683,Revenue,CAHD,Jointly Funded H&SC Packages,Permanent Residential,Bradbury House,8441.92, 27-Jul-2021
684,Revenue,CAHD,North - S117,Permanent Residential,Bradbury House,5772.00, 27-Jul-2021
685,Revenue,CAHD,South - Commissioned Services,Permanent Residential,Bradbury House,10168.08, 27-Jul-2021
686,Revenue,CAHD,CSC - Residential Placements,Permanent Residential,Branas ISAF Ltd,21921.34, 26-Jul-2021
687,Revenue,CAHD,North - Community based support,Respite Planned - Nursing,Breadstone House Care Centre,1565.19, 27-Jul-2021
688,Revenue,CAHD,Social Lettings Agency,Rent,Individual,822.73, 23-Jul-2021
689,Revenue,CAHD,Social Lettings Agency,Fees & Charges Income - General,Individual,-102.80, 23-Jul-2021
690,Revenue,CAHD,Social Lettings Agency,Rent,Individual,915.00, 02-Jul-2021
691,Revenue,CAHD,Social Lettings Agency,Fees & Charges Income - General,Individual,-73.20, 02-Jul-2021
692,Revenue,CAHD,Placements OLA Special Schools and RB,Other L.A.s - General,Briarwood School,1268.04, 27-Jul-2021
693,Revenue,CAHD,Placements OLA Special Schools and RB,Other L.A.s - General,Briarwood School,2774.72, 27-Jul-2021
694,Revenue,CAHD,Placements OLA Special Schools and RB,Other L.A.s - General,Briarwood School,1268.04, 27-Jul-2021
695,Revenue,CAHD,North - Community based support,Permanent Residential,Bridge House Care Home,2913.52, 27-Jul-2021
696,Revenue,CAHD,Covid - ASC - Infection Control,Grants to Voluntary Bodies,Bridge House Care Home,2691.68, 30-Jul-2021
697,Revenue,CAHD,ASC Rapid Testing Fund,Grants to Voluntary Bodies,Bridge House Care Home,2739.20, 30-Jul-2021
698,Revenue,CAHD,North - Community based support,Permanent Residential,Bridgwater Court Care Home,10773.64, 27-Jul-2021
699,Revenue,CAHD,Contain Outbreak Mgmt Fund,Other Supplies & Services,Brimsham Green School,1000.00, 22-Jul-2021
700,Revenue,CAHD,Health Inequalities,Grants to Voluntary Bodies,Bristol & Avon Chinese Womens Group,500.00, 01-Jul-2021
701,Revenue,CAHD,Statemented Support Academies,Other Public Bodies,Bristol & South Gloucestershire UTC,635.08, 30-Jul-2021
702,Revenue,CAHD,Statemented Support Academies,Other Public Bodies,Bristol & South Gloucestershire UTC,907.83, 30-Jul-2021
703,Revenue,CAHD,Older People`s Commissioned Se,Grants to Voluntary Bodies,Bristol Area Stroke Foundation,19052.75, 01-Jul-2021
704,Revenue,CAHD,Statemented Support Payments to OLAs,Other L.A.s - General,Bristol Cathedral Choir School,942.58, 27-Jul-2021
705,Revenue,CAHD,Statemented Support Payments to OLAs,Other L.A.s - General,Bristol Cathedral Choir School,880.08, 27-Jul-2021
706,Revenue,CAHD,Schools Specific Grant Income,Other Public Bodies,Bristol Cathedral Choir School,630.00, 13-Jul-2021
707,Revenue,CAHD,Schools Specific Grant Income,Other Public Bodies,Bristol Cathedral Choir School,630.00, 13-Jul-2021
708,Revenue,CAHD,CSC - Agency Fostering,Foster Parent Allowances,Bristol City Council,6100.00, 19-Jul-2021
709,Revenue,CAHD,Early Years High Needs Support,Other Private Contractors,Bristol City Council,728.05, 27-Jul-2021
710,Revenue,CAHD,Statemented Support Payments to OLAs,Other L.A.s - General,Bristol City Council Schools General,897.42, 27-Jul-2021
711,Revenue,CAHD,Statemented Support Payments to OLAs,Other L.A.s - General,Bristol City Council Schools General,635.33, 27-Jul-2021
712,Revenue,CAHD,Schools Specific Grant Income,Other Public Bodies,Bristol City Council Schools General,630.00, 30-Jul-2021
713,Revenue,CAHD,Breakthrough and Inclusion Work,Operational Equipment,Bristol Dyslexia Centre,1100.00, 30-Jul-2021
714,Revenue,CAHD,Covid - ASC - Infection Control,Grants to Voluntary Bodies,Bristol Houses UK Limited,592.25, 30-Jul-2021
715,Revenue,CAHD,ASC Rapid Testing Fund,Grants to Voluntary Bodies,Bristol Houses UK Limited,1497.44, 30-Jul-2021
716,Revenue,CAHD,SEN High Needs - Not at School Base,Other Private Contractors,Bristol Tuition Limited,420.00, 14-Jul-2021
717,Revenue,CAHD,SEN High Needs - Not at School Base,Other Private Contractors,Bristol Tuition Limited,435.00, 30-Jul-2021
718,Revenue,CAHD,SEN High Needs - Not at School Base,Other Private Contractors,Bristol Tuition Limited,475.00, 30-Jul-2021
719,Revenue,CAHD,Schools Specific Grant Income,Educational Materials,Bristol Tuition Limited,3002.00, 09-Jul-2021
720,Revenue,CAHD,Statemented Support Payments to OLAs,Other L.A.s - General,Broadlands Academy,835.17, 27-Jul-2021
721,Revenue,CAHD,North - Community based support,Permanent Residential,Brockhills Farm,3300.00, 27-Jul-2021
722,Revenue,CAHD,North - Community based support,Permanent Residential,Brockhills Farm,3200.00, 27-Jul-2021
723,Revenue,CAHD,Supporting People Programme,Grants to Voluntary Bodies,Bromford  :  Merlin Housing Society,15637.00, 01-Jul-2021
724,Revenue,CAHD,Supporting People Programme,Grants to Voluntary Bodies,Bromford  :  Merlin Housing Society,2741.00, 01-Jul-2021
725,Revenue,CAHD,Supporting People Programme,Grants to Voluntary Bodies,Bromford  :  Merlin Housing Society,22940.00, 01-Jul-2021
726,Revenue,CAHD,Supporting People Programme,Grants to Voluntary Bodies,Bromford  :  Merlin Housing Society,1113.00, 01-Jul-2021
727,Revenue,CAHD,Supporting People Programme,Grants to Voluntary Bodies,Bromford  :  Merlin Housing Society,15637.00, 30-Jul-2021
728,Revenue,CAHD,Supporting People Programme,Grants to Voluntary Bodies,Bromford  :  Merlin Housing Society,2741.00, 30-Jul-2021
729,Revenue,CAHD,Supporting People Programme,Grants to Voluntary Bodies,Bromford  :  Merlin Housing Society,22940.00, 30-Jul-2021
730,Revenue,CAHD,Supporting People Programme,Grants to Voluntary Bodies,Bromford  :  Merlin Housing Society,1113.00, 30-Jul-2021
731,Revenue,CAHD,Discretionary Housing Payment,Other Supplies & Services,Bromford  :  Merlin Housing Society,557.28, 19-Jul-2021
732,Revenue,CAHD,South Glos Users in South Glos Homes,Permanent Nursing,Brunelcare,804.00, 22-Jul-2021
733,Revenue,CAHD,South Glos Users in South Glos Homes,Permanent Nursing,Brunelcare,804.00, 22-Jul-2021
734,Revenue,CAHD,South Glos Users in South Glos Homes,Permanent Nursing,Brunelcare,804.00, 22-Jul-2021
735,Revenue,CAHD,South Glos Users in South Glos Homes,Permanent Nursing,Brunelcare,804.00, 22-Jul-2021
736,Revenue,CAHD,South Glos Users in South Glos Homes,Permanent Nursing,Brunelcare,804.00, 22-Jul-2021
737,Revenue,CAHD,South Glos Users in South Glos Homes,Permanent Nursing,Brunelcare,804.00, 22-Jul-2021
738,Revenue,CAHD,South Glos Users in South Glos Homes,Permanent Nursing,Brunelcare,804.00, 22-Jul-2021
739,Revenue,CAHD,South Glos Users in South Glos Homes,Permanent Nursing,Brunelcare,804.00, 22-Jul-2021
740,Revenue,CAHD,South Glos Users in South Glos Homes,Permanent Nursing,Brunelcare,804.00, 22-Jul-2021
741,Revenue,CAHD,North - S117,Permanent Nursing,Brunelcare,3705.04, 22-Jul-2021
742,Revenue,CAHD,North - S117,Permanent Nursing,Brunelcare,3705.04, 22-Jul-2021
743,Revenue,CAHD,South - Commissioned Services,Permanent Nursing,Brunelcare,3705.04, 22-Jul-2021
744,Revenue,CAHD,South - Commissioned Services,Permanent Nursing,Brunelcare,2654.57, 22-Jul-2021
745,Revenue,CAHD,South - Commissioned Services,Permanent Nursing,Brunelcare,2869.37, 22-Jul-2021
746,Revenue,CAHD,South - Commissioned Services,Permanent Nursing,Brunelcare,2996.66, 22-Jul-2021
747,Revenue,CAHD,South - Commissioned Services,Permanent Nursing,Brunelcare,3069.04, 22-Jul-2021
748,Revenue,CAHD,South - Commissioned Services,Permanent Nursing,Brunelcare,2148.77, 22-Jul-2021
749,Revenue,CAHD,Central - Commissioned Services,Permanent Nursing,Brunelcare,2959.03, 22-Jul-2021
750,Revenue,CAHD,South - Commissioned Services,Respite Planned - Nursing,Brunelcare,617.51, 22-Jul-2021
751,Revenue,CAHD,North - Community based support,Permanent Nursing,Brunelcare,3705.04, 22-Jul-2021
752,Revenue,CAHD,Central - Commissioned Services,Respite Planned - Nursing,Brunelcare,601.21, 22-Jul-2021
753,Revenue,CAHD,Central - Commissioned Services,Respite Planned - Nursing,Brunelcare,988.01, 22-Jul-2021
754,Revenue,CAHD,Central - Commissioned Services,Respite Planned - Nursing,Brunelcare,1953.92, 22-Jul-2021
755,Revenue,CAHD,Central - Commissioned Services,Other Small Contracts,Brunelcare,707.56, 14-Jul-2021
756,Revenue,CAHD,South - Commissioned Services,Other Small Contracts,Brunelcare,16295.16, 14-Jul-2021
757,Revenue,CAHD,South - Commissioned Services,Mentoring,Brunelcare,42.56, 14-Jul-2021
758,Revenue,CAHD,North - Community based support,Other Small Contracts,Brunelcare,420.28, 14-Jul-2021
759,Revenue,CAHD,Central - Commissioned Services,Other Small Contracts,Brunelcare,510.72, 09-Jul-2021
760,Revenue,CAHD,South - Commissioned Services,Other Small Contracts,Brunelcare,15550.36, 09-Jul-2021
761,Revenue,CAHD,South - Commissioned Services,Mentoring,Brunelcare,159.60, 09-Jul-2021
762,Revenue,CAHD,North - Community based support,Other Small Contracts,Brunelcare,383.04, 09-Jul-2021
763,Revenue,CAHD,Central - Commissioned Services,Other Small Contracts,Brunelcare,399.00, 30-Jul-2021
764,Revenue,CAHD,South - Commissioned Services,Other Small Contracts,Brunelcare,15986.60, 30-Jul-2021
765,Revenue,CAHD,South - Commissioned Services,Mentoring,Brunelcare,186.20, 30-Jul-2021
766,Revenue,CAHD,North - Community based support,Other Small Contracts,Brunelcare,414.96, 30-Jul-2021
767,Revenue,CAHD,South - Commissioned Services,Other Small Contracts,Brunelcare,1500.00, 02-Jul-2021
768,Revenue,CAHD,Covid - ASC - Infection Control,Grants to Voluntary Bodies,Brunelcare,2834.00, 07-Jul-2021
769,Revenue,CAHD,Winter Incentive Payments,Other Supplies & Services,Brunelcare,3000.00, 02-Jul-2021
770,Revenue,CAHD,North - S117,Permanent Residential,Buckland Care,3600.00, 27-Jul-2021
771,Revenue,CAHD,Learning Difficulties Development Fund,Other Supplies & Services,Building Circles,3631.75, 19-Jul-2021
772,Revenue,CAHD,Early Years High Needs Support,Other Private Contractors,Busy Bees,910.07, 27-Jul-2021
773,Revenue,CAHD,CSC - Vinney Green Secure Unit,R & M by Departments,BWS Standfast Fire & Security Systems,3123.00, 30-Jul-2021
774,Revenue,CAHD,CSC - Vinney Green Secure Unit,Service Contracts (Premises),BWS Standfast Fire & Security Systems,4170.00, 30-Jul-2021
775,Revenue,CAHD,CSC - Agency Fostering,Foster Parent Allowances,By the Bridge Ltd,4105.80, 15-Jul-2021
776,Revenue,CAHD,CSC - Agency Fostering,Foster Parent Allowances,By the Bridge Ltd,4360.15, 01-Jul-2021
777,Revenue,CAHD,CSC - Agency Fostering,Foster Parent Allowances,By the Bridge Ltd,4242.66, 01-Jul-2021
778,Revenue,CAHD,CSC - Agency Fostering,Foster Parent Allowances,By the Bridge Ltd,4219.50, 30-Jul-2021
779,Revenue,CAHD,CSC - Agency Fostering,Foster Parent Allowances,By the Bridge Ltd,4105.80, 30-Jul-2021
780,Revenue,CAHD,North - Community based support,Permanent Nursing,C31465Clevedon Court Nursing Home,3448.16, 27-Jul-2021
781,Revenue,CAHD,Schools Specific Grant Income,Other Public Bodies,Cabot Learning Federation,630.00, 13-Jul-2021
782,Revenue,CAHD,Schools Specific Grant Income,Other Public Bodies,Cabot Learning Federation,630.00, 13-Jul-2021
783,Revenue,CAHD,Schools Specific Grant Income,Other Public Bodies,Cabot Learning Federation,630.00, 13-Jul-2021
784,Revenue,CAHD,Statemented Support Academies,Other Public Bodies,Cabot Learning Federation,918.71, 30-Jul-2021
785,Revenue,CAHD,Statemented Support Academies,Other Public Bodies,Cabot Learning Federation,1202.39, 30-Jul-2021
786,Revenue,CAHD,Statemented Support Academies,Other Public Bodies,Cabot Learning Federation,908.00, 30-Jul-2021
787,Revenue,CAHD,Statemented Support Academies,Other Public Bodies,Cabot Learning Federation,1666.67, 30-Jul-2021
788,Revenue,CAHD,Statemented Support Academies,Other Public Bodies,Cabot Learning Federation,1666.67, 30-Jul-2021
789,Revenue,CAHD,Statemented Support Academies,Other Public Bodies,Cabot Learning Federation,1103.25, 30-Jul-2021
790,Revenue,CAHD,Statemented Support Academies,Other Public Bodies,Cabot Learning Federation,907.83, 30-Jul-2021
791,Revenue,CAHD,Statemented Support Academies,Other Public Bodies,Cabot Learning Federation,1899.58, 30-Jul-2021
792,Revenue,CAHD,Statemented Support Academies,Other Public Bodies,Cabot Learning Federation,788.22, 30-Jul-2021
793,Revenue,CAHD,Statemented Support Academies,Other Public Bodies,Cabot Learning Federation,957.92, 30-Jul-2021
794,Revenue,CAHD,Statemented Support Academies,Other Public Bodies,Cabot Learning Federation,917.67, 30-Jul-2021
795,Revenue,CAHD,Statemented Support Academies,Other Public Bodies,Cabot Learning Federation,1654.33, 30-Jul-2021
796,Revenue,CAHD,Statemented Support Academies,Other Public Bodies,Cabot Learning Federation,2206.25, 30-Jul-2021
797,Revenue,CAHD,Statemented Support Payments to OLAs,Other L.A.s - General,Cabot Learning Federation,1013.94, 27-Jul-2021
798,Revenue,CAHD,Statemented Support Academies,Other Public Bodies,Cabot Learning Federation,658.75, 30-Jul-2021
799,Revenue,CAHD,Statemented Support Academies,Other Public Bodies,Cabot Learning Federation,1854.42, 30-Jul-2021
800,Revenue,CAHD,Statemented Support Academies,Other Public Bodies,Cabot Learning Federation,632.67, 30-Jul-2021
801,Revenue,CAHD,Statemented Support Academies,Other Public Bodies,Cabot Learning Federation,695.61, 30-Jul-2021
802,Revenue,CAHD,Statemented Support Academies,Other Public Bodies,Cabot Learning Federation,918.75, 30-Jul-2021
803,Revenue,CAHD,Statemented Support Academies,Other Public Bodies,Cabot Learning Federation,975.58, 30-Jul-2021
804,Revenue,CAHD,Statemented Support Academies,Other Public Bodies,Cabot Learning Federation,1052.92, 30-Jul-2021
805,Revenue,CAHD,Academy Resource Base Funding,Other Public Bodies,Cabot Learning Federation,5945.24, 30-Jul-2021
806,Revenue,CAHD,Academy Resource Base Funding,Other Public Bodies,Cabot Learning Federation,1175.88, 30-Jul-2021
807,Revenue,CAHD,Academy Resource Base Funding,Other Public Bodies,Cabot Learning Federation,1702.97, 30-Jul-2021
808,Revenue,CAHD,Academy Resource Base Funding,Other Public Bodies,Cabot Learning Federation,1540.84, 30-Jul-2021
809,Revenue,CAHD,Academy Resource Base Funding,Other Public Bodies,Cabot Learning Federation,1175.88, 30-Jul-2021
810,Revenue,CAHD,Academy Resource Base Funding,Other Public Bodies,Cabot Learning Federation,1175.88, 30-Jul-2021
811,Revenue,CAHD,Academy Resource Base Funding,Other Public Bodies,Cabot Learning Federation,1540.84, 30-Jul-2021
812,Revenue,CAHD,Academy Resource Base Funding,Other Public Bodies,Cabot Learning Federation,1175.88, 30-Jul-2021
813,Revenue,CAHD,Academy Resource Base Funding,Other Public Bodies,Cabot Learning Federation,1175.88, 30-Jul-2021
814,Revenue,CAHD,Academy Resource Base Funding,Other Public Bodies,Cabot Learning Federation,1702.97, 30-Jul-2021
815,Revenue,CAHD,Academy Resource Base Funding,Other Public Bodies,Cabot Learning Federation,648.69, 30-Jul-2021
816,Revenue,CAHD,Academy Resource Base Funding,Other Public Bodies,Cabot Learning Federation,1013.75, 30-Jul-2021
817,Revenue,CAHD,Academy Resource Base Funding,Other Public Bodies,Cabot Learning Federation,648.69, 30-Jul-2021
818,Revenue,CAHD,Academy Resource Base Funding,Other Public Bodies,Cabot Learning Federation,1540.84, 30-Jul-2021
819,Revenue,CAHD,Academy Resource Base Funding,Other Public Bodies,Cabot Learning Federation,2189.53, 30-Jul-2021
820,Revenue,CAHD,Academy Resource Base Funding,Other Public Bodies,Cabot Learning Federation,1175.88, 30-Jul-2021
821,Revenue,CAHD,Academy Resource Base Funding,Other Public Bodies,Cabot Learning Federation,1175.88, 30-Jul-2021
822,Revenue,CAHD,Academy Resource Base Funding,Other Public Bodies,Cabot Learning Federation,1175.88, 30-Jul-2021
823,Revenue,CAHD,Academy Resource Base Funding,Other Public Bodies,Cabot Learning Federation,1175.88, 30-Jul-2021
824,Revenue,CAHD,Academy Resource Base Funding,Other Public Bodies,Cabot Learning Federation,1702.97, 30-Jul-2021
825,Revenue,CAHD,Academy Resource Base Funding,Other Public Bodies,Cabot Learning Federation,1702.97, 30-Jul-2021
826,Revenue,CAHD,Academy Resource Base Funding,Other Public Bodies,Cabot Learning Federation,1702.97, 30-Jul-2021
827,Revenue,CAHD,Academy Resource Base Funding,Other Public Bodies,Cabot Learning Federation,1702.97, 30-Jul-2021
828,Revenue,CAHD,Statemented Support Payments to OLAs,Other L.A.s - General,Cabot Learning Federation,872.46, 27-Jul-2021
829,Revenue,CAHD,Statemented Support Academies,Other Public Bodies,Cabot Learning Federation,1626.67, 30-Jul-2021
830,Revenue,CAHD,Statemented Support Academies,Other Public Bodies,Cabot Learning Federation,710.58, 30-Jul-2021
831,Revenue,CAHD,Statemented Support Academies,Other Public Bodies,Cabot Learning Federation,804.08, 30-Jul-2021
832,Revenue,CAHD,Statemented Support Academies,Other Public Bodies,Cabot Learning Federation,554.13, 30-Jul-2021
833,Revenue,CAHD,Statemented Support Academies,Other Public Bodies,Cabot Learning Federation,742.77, 30-Jul-2021
834,Revenue,CAHD,Statemented Support Academies,Other Public Bodies,Cabot Learning Federation,778.14, 30-Jul-2021
835,Revenue,CAHD,Statemented Support Academies,Other Public Bodies,Cabot Learning Federation,813.51, 30-Jul-2021
836,Revenue,CAHD,Schools Specific Grant Income,Other Public Bodies,Cabot Learning Federation,630.00, 13-Jul-2021
837,Revenue,CAHD,Schools Specific Grant Income,Other Public Bodies,Cabot Learning Federation,630.00, 13-Jul-2021
838,Revenue,CAHD,Schools Specific Grant Income,Other Public Bodies,Cabot Learning Federation,630.00, 13-Jul-2021
839,Revenue,CAHD,Schools Specific Grant Income,Other Public Bodies,Cabot Learning Federation,630.00, 13-Jul-2021
840,Revenue,CAHD,Schools Specific Grant Income,Other Public Bodies,Cabot Learning Federation,630.00, 13-Jul-2021
841,Revenue,CAHD,Schools Specific Grant Income,Other Public Bodies,Cabot Learning Federation,630.00, 13-Jul-2021
842,Revenue,CAHD,Schools Specific Grant Income,Other Public Bodies,Cabot Learning Federation,630.00, 13-Jul-2021
843,Revenue,CAHD,Schools Specific Grant Income,Other Public Bodies,Cabot Learning Federation,630.00, 13-Jul-2021
844,Revenue,CAHD,Schools Specific Grant Income,Other Public Bodies,Cabot Learning Federation,630.00, 13-Jul-2021
845,Revenue,CAHD,Statemented Support Payments to OLAs,Other L.A.s - General,Cabot Learning Federation,601.29, 27-Jul-2021
846,Revenue,CAHD,Statemented Support Academies,Other Public Bodies,Cabot Learning Federation,1131.84, 30-Jul-2021
847,Revenue,CAHD,Statemented Support Academies,Other Public Bodies,Cabot Learning Federation,554.13, 30-Jul-2021
848,Revenue,CAHD,Statemented Support Academies,Other Public Bodies,Cabot Learning Federation,801.72, 30-Jul-2021
849,Revenue,CAHD,Statemented Support Academies,Other Public Bodies,Cabot Learning Federation,1096.47, 30-Jul-2021
850,Revenue,CAHD,Statemented Support Academies,Other Public Bodies,Cabot Learning Federation,730.98, 30-Jul-2021
851,Revenue,CAHD,Statemented Support Academies,Other Public Bodies,Cabot Learning Federation,907.83, 30-Jul-2021
852,Revenue,CAHD,Statemented Support Academies,Other Public Bodies,Cabot Learning Federation,810.99, 30-Jul-2021
853,Revenue,CAHD,Statemented Support Academies,Other Public Bodies,Cabot Learning Federation,1150.25, 30-Jul-2021
854,Revenue,CAHD,Statemented Support Academies,Other Public Bodies,Cabot Learning Federation,801.92, 30-Jul-2021
855,Revenue,CAHD,Statemented Support Academies,Other Public Bodies,Cabot Learning Federation,530.55, 30-Jul-2021
856,Revenue,CAHD,Statemented Support Academies,Other Public Bodies,Cabot Learning Federation,931.41, 30-Jul-2021
857,Revenue,CAHD,Statemented Support Payments to OLAs,Other L.A.s - General,Cabot Learning Federation,1062.33, 27-Jul-2021
858,Revenue,CAHD,Statemented Support Payments to OLAs,Other L.A.s - General,Cabot Learning Federation,888.33, 27-Jul-2021
859,Revenue,CAHD,Statemented Support Academies,Other Public Bodies,Cabot Learning Federation,577.50, 30-Jul-2021
860,Revenue,CAHD,Statemented Support Academies,Other Public Bodies,Cabot Learning Federation,1297.08, 30-Jul-2021
861,Revenue,CAHD,Statemented Support Academies,Other Public Bodies,Cabot Learning Federation,966.83, 30-Jul-2021
862,Revenue,CAHD,Statemented Support Academies,Other Public Bodies,Cabot Learning Federation,872.46, 30-Jul-2021
863,Revenue,CAHD,Statemented Support Payments to OLAs,Other L.A.s - General,Cabot Learning Federation,665.33, 27-Jul-2021
864,Revenue,CAHD,Early Years High Needs Support,Other Private Contractors,Caerleon Childcare,515.70, 27-Jul-2021
865,Revenue,CAHD,North - Community based support,Permanent Nursing,Caernarvon House,4710.40, 27-Jul-2021
866,Revenue,CAHD,North - S117,Permanent Nursing,Caernarvon House,3990.24, 27-Jul-2021
867,Revenue,CAHD,South - Commissioned Services,Permanent Nursing,Caernarvon House,4915.20, 27-Jul-2021
868,Revenue,CAHD,South Glos Users in South Glos Homes,Permanent Nursing,Caernarvon House,1103.52, 27-Jul-2021
869,Revenue,CAHD,South - S117,Permanent Nursing,Caernarvon House,4915.20, 27-Jul-2021
870,Revenue,CAHD,South - Commissioned Services,Permanent Nursing,Caernarvon House,2960.00, 27-Jul-2021
871,Revenue,CAHD,South - Commissioned Services,Respite Emergency - Residential,Caernarvon House,4800.00, 27-Jul-2021
872,Revenue,CAHD,South - Commissioned Services,Permanent Nursing,Caernarvon House,4800.00, 27-Jul-2021
873,Revenue,CAHD,CSC - Care Leavers Independent Living,Training Expenses,Caitlin Cronin,600.00, 30-Jul-2021
874,Revenue,CAHD,Schools Specific Grant Income,Other Public Bodies,Cambian Childcare Ltd,630.00, 26-Jul-2021
875,Revenue,CAHD,CSC - Residential Placements,Permanent Residential,Cambian Childcare Ltd,19042.99, 26-Jul-2021
876,Revenue,CAHD,CSC - Residential Placements,Permanent Residential,Cambian Childcare Ltd,24135.67, 26-Jul-2021
877,Revenue,CAHD,Post 16 High Needs Placements,Other Private Contractors,Cambian Whinfell School Limited,61036.48, 19-Jul-2021
878,Revenue,CAHD,North - Community based support,Day Care / Social Activities,Camphill Communities Thornbury Limited,765.70, 02-Jul-2021
879,Revenue,CAHD,North - Community based support,Other Small Contracts,Camphill Communities Thornbury Limited,1654.90, 02-Jul-2021
880,Revenue,CAHD,North - Community based support,Supported Living,Camphill Communities Thornbury Limited,1086.80, 02-Jul-2021
881,Revenue,CAHD,North - Community based support,Day Care / Social Activities,Camphill Communities Thornbury Limited,820.04, 09-Jul-2021
882,Revenue,CAHD,North - Community based support,Other Small Contracts,Camphill Communities Thornbury Limited,1462.24, 09-Jul-2021
883,Revenue,CAHD,North - Community based support,Supported Living,Camphill Communities Thornbury Limited,1091.74, 09-Jul-2021
884,Revenue,CAHD,North - Community based support,Day Care / Social Activities,Camphill Communities Thornbury Limited,1027.52, 16-Jul-2021
885,Revenue,CAHD,North - Community based support,Other Small Contracts,Camphill Communities Thornbury Limited,1649.96, 16-Jul-2021
886,Revenue,CAHD,North - Community based support,Supported Living,Camphill Communities Thornbury Limited,1096.68, 16-Jul-2021
887,Revenue,CAHD,North - Community based support,Day Care / Social Activities,Camphill Communities Thornbury Limited,1195.48, 23-Jul-2021
888,Revenue,CAHD,North - Community based support,Other Small Contracts,Camphill Communities Thornbury Limited,1654.90, 23-Jul-2021
889,Revenue,CAHD,North - Community based support,Supported Living,Camphill Communities Thornbury Limited,1086.80, 23-Jul-2021
890,Revenue,CAHD,North - Community based support,Day Care / Social Activities,Camphill Communities Thornbury Limited,1037.40, 30-Jul-2021
891,Revenue,CAHD,North - Community based support,Other Small Contracts,Camphill Communities Thornbury Limited,1605.50, 30-Jul-2021
892,Revenue,CAHD,North - Community based support,Supported Living,Camphill Communities Thornbury Limited,1091.74, 30-Jul-2021
893,Revenue,CAHD,North - Community based support,Day Care / Social Activities,Camphill Communities Thornbury Limited,1032.46, 30-Jul-2021
894,Revenue,CAHD,North - Community based support,Other Small Contracts,Camphill Communities Thornbury Limited,1314.04, 30-Jul-2021
895,Revenue,CAHD,North - Community based support,Supported Living,Camphill Communities Thornbury Limited,1091.74, 30-Jul-2021
896,Revenue,CAHD,North - Community based support,Day Care / Social Activities,Camphill Communities Thornbury Limited,1047.28, 30-Jul-2021
897,Revenue,CAHD,North - Community based support,Other Small Contracts,Camphill Communities Thornbury Limited,1645.02, 30-Jul-2021
898,Revenue,CAHD,North - Community based support,Supported Living,Camphill Communities Thornbury Limited,1091.74, 30-Jul-2021
899,Revenue,CAHD,North - Community based support,Day Care / Social Activities,Camphill Communities Thornbury Limited,1215.24, 30-Jul-2021
900,Revenue,CAHD,North - Community based support,Other Small Contracts,Camphill Communities Thornbury Limited,1649.96, 30-Jul-2021
901,Revenue,CAHD,North - Community based support,Supported Living,Camphill Communities Thornbury Limited,879.32, 30-Jul-2021
902,Revenue,CAHD,CSC - Agency Fostering,Foster Parent Allowances,Capstone Foster Care (South West) Limited,3552.90, 01-Jul-2021
903,Revenue,CAHD,CSC - Agency Fostering,Foster Parent Allowances,Capstone Foster Care (South West) Limited,3385.80, 01-Jul-2021
904,Revenue,CAHD,CSC - Agency Fostering,Foster Parent Allowances,Capstone Foster Care (South West) Limited,3385.80, 01-Jul-2021
905,Revenue,CAHD,CSC - Agency Fostering,Foster Parent Allowances,Capstone Foster Care (South West) Limited,3552.90, 01-Jul-2021
906,Revenue,CAHD,CSC - Agency Fostering,Foster Parent Allowances,Capstone Foster Care (South West) Limited,3671.33, 30-Jul-2021
907,Revenue,CAHD,CSC - Agency Fostering,Foster Parent Allowances,Capstone Foster Care (South West) Limited,3498.66, 30-Jul-2021
908,Revenue,CAHD,CSC - Agency Fostering,Foster Parent Allowances,Capstone Foster Care (South West) Limited,3498.66, 30-Jul-2021
909,Revenue,CAHD,CSC - Agency Fostering,Foster Parent Allowances,Capstone Foster Care (South West) Limited,3671.33, 30-Jul-2021
910,Revenue,CAHD,Central - Commissioned Services,Other Small Contracts,Care 1st Homecare,3080.35, 02-Jul-2021
911,Revenue,CAHD,South - Commissioned Services,Other Small Contracts,Care 1st Homecare,3418.09, 02-Jul-2021
912,Revenue,CAHD,Central - Commissioned Services,Other Small Contracts,Care 1st Homecare,3066.70, 12-Jul-2021
913,Revenue,CAHD,South - Commissioned Services,Other Small Contracts,Care 1st Homecare,3408.43, 12-Jul-2021
914,Revenue,CAHD,Central - Commissioned Services,Other Small Contracts,Care 1st Homecare,3066.70, 14-Jul-2021
915,Revenue,CAHD,South - Commissioned Services,Other Small Contracts,Care 1st Homecare,3423.23, 14-Jul-2021
916,Revenue,CAHD,Central - Commissioned Services,Other Small Contracts,Care 1st Homecare,3057.60, 30-Jul-2021
917,Revenue,CAHD,South - Commissioned Services,Other Small Contracts,Care 1st Homecare,3093.94, 30-Jul-2021
918,Revenue,CAHD,Central - Commissioned Services,Other Small Contracts,Care 1st Homecare,3071.25, 30-Jul-2021
919,Revenue,CAHD,South - Commissioned Services,Other Small Contracts,Care 1st Homecare,3150.48, 30-Jul-2021
920,Revenue,CAHD,Covid - ASC - Infection Control,Grants to Voluntary Bodies,Care Futures,814.35, 15-Jul-2021
921,Revenue,CAHD,ASC Rapid Testing Fund,Grants to Voluntary Bodies,Care Futures,2058.98, 15-Jul-2021
922,Revenue,CAHD,North - Community based support,Supported Living,Care Horizons,5560.28, 27-Jul-2021
923,Revenue,CAHD,North - Community based support,Supported Living,Care Horizons,5560.28, 27-Jul-2021
924,Revenue,CAHD,18-25 Year Olds,Other Small Contracts,Care Horizons Limited,80.64, 12-Jul-2021
925,Revenue,CAHD,Central - Commissioned Services,Other Small Contracts,Care Horizons Limited,4457.88, 12-Jul-2021
926,Revenue,CAHD,South - Commissioned Services,Other Small Contracts,Care Horizons Limited,821.52, 12-Jul-2021
927,Revenue,CAHD,North - Community based support,Day Care / Social Activities,Care Horizons Limited,794.72, 12-Jul-2021
928,Revenue,CAHD,North - Community based support,Other Small Contracts,Care Horizons Limited,766.08, 12-Jul-2021
929,Revenue,CAHD,North - Community based support,Mentoring,Care Horizons Limited,120.96, 12-Jul-2021
930,Revenue,CAHD,Younger MH non-res purchasing,Other Small Contracts,Care Horizons Limited,262.08, 12-Jul-2021
931,Revenue,CAHD,Central - Commissioned Services,Other Small Contracts,Care Horizons Limited,4363.52, 22-Jul-2021
932,Revenue,CAHD,South - Commissioned Services,Other Small Contracts,Care Horizons Limited,745.92, 22-Jul-2021
933,Revenue,CAHD,South - Commissioned Services,Mentoring,Care Horizons Limited,141.12, 22-Jul-2021
934,Revenue,CAHD,North - Community based support,Day Care / Social Activities,Care Horizons Limited,473.76, 22-Jul-2021
935,Revenue,CAHD,North - Community based support,Other Small Contracts,Care Horizons Limited,604.80, 22-Jul-2021
936,Revenue,CAHD,North - Community based support,Mentoring,Care Horizons Limited,60.48, 22-Jul-2021
937,Revenue,CAHD,Younger MH non-res purchasing,Other Small Contracts,Care Horizons Limited,262.08, 22-Jul-2021
938,Revenue,CAHD,Central - Commissioned Services,Other Small Contracts,Care Horizons Limited,4313.12, 12-Jul-2021
939,Revenue,CAHD,South - Commissioned Services,Other Small Contracts,Care Horizons Limited,786.24, 12-Jul-2021
940,Revenue,CAHD,South - Commissioned Services,Mentoring,Care Horizons Limited,40.32, 12-Jul-2021
941,Revenue,CAHD,North - Community based support,Day Care / Social Activities,Care Horizons Limited,564.48, 12-Jul-2021
942,Revenue,CAHD,North - Community based support,Other Small Contracts,Care Horizons Limited,604.80, 12-Jul-2021
943,Revenue,CAHD,North - Community based support,Mentoring,Care Horizons Limited,120.96, 12-Jul-2021
944,Revenue,CAHD,Younger MH non-res purchasing,Other Small Contracts,Care Horizons Limited,262.08, 12-Jul-2021
945,Revenue,CAHD,Covid - ASC - Infection Control,Grants to Voluntary Bodies,Care Horizons Limited,1210.89, 07-Jul-2021
946,Revenue,CAHD,South - Commissioned Services,Other Small Contracts,Care Unite Ltd t/a Home Instead Senior Care,1238.16, 02-Jul-2021
947,Revenue,CAHD,South - Commissioned Services,Other Small Contracts,Care Unite Ltd t/a Home Instead Senior Care,1503.48, 02-Jul-2021
948,Revenue,CAHD,South - Commissioned Services,Other Small Contracts,Care Unite Ltd t/a Home Instead Senior Care,891.77, 30-Jul-2021
949,Revenue,CAHD,South - Commissioned Services,Other Small Contracts,Care Unite Ltd t/a Home Instead Senior Care,1503.48, 27-Jul-2021
950,Revenue,CAHD,Covid - ASC - Infection Control,Grants to Voluntary Bodies,Care Unite Ltd t/a Home Instead Senior Care,824.44, 07-Jul-2021
951,Revenue,CAHD,Covid - ASC - Infection Control,Grants to Voluntary Bodies,Caremark (Bristol & South Gloucestershire),691.73, 30-Jul-2021
952,Revenue,CAHD,Covid - ASC - Infection Control,Grants to Voluntary Bodies,Caremark (Bristol & South Gloucestershire),658.71, 30-Jul-2021
953,Revenue,CAHD,Central - Commissioned Services,Other Small Contracts,Carepride Ltd,759.22, 05-Jul-2021
954,Revenue,CAHD,South - Commissioned Services,Other Small Contracts,Carepride Ltd,78.88, 05-Jul-2021
955,Revenue,CAHD,North - Community based support,Other Small Contracts,Carepride Ltd,236.64, 05-Jul-2021
956,Revenue,CAHD,Central - Commissioned Services,Other Small Contracts,Carepride Ltd,509.04, 05-Jul-2021
957,Revenue,CAHD,South - Commissioned Services,Other Small Contracts,Carepride Ltd,100.80, 05-Jul-2021
958,Revenue,CAHD,North - Community based support,Other Small Contracts,Carepride Ltd,211.68, 05-Jul-2021
959,Revenue,CAHD,Central - Commissioned Services,Other Small Contracts,Carepride Ltd,493.92, 14-Jul-2021
960,Revenue,CAHD,South - Commissioned Services,Other Small Contracts,Carepride Ltd,236.88, 14-Jul-2021
961,Revenue,CAHD,North - Community based support,Other Small Contracts,Carepride Ltd,206.64, 14-Jul-2021
962,Revenue,CAHD,Central - Commissioned Services,Other Small Contracts,Carepride Ltd,488.88, 14-Jul-2021
963,Revenue,CAHD,South - Commissioned Services,Other Small Contracts,Carepride Ltd,236.88, 14-Jul-2021
964,Revenue,CAHD,North - Community based support,Other Small Contracts,Carepride Ltd,236.88, 14-Jul-2021
965,Revenue,CAHD,Covid - ASC - Infection Control,Grants to Voluntary Bodies,Carepride Ltd,1236.65, 07-Jul-2021
966,Revenue,CAHD,SLA Grants - Support Serv,Grants to Voluntary Bodies,Carers Support Centre,12275.00, 01-Jul-2021
967,Revenue,CAHD,SLA Grants - Support Serv,Grants to Voluntary Bodies,Carers Support Centre,25275.00, 01-Jul-2021
968,Revenue,CAHD,Health Inequalities,Other Small Contracts,Carers Support Centre,60477.00, 01-Jul-2021
969,Revenue,CAHD,Covid - ASC - Infection Control,Grants to Voluntary Bodies,Caring Comes 1st Limited,1571.58, 07-Jul-2021
970,Revenue,CAHD,Covid - ASC - Infection Control,Grants to Voluntary Bodies,Caring Comes 1st Limited,3245.81, 30-Jul-2021
971,Revenue,CAHD,Covid - ASC - Infection Control,Grants to Voluntary Bodies,Caring Comes 1st Limited,3090.87, 30-Jul-2021
972,Revenue,CAHD,Supporting People Programme,Grants to Voluntary Bodies,Caring for Communities and People,12256.75, 02-Jul-2021
973,Revenue,CAHD,Social Lettings Agency,Rent,Individual,822.73, 21-Jul-2021
974,Revenue,CAHD,Social Lettings Agency,Fees & Charges Income - General,Individual,-102.84, 21-Jul-2021
975,Revenue,CAHD,Statemented Support Academies,Other Public Bodies,Castle School Education Trust,530.55, 30-Jul-2021
976,Revenue,CAHD,Statemented Support Academies,Other Public Bodies,Castle School Education Trust,778.14, 28-Jul-2021
977,Revenue,CAHD,Statemented Support Academies,Other Public Bodies,Castle School Education Trust,821.50, 28-Jul-2021
978,Revenue,CAHD,Statemented Support Academies,Other Public Bodies,Castle School Education Trust,672.03, 28-Jul-2021
979,Revenue,CAHD,Statemented Support Academies,Other Public Bodies,Castle School Education Trust,577.71, 30-Jul-2021
980,Revenue,CAHD,Statemented Support Academies,Other Public Bodies,Castle School Education Trust,505.08, 30-Jul-2021
981,Revenue,CAHD,Statemented Support Academies,Other Public Bodies,Castle School Education Trust,613.08, 30-Jul-2021
982,Revenue,CAHD,Statemented Support Academies,Other Public Bodies,Castle School Education Trust,672.03, 30-Jul-2021
983,Revenue,CAHD,Statemented Support Academies,Other Public Bodies,Castle School Education Trust,1120.05, 28-Jul-2021
984,Revenue,CAHD,Statemented Support Academies,Other Public Bodies,Castle School Education Trust,636.66, 30-Jul-2021
985,Revenue,CAHD,Statemented Support Academies,Other Public Bodies,Castle School Education Trust,589.08, 30-Jul-2021
986,Revenue,CAHD,Statemented Support Academies,Other Public Bodies,Castle School Education Trust,954.99, 30-Jul-2021
987,Revenue,CAHD,Statemented Support Academies,Other Public Bodies,Castle School Education Trust,577.71, 28-Jul-2021
988,Revenue,CAHD,Statemented Support Academies,Other Public Bodies,Castle School Education Trust,1248.33, 30-Jul-2021
989,Revenue,CAHD,Statemented Support Academies,Other Public Bodies,Castle School Education Trust,624.87, 28-Jul-2021
990,Revenue,CAHD,Statemented Support Academies,Other Public Bodies,Castle School Education Trust,1190.79, 30-Jul-2021
991,Revenue,CAHD,Statemented Support Academies,Other Public Bodies,Castle School Education Trust,841.00, 30-Jul-2021
992,Revenue,CAHD,Statemented Support Academies,Other Public Bodies,Castle School Education Trust,1237.95, 28-Jul-2021
993,Revenue,CAHD,Statemented Support Academies,Other Public Bodies,Castle School Education Trust,1061.10, 28-Jul-2021
994,Revenue,CAHD,Statemented Support Academies,Other Public Bodies,Castle School Education Trust,518.76, 28-Jul-2021
995,Revenue,CAHD,Statemented Support Academies,Other Public Bodies,Castle School Education Trust,577.71, 28-Jul-2021
996,Revenue,CAHD,Statemented Support Academies,Other Public Bodies,Castle School Education Trust,1143.63, 28-Jul-2021
997,Revenue,CAHD,Statemented Support Academies,Other Public Bodies,Castle School Education Trust,943.33, 30-Jul-2021
998,Revenue,CAHD,Statemented Support Academies,Other Public Bodies,Castle School Education Trust,754.25, 30-Jul-2021
999,Revenue,CAHD,Schools Specific Grant Income,Other Public Bodies,Castle School Education Trust,630.00, 13-Jul-2021
1000,Revenue,CAHD,Schools Specific Grant Income,Other Public Bodies,Castle School Education Trust,630.00, 13-Jul-2021
1001,Revenue,CAHD,Schools Specific Grant Income,Other Public Bodies,Castle School Education Trust,630.00, 13-Jul-2021
1002,Revenue,CAHD,Schools Specific Grant Income,Other Public Bodies,Castle School Education Trust,630.00, 13-Jul-2021
1003,Revenue,CAHD,Schools Specific Grant Income,Other Public Bodies,Castle School Education Trust,630.00, 13-Jul-2021
1004,Revenue,CAHD,Statemented Support Academies,Other Public Bodies,Castle School Education Trust,1485.54, 30-Jul-2021
1005,Revenue,CAHD,Statemented Support Academies,Other Public Bodies,Castle School Education Trust,1177.50, 30-Jul-2021
1006,Revenue,CAHD,Statemented Support Academies,Other Public Bodies,Castle School Education Trust,888.75, 30-Jul-2021
1007,Revenue,CAHD,Statemented Support Academies,Other Public Bodies,Castle School Education Trust,1261.75, 30-Jul-2021
1008,Revenue,CAHD,Statemented Support Academies,Other Public Bodies,Castle School Education Trust,801.92, 30-Jul-2021
1009,Revenue,CAHD,Statemented Support Academies,Other Public Bodies,Castle School Education Trust,943.17, 30-Jul-2021
1010,Revenue,CAHD,Statemented Support Academies,Other Public Bodies,Castle School Education Trust,1267.50, 30-Jul-2021
1011,Revenue,CAHD,Academy Resource Base Funding,Other Public Bodies,Castle School Education Trust,3397.28, 30-Jul-2021
1012,Revenue,CAHD,Academy Resource Base Funding,Other Public Bodies,Castle School Education Trust,1702.97, 30-Jul-2021
1013,Revenue,CAHD,Academy Resource Base Funding,Other Public Bodies,Castle School Education Trust,1702.97, 30-Jul-2021
1014,Revenue,CAHD,Academy Resource Base Funding,Other Public Bodies,Castle School Education Trust,1702.97, 30-Jul-2021
1015,Revenue,CAHD,Academy Resource Base Funding,Other Public Bodies,Castle School Education Trust,1702.97, 30-Jul-2021
1016,Revenue,CAHD,Academy Resource Base Funding,Other Public Bodies,Castle School Education Trust,1702.97, 30-Jul-2021
1017,Revenue,CAHD,Academy Resource Base Funding,Other Public Bodies,Castle School Education Trust,1702.97, 30-Jul-2021
1018,Revenue,CAHD,Academy Resource Base Funding,Other Public Bodies,Castle School Education Trust,2189.53, 30-Jul-2021
1019,Revenue,CAHD,Academy Resource Base Funding,Other Public Bodies,Castle School Education Trust,1702.97, 30-Jul-2021
1020,Revenue,CAHD,Academy Resource Base Funding,Other Public Bodies,Castle School Education Trust,1702.97, 30-Jul-2021
1021,Revenue,CAHD,Academy Resource Base Funding,Other Public Bodies,Castle School Education Trust,1702.97, 30-Jul-2021
1022,Revenue,CAHD,Academy Resource Base Funding,Other Public Bodies,Castle School Education Trust,2513.88, 30-Jul-2021
1023,Revenue,CAHD,Academy Resource Base Funding,Other Public Bodies,Castle School Education Trust,1702.97, 30-Jul-2021
1024,Revenue,CAHD,Academy Resource Base Funding,Other Public Bodies,Castle School Education Trust,2513.88, 30-Jul-2021
1025,Revenue,CAHD,Academy Resource Base Funding,Other Public Bodies,Castle School Education Trust,2513.88, 30-Jul-2021
1026,Revenue,CAHD,Academy Resource Base Funding,Other Public Bodies,Castle School Education Trust,2513.88, 30-Jul-2021
1027,Revenue,CAHD,Schools Specific Grant Income,Other Public Bodies,Castle School Education Trust,630.00, 13-Jul-2021
1028,Revenue,CAHD,Statemented Support Academies,Other Public Bodies,Castle School Education Trust,672.03, 28-Jul-2021
1029,Revenue,CAHD,Statemented Support Academies,Other Public Bodies,Castle School Education Trust,822.50, 30-Jul-2021
1030,Revenue,CAHD,Statemented Support Academies,Other Public Bodies,Castle School Education Trust,872.46, 30-Jul-2021
1031,Revenue,CAHD,Statemented Support Academies,Other Public Bodies,Castle School Education Trust,848.88, 28-Jul-2021
1032,Revenue,CAHD,Statemented Support Academies,Other Public Bodies,Castle School Education Trust,541.58, 30-Jul-2021
1033,Revenue,CAHD,Statemented Support Academies,Other Public Bodies,Castle School Education Trust,723.17, 30-Jul-2021
1034,Revenue,CAHD,Statemented Support Academies,Other Public Bodies,Castle School Education Trust,956.00, 30-Jul-2021
1035,Revenue,CAHD,Statemented Support Academies,Other Public Bodies,Castle School Education Trust,1628.42, 30-Jul-2021
1036,Revenue,CAHD,Statemented Support Academies,Other Public Bodies,Castle School Education Trust,560.17, 30-Jul-2021
1037,Revenue,CAHD,Schools Specific Grant Income,Other Public Bodies,Castle School Education Trust,630.00, 13-Jul-2021
1038,Revenue,CAHD,Schools Specific Grant Income,Other Public Bodies,Castle School Education Trust,630.00, 13-Jul-2021
1039,Revenue,CAHD,Schools Specific Grant Income,Other Public Bodies,Castle School Education Trust,630.00, 13-Jul-2021
1040,Revenue,CAHD,Schools Specific Grant Income,Other Public Bodies,Castle School Education Trust,630.00, 13-Jul-2021
1041,Revenue,CAHD,Schools Specific Grant Income,Other Public Bodies,Castle School Education Trust,630.00, 13-Jul-2021
1042,Revenue,CAHD,High Needs Support - Strategic Planning,Other Public Bodies,Castle School Education Trust,20559.00, 20-Jul-2021
1043,Revenue,CAHD,Statemented Support Academies,Other Public Bodies,Castle School Education Trust,630.58, 30-Jul-2021
1044,Revenue,CAHD,Statemented Support Academies,Other Public Bodies,Castle School Education Trust,778.14, 30-Jul-2021
1045,Revenue,CAHD,Statemented Support Academies,Other Public Bodies,Castle School Education Trust,941.58, 30-Jul-2021
1046,Revenue,CAHD,Statemented Support Academies,Other Public Bodies,Castle School Education Trust,613.08, 30-Jul-2021
1047,Revenue,CAHD,Schools Specific Grant Income,Other Public Bodies,Castle School Education Trust,630.00, 13-Jul-2021
1048,Revenue,CAHD,Statemented Support Academies,Other Public Bodies,Castle School Educational Turust,1129.92, 30-Jul-2021
1049,Revenue,CAHD,Statemented Support Academies,Other Public Bodies,Castle School Educational Turust,854.00, 30-Jul-2021
1050,Revenue,CAHD,Statemented Support Academies,Other Public Bodies,Castle School Educational Turust,790.58, 30-Jul-2021
1051,Revenue,CAHD,Statemented Support Academies,Other Public Bodies,Castle School Educational Turust,508.67, 30-Jul-2021
1052,Revenue,CAHD,Statemented Support Academies,Other Public Bodies,Castle School Educational Turust,1148.20, 30-Jul-2021
1053,Revenue,CAHD,Statemented Support Academies,Other Public Bodies,Castle School Educational Turust,1097.25, 30-Jul-2021
1054,Revenue,CAHD,Statemented Support Academies,Other Public Bodies,Castle School Educational Turust,580.67, 30-Jul-2021
1055,Revenue,CAHD,Statemented Support Academies,Other Public Bodies,Castle School Educational Turust,925.08, 30-Jul-2021
1056,Revenue,CAHD,Schools Specific Grant Income,Other Public Bodies,Castle School Educational Turust,630.00, 13-Jul-2021
1057,Revenue,CAHD,CSC - Vinney Green Secure Unit,Catering Equipment,Caterkwik Ltd,1110.99, 02-Jul-2021
1058,Revenue,CAHD,Social Lettings Agency,Rent,Individual,658.30, 01-Jul-2021
1059,Revenue,CAHD,Social Lettings Agency,Fees & Charges Income - General,Individual,-52.66, 01-Jul-2021
1060,Revenue,CAHD,Social Lettings Agency,Rent,Individual,658.30, 30-Jul-2021
1061,Revenue,CAHD,Social Lettings Agency,Fees & Charges Income - General,Individual,-52.66, 30-Jul-2021
1062,Revenue,CAHD,South - Commissioned Services,Day Care / Social Activities,Causeway House,5481.44, 27-Jul-2021
1063,Revenue,CAHD,18-25 Year Olds,Day Care / Social Activities,Causeway House,4606.48, 27-Jul-2021
1064,Revenue,CAHD,Central - Commissioned Services,Day Care / Social Activities,Causeway House,4060.72, 27-Jul-2021
1065,Revenue,CAHD,North - Community based support,Day Care / Social Activities,Causeway House,3366.40, 27-Jul-2021
1066,Revenue,CAHD,North - Community based support,Day Care / Social Activities,Causeway House,5015.32, 27-Jul-2021
1067,Revenue,CAHD,Central - Commissioned Services,Day Care / Social Activities,Causeway House,3810.84, 27-Jul-2021
1068,Revenue,CAHD,North - Community based support,Day Care / Social Activities,Causeway House,3285.96, 27-Jul-2021
1069,Revenue,CAHD,North - Community based support,Day Care / Social Activities,Causeway House,593.04, 27-Jul-2021
1070,Revenue,CAHD,Training - Adult Services,Training Expenses,Central Consultancy & Training,10036.25, 21-Jul-2021
1071,Revenue,CAHD,Central - Commissioned Services,Permanent Residential,Cepen Lodge,2741.48, 27-Jul-2021
1072,Revenue,CAHD,South - Commissioned Services,Permanent Residential,Challenge House,2894.80, 27-Jul-2021
1073,Revenue,CAHD,North - S117,Permanent Residential,Challenge House,2626.16, 27-Jul-2021
1074,Revenue,CAHD,North - Community based support,Permanent Residential,Challenge House,2314.96, 27-Jul-2021
1075,Revenue,CAHD,North - Community based support,Permanent Residential,Challenge House,2902.76, 27-Jul-2021
1076,Revenue,CAHD,Central - Commissioned Services,Permanent Residential,Challenge House,2452.44, 27-Jul-2021
1077,Revenue,CAHD,Central - Commissioned Services,Permanent Residential,Challenge House,2819.84, 27-Jul-2021
1078,Revenue,CAHD,North - Community based support,Permanent Residential,Challenge House,2894.76, 27-Jul-2021
1079,Revenue,CAHD,North - S117,Permanent Nursing,Challenge House,2505.52, 27-Jul-2021
1080,Revenue,CAHD,North - Community based support,Permanent Nursing,Challenge House,2505.52, 27-Jul-2021
1081,Revenue,CAHD,North - Community based support,Permanent Nursing,Challenge House,3205.48, 27-Jul-2021
1082,Revenue,CAHD,South Glos Users in South Glos Homes,Permanent Nursing,Challenge House,2733.60, 27-Jul-2021
1083,Revenue,CAHD,South Glos Users in South Glos Homes,Permanent Nursing,Challenge House,750.40, 27-Jul-2021
1084,Revenue,CAHD,South Glos Users in South Glos Homes,Permanent Nursing,Challenge House,578.03, 27-Jul-2021
1085,Revenue,CAHD,South Glos Users in South Glos Homes,Permanent Nursing,Challenge House,2733.60, 27-Jul-2021
1086,Revenue,CAHD,South Glos Users in South Glos Homes,Permanent Nursing,Challenge House,750.40, 27-Jul-2021
1087,Revenue,CAHD,South Glos Users in South Glos Homes,Permanent Nursing,Challenge House,750.40, 27-Jul-2021
1088,Revenue,CAHD,South Glos Users in South Glos Homes,Permanent Nursing,Challenge House,750.40, 27-Jul-2021
1089,Revenue,CAHD,North - Community based support,Permanent Nursing,Challenge House,3478.20, 27-Jul-2021
1090,Revenue,CAHD,South Glos Users in South Glos Homes,Permanent Nursing,Challenge House,750.40, 27-Jul-2021
1091,Revenue,CAHD,South Glos Users in South Glos Homes,Permanent Nursing,Challenge House,750.40, 27-Jul-2021
1092,Revenue,CAHD,South - Commissioned Services,Permanent Nursing,Challenge House,3009.56, 27-Jul-2021
1093,Revenue,CAHD,South Glos Users in South Glos Homes,Permanent Nursing,Challenge House,750.40, 27-Jul-2021
1094,Revenue,CAHD,Covid 19- Spend on behalf of NHS,Respite Planned - Nursing,Challenge House,1238.86, 27-Jul-2021
1095,Revenue,CAHD,North - Community based support,Permanent Nursing,Challenge House,3347.92, 27-Jul-2021
1096,Revenue,CAHD,South Glos Users in South Glos Homes,Permanent Nursing,Challenge House,750.40, 27-Jul-2021
1097,Revenue,CAHD,Central - Commissioned Services,Permanent Residential,Challenge House,6314.29, 27-Jul-2021
1098,Revenue,CAHD,North - Community based support,Permanent Residential,Challenge House,3478.20, 27-Jul-2021
1099,Revenue,CAHD,South - Commissioned Services,Permanent Residential,Challenge House,3130.40, 27-Jul-2021
1100,Revenue,CAHD,South Glos Users in South Glos Homes,Permanent Nursing,Challenge House,750.40, 27-Jul-2021
1101,Revenue,CAHD,South Glos Users in South Glos Homes,Permanent Nursing,Challenge House,750.40, 27-Jul-2021
1102,Revenue,CAHD,South Glos Users in South Glos Homes,Permanent Nursing,Challenge House,750.40, 27-Jul-2021
1103,Revenue,CAHD,North - Community based support,Permanent Nursing,Challenge House,2064.29, 27-Jul-2021
1104,Revenue,CAHD,North - Community based support,Permanent Nursing,Challenge House,1335.71, 27-Jul-2021
1105,Revenue,CAHD,Central - Commissioned Services,Respite Planned - Residential,Challenge House,1377.42, 27-Jul-2021
1106,Revenue,CAHD,South Glos Users in South Glos Homes,Permanent Nursing,Challenge House,750.40, 27-Jul-2021
1107,Revenue,CAHD,South Glos Users in South Glos Homes,Permanent Nursing,Challenge House,750.40, 27-Jul-2021
1108,Revenue,CAHD,South - Commissioned Services,Permanent Residential,Challenge House,3400.00, 27-Jul-2021
1109,Revenue,CAHD,North - Community based support,Permanent Residential,Challenge House,3800.00, 27-Jul-2021
1110,Revenue,CAHD,South Glos Users in South Glos Homes,Permanent Nursing,Challenge House,750.40, 27-Jul-2021
1111,Revenue,CAHD,South - Commissioned Services,Permanent Residential,Challenge House,3600.00, 27-Jul-2021
1112,Revenue,CAHD,Covid 19- Spend on behalf of NHS,Respite Planned - Residential,Challenge House,1730.46, 27-Jul-2021
1113,Revenue,CAHD,South Glos Users in South Glos Homes,Permanent Nursing,Challenge House,750.40, 27-Jul-2021
1114,Revenue,CAHD,South - Commissioned Services,Respite Emergency - Residential,Challenge House,5950.00, 27-Jul-2021
1115,Revenue,CAHD,Covid 19- Spend on behalf of NHS,Respite Planned - Residential,Challenge House,771.43, 27-Jul-2021
1116,Revenue,CAHD,North - Community based support,Permanent Nursing,Challenge House,2950.40, 27-Jul-2021
1117,Revenue,CAHD,South Glos Users in South Glos Homes,Permanent Nursing,Challenge House,750.40, 27-Jul-2021
1118,Revenue,CAHD,North - Community based support,Permanent Nursing,Challenge House,3318.20, 27-Jul-2021
1119,Revenue,CAHD,South Glos Users in South Glos Homes,Permanent Nursing,Challenge House,750.40, 27-Jul-2021
1120,Revenue,CAHD,North - Community based support,Permanent Nursing,Challenge House,3483.92, 27-Jul-2021
1121,Revenue,CAHD,South Glos Users in South Glos Homes,Permanent Nursing,Challenge House,750.40, 27-Jul-2021
1122,Revenue,CAHD,South Glos Users in South Glos Homes,Permanent Nursing,Challenge House,2733.60, 27-Jul-2021
1123,Revenue,CAHD,South Glos Users in South Glos Homes,Permanent Nursing,Challenge House,1208.62, 27-Jul-2021
1124,Revenue,CAHD,South Glos Users in South Glos Homes,Permanent Nursing,Challenge House,750.40, 27-Jul-2021
1125,Revenue,CAHD,North - Community based support,Permanent Residential,Challenge House,3193.00, 27-Jul-2021
1126,Revenue,CAHD,South Glos Users in South Glos Homes,Permanent Nursing,Challenge House,750.40, 27-Jul-2021
1127,Revenue,CAHD,North - Community based support,Permanent Nursing,Challenge House,2950.40, 27-Jul-2021
1128,Revenue,CAHD,South Glos Users in South Glos Homes,Permanent Nursing,Challenge House,750.40, 27-Jul-2021
1129,Revenue,CAHD,South Glos Users in South Glos Homes,Permanent Nursing,Challenge House,750.40, 27-Jul-2021
1130,Revenue,CAHD,Covid - ASC - Infection Control,Grants to Voluntary Bodies,Challenge House,1030.55, 07-Jul-2021
1131,Revenue,CAHD,ASC Rapid Testing Fund,Grants to Voluntary Bodies,Challenge House,1116.46, 07-Jul-2021
1132,Revenue,CAHD,Central - Commissioned Services,Permanent Nursing,Challenge House,2490.00, 27-Jul-2021
1133,Revenue,CAHD,North - Community based support,Permanent Residential,Challenge House,2254.00, 27-Jul-2021
1134,Revenue,CAHD,Central - Commissioned Services,Permanent Nursing,Challenge House,3200.00, 27-Jul-2021
1135,Revenue,CAHD,Early Years High Needs Support,Other Private Contractors,Charfield Pre-School,637.05, 27-Jul-2021
1136,Revenue,CAHD,Statemented Support Academies,Other Public Bodies,Charlton Wood Primary Academy,702.17, 30-Jul-2021
1137,Revenue,CAHD,Central - Commissioned Services,Other Small Contracts,Cherish Able Care Limited,2218.06, 09-Jul-2021
1138,Revenue,CAHD,South - Commissioned Services,Other Small Contracts,Cherish Able Care Limited,7151.15, 09-Jul-2021
1139,Revenue,CAHD,North - Community based support,Other Small Contracts,Cherish Able Care Limited,671.84, 09-Jul-2021
1140,Revenue,CAHD,Central - Commissioned Services,Other Small Contracts,Cherish Able Care Limited,2252.64, 09-Jul-2021
1141,Revenue,CAHD,South - Commissioned Services,Other Small Contracts,Cherish Able Care Limited,7830.67, 09-Jul-2021
1142,Revenue,CAHD,North - Community based support,Other Small Contracts,Cherish Able Care Limited,671.84, 09-Jul-2021
1143,Revenue,CAHD,Central - Commissioned Services,Other Small Contracts,Cherish Able Care Limited,2257.58, 19-Jul-2021
1144,Revenue,CAHD,South - Commissioned Services,Other Small Contracts,Cherish Able Care Limited,8073.69, 19-Jul-2021
1145,Revenue,CAHD,North - Community based support,Other Small Contracts,Cherish Able Care Limited,701.48, 19-Jul-2021
1146,Revenue,CAHD,Central - Commissioned Services,Other Small Contracts,Cherish Able Care Limited,2277.34, 23-Jul-2021
1147,Revenue,CAHD,South - Commissioned Services,Other Small Contracts,Cherish Able Care Limited,7912.73, 23-Jul-2021
1148,Revenue,CAHD,North - Community based support,Other Small Contracts,Cherish Able Care Limited,676.78, 23-Jul-2021
1149,Revenue,CAHD,Covid - ASC - Infection Control,Grants to Voluntary Bodies,Cherish Able Care Limited,1262.42, 07-Jul-2021
1150,Revenue,CAHD,Covid - ASC - Infection Control,Grants to Voluntary Bodies,Cherish Able Care Limited,2554.08, 30-Jul-2021
1151,Revenue,CAHD,Covid - ASC - Infection Control,Grants to Voluntary Bodies,Cherish Able Care Limited,2432.16, 30-Jul-2021
1152,Revenue,CAHD,18-25 Year Olds,Other Small Contracts,Cherry Orchards,1482.00, 07-Jul-2021
1153,Revenue,CAHD,North - Community based support,Other Small Contracts,Cherry Orchards,1649.96, 19-Jul-2021
1154,Revenue,CAHD,South - Commissioned Services,Other Small Contracts,Cherry Orchards,6639.36, 02-Jul-2021
1155,Revenue,CAHD,Central - Commissioned Services,Other Small Contracts,Cherry Orchards,1817.92, 01-Jul-2021
1156,Revenue,CAHD,Central - Commissioned Services,Other Small Contracts,Cherry Orchards,1837.68, 19-Jul-2021
1157,Revenue,CAHD,North - Community based support,Other Small Contracts,Cherry Orchards,790.40, 01-Jul-2021
1158,Revenue,CAHD,North - Community based support,Other Small Contracts,Cherry Orchards,790.40, 29-Jul-2021
1159,Revenue,CAHD,South - Commissioned Services,Supported Living,Cherry Orchards,1938.52, 27-Jul-2021
1160,Revenue,CAHD,South - Commissioned Services,Supported Living,Cherry Orchards,1049.08, 27-Jul-2021
1161,Revenue,CAHD,Younger MH non-res purchasing,Supported Living,Cherry Orchards,1958.12, 27-Jul-2021
1162,Revenue,CAHD,Central - Commissioned Services,Supported Living,Cherry Orchards,2367.92, 27-Jul-2021
1163,Revenue,CAHD,18-25 Year Olds,Supported Living,Cherry Orchards,2077.24, 27-Jul-2021
1164,Revenue,CAHD,North - Community based support,Supported Living,Cherry Orchards,1066.96, 27-Jul-2021
1165,Revenue,CAHD,North - Community based support,Supported Living,Cherry Orchards,2423.15, 27-Jul-2021
1166,Revenue,CAHD,North - Community based support,Supported Living,Cherry Orchards,1938.52, 27-Jul-2021
1167,Revenue,CAHD,S28A cases,Permanent Residential,Chescombe Trust Ltd,10188.80, 27-Jul-2021
1168,Revenue,CAHD,ASC Rapid Testing Fund,Grants to Voluntary Bodies,Chescombe Trust Ltd,530.32, 07-Jul-2021
1169,Revenue,CAHD,Statemented Support Payments to OLAs,Other L.A.s - General,Chester Park Junior School,1625.17, 27-Jul-2021
1170,Revenue,CAHD,CSC - Section 17 - ART,Preventative Assistance,Childrens Contact Services Ltd,2443.60, 16-Jul-2021
1171,Revenue,CAHD,CSC - Section 17 - ART,Preventative Assistance,Childrens Contact Services Ltd,2759.00, 16-Jul-2021
1172,Revenue,CAHD,CSC - Section 17 - ART,Preventative Assistance,Childrens Contact Services Ltd,2879.35, 16-Jul-2021
1173,Revenue,CAHD,CSC - Section 17 - ART,Preventative Assistance,Childrens Contact Services Ltd,2612.00, 16-Jul-2021
1174,Revenue,CAHD,CSC - Section 17 - ART,Preventative Assistance,Childrens Contact Services Ltd,3133.40, 26-Jul-2021
1175,Revenue,CAHD,CSC - Section 17 - ART,Preventative Assistance,Childrens Contact Services Ltd,3253.40, 26-Jul-2021
1176,Revenue,CAHD,CSC - Section 17 - ART,Preventative Assistance,Childrens Contact Services Ltd,3287.40, 09-Jul-2021
1177,Revenue,CAHD,CSC - Section 17 SOUTH,Preventative Assistance,Childrens Contact Services Ltd,1448.80, 12-Jul-2021
1178,Revenue,CAHD,CSC - Section 17 - ART,Preventative Assistance,Childrens Contact Services Ltd,1928.40, 12-Jul-2021
1179,Revenue,CAHD,CSC - Section 17 SOUTH,Preventative Assistance,Childrens Contact Services Ltd,2800.00, 09-Jul-2021
1180,Revenue,CAHD,CSC - Section 17 SOUTH,Preventative Assistance,Childrens Contact Services Ltd,3685.80, 09-Jul-2021
1181,Revenue,CAHD,Early Years High Needs Support,Other Private Contractors,Chipping Sodbury Pre School,645.86, 27-Jul-2021
1182,Revenue,CAHD,School Improvement and Support,Training Expenses,Individual,2000.00, 07-Jul-2021
1183,Revenue,CAHD,Childrens - Safeguarding Board,Training Expenses,Individual,518.88, 23-Jul-2021
1184,Revenue,CAHD,18-25 Year Olds,Other Small Contracts,Cintre,916.20, 09-Jul-2021
1185,Revenue,CAHD,Central - Commissioned Services,Other Small Contracts,Cintre,81.44, 09-Jul-2021
1186,Revenue,CAHD,South - Commissioned Services,Other Small Contracts,Cintre,1303.04, 09-Jul-2021
1187,Revenue,CAHD,18-25 Year Olds,Other Small Contracts,Cintre,916.20, 14-Jul-2021
1188,Revenue,CAHD,Central - Commissioned Services,Other Small Contracts,Cintre,162.88, 14-Jul-2021
1189,Revenue,CAHD,South - Commissioned Services,Other Small Contracts,Cintre,1241.96, 14-Jul-2021
1190,Revenue,CAHD,18-25 Year Olds,Other Small Contracts,Cintre,916.20, 26-Jul-2021
1191,Revenue,CAHD,Central - Commissioned Services,Other Small Contracts,Cintre,203.60, 26-Jul-2021
1192,Revenue,CAHD,South - Commissioned Services,Other Small Contracts,Cintre,1343.76, 26-Jul-2021
1193,Revenue,CAHD,Learning Difficulties,Premises Hire,Circadian Trust,955.50, 09-Jul-2021
1194,Revenue,CAHD,Learning Difficulties,Premises Hire,Circadian Trust,955.50, 30-Jul-2021
1195,Revenue,CAHD,Learning Difficulties,Premises Hire,Circadian Trust,1029.00, 30-Jul-2021
1196,Revenue,CAHD,Breakthrough and Inclusion Work,Membership Fees,Circadian Trust,831.00, 01-Jul-2021
1197,Revenue,CAHD,Learning Difficulties,Premises Hire,Circadian Trust,955.50, 05-Jul-2021
1198,Revenue,CAHD,Learning Difficulties Development Fund,Other Supplies & Services,Circles South West Ltd,3285.00, 08-Jul-2021
1199,Revenue,CAHD,Learning Difficulties Development Fund,Other Supplies & Services,Circles South West Ltd,4500.00, 22-Jul-2021
1200,Revenue,CAHD,Post 16 High Needs Placements,Other Private Contractors,City of Bristol College,148533.23, 30-Jul-2021
1201,Revenue,CAHD,North - Community based support,Permanent Residential,Clare House Residential Home,3000.00, 27-Jul-2021
1202,Revenue,CAHD,Placements OLA Special Schools and RB,Other L.A.s - General,Claremont School,1981.43, 27-Jul-2021
1203,Revenue,CAHD,Placements OLA Special Schools and RB,Other L.A.s - General,Claremont School,645.99, 27-Jul-2021
1204,Revenue,CAHD,Schools Specific Grant Income,Other Public Bodies,Claremont School,630.00, 29-Jul-2021
1205,Revenue,CAHD,Placements OLA Special Schools and RB,Other L.A.s - General,Claremont School,2774.72, 27-Jul-2021
1206,Revenue,CAHD,Placements OLA Special Schools and RB,Other L.A.s - General,Claremont School,645.99, 27-Jul-2021
1207,Revenue,CAHD,Placements OLA Special Schools and RB,Other L.A.s - General,Claremont School,1981.43, 27-Jul-2021
1208,Revenue,CAHD,Placements OLA Special Schools and RB,Other L.A.s - General,Claremont School,645.99, 27-Jul-2021
1209,Revenue,CAHD,Placements OLA Special Schools and RB,Other L.A.s - General,Claremont School,1981.43, 27-Jul-2021
1210,Revenue,CAHD,Placements OLA Special Schools and RB,Other L.A.s - General,Claremont School,645.99, 27-Jul-2021
1211,Revenue,CAHD,Placements OLA Special Schools and RB,Other L.A.s - General,Claremont School,792.58, 27-Jul-2021
1212,Revenue,CAHD,Placements OLA Special Schools and RB,Other L.A.s - General,Claremont School,2774.72, 27-Jul-2021
1213,Revenue,CAHD,Placements OLA Special Schools and RB,Other L.A.s - General,Claremont School,1981.43, 27-Jul-2021
1214,Revenue,CAHD,Placements OLA Special Schools and RB,Other L.A.s - General,Claremont School,645.99, 27-Jul-2021
1215,Revenue,CAHD,Placements OLA Special Schools and RB,Other L.A.s - General,Claremont School,2774.72, 27-Jul-2021
1216,Revenue,CAHD,Placements OLA Special Schools and RB,Other L.A.s - General,Claremont School,645.99, 27-Jul-2021
1217,Revenue,CAHD,Placements OLA Special Schools and RB,Other L.A.s - General,Claremont School,1585.17, 27-Jul-2021
1218,Revenue,CAHD,Placements OLA Special Schools and RB,Other L.A.s - General,Claremont School,516.77, 27-Jul-2021
1219,Revenue,CAHD,Placements OLA Special Schools and RB,Other L.A.s - General,Claremont School,1981.43, 27-Jul-2021
1220,Revenue,CAHD,Placements OLA Special Schools and RB,Other L.A.s - General,Claremont School,645.99, 27-Jul-2021
1221,Revenue,CAHD,South - Commissioned Services,Permanent Residential,Clearwater Care,5414.92, 27-Jul-2021
1222,Revenue,CAHD,South - Commissioned Services,Permanent Residential,Cleeve Lodge,3846.60, 27-Jul-2021
1223,Revenue,CAHD,South - Commissioned Services,Permanent Residential,Cleeve Lodge,1365.28, 27-Jul-2021
1224,Revenue,CAHD,North - S117,Permanent Residential,Cleeve Lodge,3273.60, 27-Jul-2021
1225,Revenue,CAHD,Central - Commissioned Services,Permanent Residential,Cleeve Lodge,3273.60, 27-Jul-2021
1226,Revenue,CAHD,South - Commissioned Services,Permanent Residential,Cleeve Lodge,4501.20, 27-Jul-2021
1227,Revenue,CAHD,Covid 19- Spend on behalf of NHS,Respite Planned - Residential,Cleeve Lodge,3571.43, 27-Jul-2021
1228,Revenue,CAHD,Covid 19- Spend on behalf of NHS,Respite Planned - Residential,Cleeve Lodge,2428.57, 27-Jul-2021
1229,Revenue,CAHD,North - Community based support,Permanent Residential,Cleeve Lodge,4400.00, 27-Jul-2021
1230,Revenue,CAHD,South - Commissioned Services,Permanent Nursing,Cleeve Lodge,3273.60, 27-Jul-2021
1231,Revenue,CAHD,Covid 19- Spend on behalf of NHS,Respite Planned - Residential,Cleeve Lodge,4000.00, 27-Jul-2021
1232,Revenue,CAHD,Covid 19- Spend on behalf of NHS,Respite Planned - Residential,Cleeve Lodge,2000.00, 27-Jul-2021
1233,Revenue,CAHD,South - Commissioned Services,Permanent Residential,Cleeve Lodge,3018.76, 27-Jul-2021
1234,Revenue,CAHD,South - Commissioned Services,Permanent Residential,Cleeve Lodge,4092.00, 27-Jul-2021
1235,Revenue,CAHD,South - Commissioned Services,Permanent Residential,Cleeve Lodge,3069.00, 27-Jul-2021
1236,Revenue,CAHD,South - Commissioned Services,Permanent Residential,Cleeve Lodge,15958.80, 27-Jul-2021
1237,Revenue,CAHD,South - Commissioned Services,Permanent Residential,Cleeve Lodge,15771.43, 27-Jul-2021
1238,Revenue,CAHD,South - Commissioned Services,Permanent Residential,Cleeve Lodge,4910.40, 27-Jul-2021
1239,Revenue,CAHD,South - Commissioned Services,Fees & Charges Income - General,Cleeve Lodge,2711.15, 27-Jul-2021
1240,Revenue,CAHD,South - Commissioned Services,Fees & Charges Income - General,Cleeve Lodge,2728.29, 27-Jul-2021
1241,Revenue,CAHD,Covid - ASC - Infection Control,Grants to Voluntary Bodies,Cleeve Lodge,5551.59, 30-Jul-2021
1242,Revenue,CAHD,Covid - ASC - Infection Control,Grants to Voluntary Bodies,Cleeve Lodge,850.20, 07-Jul-2021
1243,Revenue,CAHD,ASC Rapid Testing Fund,Grants to Voluntary Bodies,Cleeve Lodge,5649.60, 30-Jul-2021
1244,Revenue,CAHD,ASC Rapid Testing Fund,Grants to Voluntary Bodies,Cleeve Lodge,921.08, 07-Jul-2021
1245,Revenue,CAHD,Central - Commissioned Services,Other Small Contracts,Clover Health and Home Care Ltd,857.60, 30-Jul-2021
1246,Revenue,CAHD,Central - Commissioned Services,Other Small Contracts,Clover Health and Home Care Ltd,514.56, 09-Jul-2021
1247,Revenue,CAHD,CSC - Vinney Green Secure Unit,R & M by Departments,Clover Technical Services,3009.00, 23-Jul-2021
1248,Revenue,CAHD,Health Inequalities,Other Small Contracts,Cohesian Consultancy,500.00, 01-Jul-2021
1249,Revenue,CAHD,SLA Grants - Support Serv,Grants to Voluntary Bodies,Cohesian Consultancy,500.00, 01-Jul-2021
1250,Revenue,CAHD,South - Commissioned Services,Permanent Residential,Collingwood Care Home,3400.00, 27-Jul-2021
1251,Revenue,CAHD,North - Community based support,Permanent Residential,Collingwood Care Home,3069.00, 27-Jul-2021
1252,Revenue,CAHD,Covid - ASC - Infection Control,Grants to Voluntary Bodies,Collingwood Care Home,4373.98, 30-Jul-2021
1253,Revenue,CAHD,Covid - ASC - Infection Control,Grants to Voluntary Bodies,Collingwood Care Home,669.85, 07-Jul-2021
1254,Revenue,CAHD,ASC Rapid Testing Fund,Grants to Voluntary Bodies,Collingwood Care Home,4451.20, 30-Jul-2021
1255,Revenue,CAHD,ASC Rapid Testing Fund,Grants to Voluntary Bodies,Collingwood Care Home,725.69, 07-Jul-2021
1256,Revenue,CAHD,South - Commissioned Services,Permanent Residential,Community Theraputic Services,7776.36, 27-Jul-2021
1257,Revenue,CAHD,Jointly Funded H&SC Packages,Permanent Residential,Community Theraputic Services,4992.88, 27-Jul-2021
1258,Revenue,CAHD,North - Community based support,Permanent Residential,Community Theraputic Services,8071.08, 27-Jul-2021
1259,Revenue,CAHD,Jointly Funded H&SC Packages,Permanent Residential,Community Theraputic Services,2076.20, 27-Jul-2021
1260,Revenue,CAHD,CSC - Agency Fostering,Foster Parent Allowances,Compass Fostering West Ltd,1167.30, 02-Jul-2021
1261,Revenue,CAHD,CSC - Agency Fostering,Foster Parent Allowances,Compass Fostering West Ltd,3618.63, 02-Jul-2021
1262,Revenue,CAHD,CSC - Agency Fostering,Foster Parent Allowances,Compass Fostering West Ltd,3437.59, 02-Jul-2021
1263,Revenue,CAHD,CSC - Agency Fostering,Foster Parent Allowances,Compass Fostering West Ltd,3437.59, 02-Jul-2021
1264,Revenue,CAHD,CSC - Agency Fostering,Foster Parent Allowances,Compass Fostering West Ltd,3501.90, 02-Jul-2021
1265,Revenue,CAHD,CSC - Agency Fostering,Foster Parent Allowances,Compass Fostering West Ltd,3501.90, 05-Jul-2021
1266,Revenue,CAHD,Statemented Support Equipment,Educational Supplies & Equipment,Connevans Limited,1557.25, 09-Jul-2021
1267,Revenue,CAHD,Statemented Support Equipment,Educational Supplies & Equipment,Connevans Limited,1577.25, 30-Jul-2021
1268,Revenue,CAHD,Bed and Breakfast,Bed & Breakfast,Connolly & Callaghan Limited,686.70, 08-Jul-2021
1269,Revenue,CAHD,Bed and Breakfast,Bed & Breakfast,Connolly & Callaghan Limited,719.60, 02-Jul-2021
1270,Revenue,CAHD,Bed and Breakfast,Bed & Breakfast,Connolly & Callaghan Limited,727.30, 02-Jul-2021
1271,Revenue,CAHD,Bed and Breakfast,Bed & Breakfast,Connolly & Callaghan Limited,422.80, 02-Jul-2021
1272,Revenue,CAHD,Bed and Breakfast,Bed & Breakfast,Connolly & Callaghan Limited,422.80, 02-Jul-2021
1273,Revenue,CAHD,Bed and Breakfast,Bed & Breakfast,Connolly & Callaghan Limited,593.60, 02-Jul-2021
1274,Revenue,CAHD,Bed and Breakfast,Bed & Breakfast,Connolly & Callaghan Limited,548.80, 02-Jul-2021
1275,Revenue,CAHD,Bed and Breakfast,Bed & Breakfast,Connolly & Callaghan Limited,807.10, 08-Jul-2021
1276,Revenue,CAHD,Bed and Breakfast,Bed & Breakfast,Connolly & Callaghan Limited,422.80, 02-Jul-2021
1277,Revenue,CAHD,Bed and Breakfast,Bed & Breakfast,Connolly & Callaghan Limited,430.50, 02-Jul-2021
1278,Revenue,CAHD,Bed and Breakfast,Bed & Breakfast,Connolly & Callaghan Limited,686.70, 08-Jul-2021
1279,Revenue,CAHD,Bed and Breakfast,Bed & Breakfast,Connolly & Callaghan Limited,719.60, 05-Jul-2021
1280,Revenue,CAHD,Bed and Breakfast,Bed & Breakfast,Connolly & Callaghan Limited,727.30, 05-Jul-2021
1281,Revenue,CAHD,Bed and Breakfast,Bed & Breakfast,Connolly & Callaghan Limited,422.80, 05-Jul-2021
1282,Revenue,CAHD,Bed and Breakfast,Bed & Breakfast,Connolly & Callaghan Limited,422.80, 08-Jul-2021
1283,Revenue,CAHD,Bed and Breakfast,Bed & Breakfast,Connolly & Callaghan Limited,593.60, 05-Jul-2021
1284,Revenue,CAHD,Bed and Breakfast,Bed & Breakfast,Connolly & Callaghan Limited,548.80, 05-Jul-2021
1285,Revenue,CAHD,Bed and Breakfast,Bed & Breakfast,Connolly & Callaghan Limited,807.10, 06-Jul-2021
1286,Revenue,CAHD,Bed and Breakfast,Bed & Breakfast,Connolly & Callaghan Limited,422.80, 05-Jul-2021
1287,Revenue,CAHD,Bed and Breakfast,Bed & Breakfast,Connolly & Callaghan Limited,430.50, 05-Jul-2021
1288,Revenue,CAHD,Bed and Breakfast,Bed & Breakfast,Connolly & Callaghan Limited,610.20, 22-Jul-2021
1289,Revenue,CAHD,Bed and Breakfast,Bed & Breakfast,Connolly & Callaghan Limited,719.60, 20-Jul-2021
1290,Revenue,CAHD,Bed and Breakfast,Bed & Breakfast,Connolly & Callaghan Limited,727.30, 19-Jul-2021
1291,Revenue,CAHD,Bed and Breakfast,Bed & Breakfast,Connolly & Callaghan Limited,422.80, 22-Jul-2021
1292,Revenue,CAHD,Bed and Breakfast,Bed & Breakfast,Connolly & Callaghan Limited,422.80, 22-Jul-2021
1293,Revenue,CAHD,Bed and Breakfast,Bed & Breakfast,Connolly & Callaghan Limited,463.40, 22-Jul-2021
1294,Revenue,CAHD,Bed and Breakfast,Bed & Breakfast,Connolly & Callaghan Limited,593.60, 22-Jul-2021
1295,Revenue,CAHD,Bed and Breakfast,Bed & Breakfast,Connolly & Callaghan Limited,548.80, 19-Jul-2021
1296,Revenue,CAHD,Bed and Breakfast,Bed & Breakfast,Connolly & Callaghan Limited,807.10, 22-Jul-2021
1297,Revenue,CAHD,Bed and Breakfast,Bed & Breakfast,Connolly & Callaghan Limited,422.80, 19-Jul-2021
1298,Revenue,CAHD,Bed and Breakfast,Bed & Breakfast,Connolly & Callaghan Limited,430.50, 19-Jul-2021
1299,Revenue,CAHD,Bed and Breakfast,Bed & Breakfast,Connolly & Callaghan Limited,508.20, 22-Jul-2021
1300,Revenue,CAHD,Bed and Breakfast,Bed & Breakfast,Connolly & Callaghan Limited,719.60, 23-Jul-2021
1301,Revenue,CAHD,Bed and Breakfast,Bed & Breakfast,Connolly & Callaghan Limited,727.30, 23-Jul-2021
1302,Revenue,CAHD,Bed and Breakfast,Bed & Breakfast,Connolly & Callaghan Limited,422.80, 23-Jul-2021
1303,Revenue,CAHD,Bed and Breakfast,Bed & Breakfast,Connolly & Callaghan Limited,422.80, 23-Jul-2021
1304,Revenue,CAHD,Bed and Breakfast,Bed & Breakfast,Connolly & Callaghan Limited,548.80, 23-Jul-2021
1305,Revenue,CAHD,Bed and Breakfast,Bed & Breakfast,Connolly & Callaghan Limited,807.10, 22-Jul-2021
1306,Revenue,CAHD,Bed and Breakfast,Bed & Breakfast,Connolly & Callaghan Limited,422.80, 23-Jul-2021
1307,Revenue,CAHD,Bed and Breakfast,Bed & Breakfast,Connolly & Callaghan Limited,452.40, 23-Jul-2021
1308,Revenue,CAHD,Bed and Breakfast,Bed & Breakfast,Connolly & Callaghan Limited,508.20, 30-Jul-2021
1309,Revenue,CAHD,Bed and Breakfast,Bed & Breakfast,Connolly & Callaghan Limited,719.60, 30-Jul-2021
1310,Revenue,CAHD,Bed and Breakfast,Bed & Breakfast,Connolly & Callaghan Limited,727.30, 30-Jul-2021
1311,Revenue,CAHD,Bed and Breakfast,Bed & Breakfast,Connolly & Callaghan Limited,422.80, 30-Jul-2021
1312,Revenue,CAHD,Bed and Breakfast,Bed & Breakfast,Connolly & Callaghan Limited,422.80, 30-Jul-2021
1313,Revenue,CAHD,Bed and Breakfast,Bed & Breakfast,Connolly & Callaghan Limited,548.80, 30-Jul-2021
1314,Revenue,CAHD,Bed and Breakfast,Bed & Breakfast,Connolly & Callaghan Limited,807.10, 30-Jul-2021
1315,Revenue,CAHD,Bed and Breakfast,Bed & Breakfast,Connolly & Callaghan Limited,422.80, 30-Jul-2021
1316,Revenue,CAHD,Bed and Breakfast,Bed & Breakfast,Connolly & Callaghan Limited,1055.60, 30-Jul-2021
1317,Revenue,CAHD,CSC - Fostering Carer Support,Care Mgt/Asesmnt Staff Pay,Core Assets Expert Services Ltd T/A Carter Brown,1300.00, 26-Jul-2021
1318,Revenue,CAHD,North - Community based support,Permanent Residential,Court House Residential C.H.,3400.00, 27-Jul-2021
1319,Revenue,CAHD,Schools Specific Grant Income,Other Public Bodies,Craig Y Parc School,1000.00, 19-Jul-2021
1320,Revenue,CAHD,Schools Specific Grant Income,Other Public Bodies,Craig Y Parc School,1000.00, 19-Jul-2021
1321,Revenue,CAHD,S28A cases,Permanent Residential,Creedy Court,10597.96, 27-Jul-2021
1322,Revenue,CAHD,S28A cases,Permanent Residential,Creedy Court,8904.92, 27-Jul-2021
1323,Revenue,CAHD,North - Community based support,Permanent Residential,Creedy Court,28108.00, 27-Jul-2021
1324,Revenue,CAHD,Mental Health  Projects,Training Expenses,Cruse Bereavement Care,1000.00, 22-Jul-2021
1325,Revenue,CAHD,Discretionary Housing Payment,Other Supplies & Services,Curo Places Limited,505.57, 06-Jul-2021
1326,Revenue,CAHD,Central - Commissioned Services,Supported Living,Cygnet Healthcare Limited,3380.00, 27-Jul-2021
1327,Revenue,CAHD,South - Commissioned Services,Permanent Residential,Daneswood,12759.56, 27-Jul-2021
1328,Revenue,CAHD,South - Commissioned Services,Day Care / Social Activities,Daneswood,1474.72, 27-Jul-2021
1329,Revenue,CAHD,North - Community based support,Permanent Residential,Daneswood,13579.68, 27-Jul-2021
1330,Revenue,CAHD,Learning Difficulties PSL,Rent,Individual,2400.00, 22-Jul-2021
1331,Revenue,CAHD,South - Commissioned Services,Day Care / Social Activities,Deafblind Uk,1146.00, 16-Jul-2021
1332,Revenue,CAHD,Transport OLA Special Schools and RB,Client Transport,Individual,626.40, 09-Jul-2021
1333,Revenue,CAHD,Central - Commissioned Services,Permanent Residential,Debt Recovery,4326.88, 27-Jul-2021
1334,Revenue,CAHD,South - Commissioned Services,Permanent Residential,Debt Recovery,4422.88, 27-Jul-2021
1335,Revenue,CAHD,North - Community based support,Permanent Nursing,Debt Recovery,4642.48, 27-Jul-2021
1336,Revenue,CAHD,North - Community based support,Permanent Nursing,Debt Recovery,3822.52, 27-Jul-2021
1337,Revenue,CAHD,Central - Commissioned Services,Permanent Residential,Debt Recovery,4786.48, 27-Jul-2021
1338,Revenue,CAHD,North - Community based support,Permanent Nursing,Debt Recovery,5723.32, 27-Jul-2021
1339,Revenue,CAHD,North - Community based support,Permanent Nursing,Debt Recovery,3586.16, 27-Jul-2021
1340,Revenue,CAHD,Central - Commissioned Services,Permanent Nursing,Debt Recovery,5735.40, 27-Jul-2021
1341,Revenue,CAHD,North - Community based support,Permanent Residential,Debt Recovery,3643.92, 27-Jul-2021
1342,Revenue,CAHD,North - Community based support,Permanent Nursing,Debt Recovery,4121.24, 27-Jul-2021
1343,Revenue,CAHD,South - Commissioned Services,Permanent Nursing,Deerhurst Nursing Home,3970.68, 27-Jul-2021
1344,Revenue,CAHD,South Glos Users in South Glos Homes,Permanent Nursing,Deerhurst Nursing Home,750.40, 27-Jul-2021
1345,Revenue,CAHD,South - Commissioned Services,Permanent Nursing,Deerhurst Nursing Home,4501.20, 27-Jul-2021
1346,Revenue,CAHD,South Glos Users in South Glos Homes,Permanent Nursing,Deerhurst Nursing Home,750.40, 27-Jul-2021
1347,Revenue,CAHD,Covid 19- Spend on behalf of NHS,Respite Planned - Nursing,Deerhurst Nursing Home,7485.43, 27-Jul-2021
1348,Revenue,CAHD,South - Commissioned Services,Permanent Nursing,Deerhurst Nursing Home,6804.00, 27-Jul-2021
1349,Revenue,CAHD,South - Commissioned Services,Permanent Nursing,Deerhurst Nursing Home,4762.80, 27-Jul-2021
1350,Revenue,CAHD,Covid 19- Spend on behalf of NHS,Respite Planned - Nursing,Deerhurst Nursing Home,3834.00, 27-Jul-2021
1351,Revenue,CAHD,South Glos Users in South Glos Homes,Permanent Nursing,Deerhurst Nursing Home,1554.40, 27-Jul-2021
1352,Revenue,CAHD,South Glos Users in South Glos Homes,Permanent Nursing,Deerhurst Nursing Home,750.40, 27-Jul-2021
1353,Revenue,CAHD,South - Commissioned Services,Day Care / Social Activities,Deerhurst Nursing Home,581.28, 27-Jul-2021
1354,Revenue,CAHD,South - Commissioned Services,Permanent Nursing,Deerhurst Nursing Home,4800.00, 27-Jul-2021
1355,Revenue,CAHD,South Glos Users in South Glos Homes,Permanent Nursing,Deerhurst Nursing Home,750.40, 27-Jul-2021
1356,Revenue,CAHD,South Glos Users in South Glos Homes,Permanent Nursing,Deerhurst Nursing Home,750.40, 27-Jul-2021
1357,Revenue,CAHD,South - Commissioned Services,Permanent Nursing,Deerhurst Nursing Home,4006.00, 27-Jul-2021
1358,Revenue,CAHD,South Glos Users in South Glos Homes,Permanent Nursing,Deerhurst Nursing Home,750.40, 27-Jul-2021
1359,Revenue,CAHD,North - Community based support,Permanent Nursing,Deerhurst Nursing Home,3891.20, 27-Jul-2021
1360,Revenue,CAHD,South - Commissioned Services,Permanent Nursing,Deerhurst Nursing Home,3965.12, 27-Jul-2021
1361,Revenue,CAHD,South Glos Users in South Glos Homes,Permanent Nursing,Deerhurst Nursing Home,750.40, 27-Jul-2021
1362,Revenue,CAHD,North - Community based support,Permanent Nursing,Deerhurst Nursing Home,4140.00, 27-Jul-2021
1363,Revenue,CAHD,South - Commissioned Services,Permanent Nursing,Deerhurst Nursing Home,4129.40, 27-Jul-2021
1364,Revenue,CAHD,South - Commissioned Services,Permanent Nursing,Deerhurst Nursing Home,4182.12, 27-Jul-2021
1365,Revenue,CAHD,South Glos Users in South Glos Homes,Permanent Nursing,Deerhurst Nursing Home,750.40, 27-Jul-2021
1366,Revenue,CAHD,South Glos Users in South Glos Homes,Permanent Nursing,Deerhurst Nursing Home,750.40, 27-Jul-2021
1367,Revenue,CAHD,South Glos Users in South Glos Homes,Permanent Nursing,Deerhurst Nursing Home,750.40, 27-Jul-2021
1368,Revenue,CAHD,South Glos Users in South Glos Homes,Permanent Nursing,Deerhurst Nursing Home,750.40, 27-Jul-2021
1369,Revenue,CAHD,North - Community based support,Permanent Nursing,Deerhurst Nursing Home,1045.53, 27-Jul-2021
1370,Revenue,CAHD,South - Commissioned Services,Permanent Nursing,Deerhurst Nursing Home,4180.04, 27-Jul-2021
1371,Revenue,CAHD,South Glos Users in South Glos Homes,Permanent Nursing,Deerhurst Nursing Home,750.40, 27-Jul-2021
1372,Revenue,CAHD,South Glos Users in South Glos Homes,Permanent Nursing,Deerhurst Nursing Home,750.40, 27-Jul-2021
1373,Revenue,CAHD,South - Commissioned Services,Permanent Nursing,Deerhurst Nursing Home,4060.32, 27-Jul-2021
1374,Revenue,CAHD,South Glos Users in South Glos Homes,Permanent Nursing,Deerhurst Nursing Home,750.40, 27-Jul-2021
1375,Revenue,CAHD,Central - Commissioned Services,Permanent Nursing,Deerhurst Nursing Home,4535.08, 27-Jul-2021
1376,Revenue,CAHD,South Glos Users in South Glos Homes,Permanent Nursing,Deerhurst Nursing Home,750.40, 27-Jul-2021
1377,Revenue,CAHD,South Glos Users in South Glos Homes,Permanent Nursing,Deerhurst Nursing Home,750.40, 27-Jul-2021
1378,Revenue,CAHD,South Glos Users in South Glos Homes,Permanent Nursing,Deerhurst Nursing Home,750.40, 27-Jul-2021
1379,Revenue,CAHD,South Glos Users in South Glos Homes,Permanent Nursing,Deerhurst Nursing Home,2733.60, 27-Jul-2021
1380,Revenue,CAHD,South Glos Users in South Glos Homes,Permanent Nursing,Deerhurst Nursing Home,1077.25, 27-Jul-2021
1381,Revenue,CAHD,South Glos Users in South Glos Homes,Permanent Nursing,Deerhurst Nursing Home,750.40, 27-Jul-2021
1382,Revenue,CAHD,South Glos Users in South Glos Homes,Permanent Nursing,Deerhurst Nursing Home,750.40, 27-Jul-2021
1383,Revenue,CAHD,South Glos Users in South Glos Homes,Permanent Nursing,Deerhurst Nursing Home,750.40, 27-Jul-2021
1384,Revenue,CAHD,South - Commissioned Services,Permanent Nursing,Deerhurst Nursing Home,4640.32, 27-Jul-2021
1385,Revenue,CAHD,South Glos Users in South Glos Homes,Permanent Nursing,Deerhurst Nursing Home,750.40, 27-Jul-2021
1386,Revenue,CAHD,South Glos Users in South Glos Homes,Permanent Nursing,Deerhurst Nursing Home,750.40, 27-Jul-2021
1387,Revenue,CAHD,South - Commissioned Services,Permanent Nursing,Deerhurst Nursing Home,4179.32, 27-Jul-2021
1388,Revenue,CAHD,South Glos Users in South Glos Homes,Permanent Nursing,Deerhurst Nursing Home,750.40, 27-Jul-2021
1389,Revenue,CAHD,South Glos Users in South Glos Homes,Permanent Nursing,Deerhurst Nursing Home,750.40, 27-Jul-2021
1390,Revenue,CAHD,South - Commissioned Services,Permanent Nursing,Deerhurst Nursing Home,4006.00, 27-Jul-2021
1391,Revenue,CAHD,South Glos Users in South Glos Homes,Permanent Nursing,Deerhurst Nursing Home,750.40, 27-Jul-2021
1392,Revenue,CAHD,South - Commissioned Services,Permanent Residential,Deerhurst Nursing Home,4129.00, 27-Jul-2021
1393,Revenue,CAHD,South - Commissioned Services,Permanent Nursing,Deerhurst Nursing Home,4760.00, 27-Jul-2021
1394,Revenue,CAHD,South Glos Users in South Glos Homes,Permanent Nursing,Deerhurst Nursing Home,750.40, 27-Jul-2021
1395,Revenue,CAHD,South Glos Users in South Glos Homes,Permanent Nursing,Deerhurst Nursing Home,750.40, 27-Jul-2021
1396,Revenue,CAHD,South Glos Users in South Glos Homes,Permanent Nursing,Deerhurst Nursing Home,2733.60, 27-Jul-2021
1397,Revenue,CAHD,South Glos Users in South Glos Homes,Permanent Nursing,Deerhurst Nursing Home,945.87, 27-Jul-2021
1398,Revenue,CAHD,South Glos Users in South Glos Homes,Permanent Nursing,Deerhurst Nursing Home,750.40, 27-Jul-2021
1399,Revenue,CAHD,South Glos Users in South Glos Homes,Permanent Nursing,Deerhurst Nursing Home,750.40, 27-Jul-2021
1400,Revenue,CAHD,South Glos Users in South Glos Homes,Permanent Nursing,Deerhurst Nursing Home,750.40, 27-Jul-2021
1401,Revenue,CAHD,South Glos Users in South Glos Homes,Permanent Nursing,Deerhurst Nursing Home,2572.80, 27-Jul-2021
1402,Revenue,CAHD,South Glos Users in South Glos Homes,Permanent Nursing,Deerhurst Nursing Home,750.40, 27-Jul-2021
1403,Revenue,CAHD,South Glos Users in South Glos Homes,Permanent Nursing,Deerhurst Nursing Home,750.40, 27-Jul-2021
1404,Revenue,CAHD,South Glos Users in South Glos Homes,Permanent Nursing,Deerhurst Nursing Home,2331.60, 27-Jul-2021
1405,Revenue,CAHD,South Glos Users in South Glos Homes,Permanent Nursing,Deerhurst Nursing Home,750.40, 27-Jul-2021
1406,Revenue,CAHD,South Glos Users in South Glos Homes,Permanent Nursing,Deerhurst Nursing Home,2706.80, 27-Jul-2021
1407,Revenue,CAHD,South Glos Users in South Glos Homes,Permanent Nursing,Deerhurst Nursing Home,750.40, 27-Jul-2021
1408,Revenue,CAHD,South - Commissioned Services,Permanent Nursing,Deerhurst Nursing Home,4006.00, 27-Jul-2021
1409,Revenue,CAHD,South - Commissioned Services,Permanent Residential,Deerhurst Nursing Home,3891.20, 27-Jul-2021
1410,Revenue,CAHD,South - Commissioned Services,Permanent Nursing,Deerhurst Nursing Home,15309.00, 27-Jul-2021
1411,Revenue,CAHD,South - Commissioned Services,Permanent Nursing,Deerhurst Nursing Home,4762.80, 27-Jul-2021
1412,Revenue,CAHD,South Glos Users in South Glos Homes,Permanent Nursing,Deerhurst Nursing Home,2733.60, 27-Jul-2021
1413,Revenue,CAHD,South Glos Users in South Glos Homes,Permanent Nursing,Deerhurst Nursing Home,750.40, 27-Jul-2021
1414,Revenue,CAHD,South Glos Users in South Glos Homes,Permanent Nursing,Deerhurst Nursing Home,735.68, 27-Jul-2021
1415,Revenue,CAHD,South Glos Users in South Glos Homes,Permanent Nursing,Deerhurst Nursing Home,750.40, 27-Jul-2021
1416,Revenue,CAHD,South Glos Users in South Glos Homes,Permanent Nursing,Deerhurst Nursing Home,750.40, 27-Jul-2021
1417,Revenue,CAHD,South Glos Users in South Glos Homes,Permanent Nursing,Deerhurst Nursing Home,2733.60, 27-Jul-2021
1418,Revenue,CAHD,South Glos Users in South Glos Homes,Permanent Nursing,Deerhurst Nursing Home,1077.25, 27-Jul-2021
1419,Revenue,CAHD,South Glos Users in South Glos Homes,Permanent Nursing,Deerhurst Nursing Home,750.40, 27-Jul-2021
1420,Revenue,CAHD,South Glos Users in South Glos Homes,Permanent Nursing,Deerhurst Nursing Home,750.40, 27-Jul-2021
1421,Revenue,CAHD,Covid - ASC - Infection Control,Grants to Voluntary Bodies,Deerhurst Nursing Home,1700.40, 07-Jul-2021
1422,Revenue,CAHD,ASC Rapid Testing Fund,Grants to Voluntary Bodies,Deerhurst Nursing Home,1842.15, 07-Jul-2021
1423,Revenue,CAHD,Schools Specific Grant Income,Other Public Bodies,Dene Magna School,630.00, 13-Jul-2021
1424,Revenue,CAHD,South - Commissioned Services,Supported Living,Design House,2776.88, 27-Jul-2021
1425,Revenue,CAHD,South - Commissioned Services,Supported Living,Design House,3196.12, 27-Jul-2021
1426,Revenue,CAHD,South - Commissioned Services,Supported Living,Design House,3123.40, 27-Jul-2021
1427,Revenue,CAHD,18-25 Year Olds,Supported Living,Design House,3083.24, 27-Jul-2021
1428,Revenue,CAHD,18-25 Year Olds,Supported Living,Design House,4094.76, 27-Jul-2021
1429,Revenue,CAHD,Central - Commissioned Services,Day Care / Social Activities,Design House,3060.24, 27-Jul-2021
1430,Revenue,CAHD,18-25 Year Olds,Supported Living,Design House,4094.76, 27-Jul-2021
1431,Revenue,CAHD,South - Commissioned Services,Supported Living,Design House,2753.28, 27-Jul-2021
1432,Revenue,CAHD,South - Commissioned Services,Supported Living,Design House,2753.28, 27-Jul-2021
1433,Revenue,CAHD,South - Commissioned Services,Supported Living,Design House,2242.76, 27-Jul-2021
1434,Revenue,CAHD,South - Commissioned Services,Supported Living,Design House,1978.92, 27-Jul-2021
1435,Revenue,CAHD,South - Commissioned Services,Day Care / Social Activities,Design House,538.88, 27-Jul-2021
1436,Revenue,CAHD,South - Commissioned Services,Supported Living,Design House,2625.96, 27-Jul-2021
1437,Revenue,CAHD,South - Commissioned Services,Supported Living,Design House,4494.32, 27-Jul-2021
1438,Revenue,CAHD,South - Commissioned Services,Supported Living,Design House,61480.92, 27-Jul-2021
1439,Revenue,CAHD,North - Community based support,Supported Living,Design House,4222.51, 27-Jul-2021
1440,Revenue,CAHD,North - Community based support,Supported Living,Design House,3513.00, 27-Jul-2021
1441,Revenue,CAHD,North - Community based support,Supported Living,Design House,1059.63, 27-Jul-2021
1442,Revenue,CAHD,South - Commissioned Services,Supported Living,Design House,3051.76, 27-Jul-2021
1443,Revenue,CAHD,South - Commissioned Services,Supported Living,Design House,2653.28, 27-Jul-2021
1444,Revenue,CAHD,South - Commissioned Services,Supported Living,Design House,2355.60, 27-Jul-2021
1445,Revenue,CAHD,South - Commissioned Services,Supported Living,Design House,2355.60, 27-Jul-2021
1446,Revenue,CAHD,Central - Commissioned Services,Other Small Contracts,Dhek Bhal,247.76, 02-Jul-2021
1447,Revenue,CAHD,South - Commissioned Services,Other Small Contracts,Dhek Bhal,257.28, 02-Jul-2021
1448,Revenue,CAHD,Central - Commissioned Services,Other Small Contracts,Dhek Bhal,301.36, 09-Jul-2021
1449,Revenue,CAHD,South - Commissioned Services,Other Small Contracts,Dhek Bhal,257.28, 09-Jul-2021
1450,Revenue,CAHD,Central - Commissioned Services,Other Small Contracts,Dhek Bhal,328.16, 14-Jul-2021
1451,Revenue,CAHD,South - Commissioned Services,Other Small Contracts,Dhek Bhal,257.28, 14-Jul-2021
1452,Revenue,CAHD,Central - Commissioned Services,Other Small Contracts,Dhek Bhal,328.16, 22-Jul-2021
1453,Revenue,CAHD,South - Commissioned Services,Other Small Contracts,Dhek Bhal,257.28, 22-Jul-2021
1454,Revenue,CAHD,Contain Outbreak Mgmt Fund,Other Supplies & Services,DigiTech Studio Studio,1000.00, 02-Jul-2021
1455,Revenue,CAHD,Training - Adult Services,Training Expenses,Do The Write Thing,850.00, 13-Jul-2021
1456,Revenue,CAHD,Training - Adult Services,Training Expenses,Do The Write Thing,850.00, 15-Jul-2021
1457,Revenue,CAHD,North - Community based support,Permanent Nursing,Douglas House,3599.80, 27-Jul-2021
1458,Revenue,CAHD,Statemented Support Academies,Other Public Bodies,Downend School,978.57, 28-Jul-2021
1459,Revenue,CAHD,Statemented Support Academies,Other Public Bodies,Downend School,660.24, 30-Jul-2021
1460,Revenue,CAHD,Statemented Support Academies,Other Public Bodies,Downend School,1025.73, 28-Jul-2021
1461,Revenue,CAHD,Statemented Support Academies,Other Public Bodies,Downend School,1013.94, 28-Jul-2021
1462,Revenue,CAHD,Statemented Support Academies,Other Public Bodies,Downend School,801.72, 28-Jul-2021
1463,Revenue,CAHD,Statemented Support Academies,Other Public Bodies,Downend School,530.67, 30-Jul-2021
1464,Revenue,CAHD,Statemented Support Academies,Other Public Bodies,Downend School,1108.26, 28-Jul-2021
1465,Revenue,CAHD,Statemented Support Academies,Other Public Bodies,Downend School,554.13, 28-Jul-2021
1466,Revenue,CAHD,Statemented Support Academies,Other Public Bodies,Downend School,666.00, 30-Jul-2021
1467,Revenue,CAHD,Statemented Support Academies,Other Public Bodies,Downend School,1079.67, 30-Jul-2021
1468,Revenue,CAHD,Statemented Support Academies,Other Public Bodies,Downend School,1438.38, 30-Jul-2021
1469,Revenue,CAHD,Statemented Support Academies,Other Public Bodies,Downend School,1709.55, 28-Jul-2021
1470,Revenue,CAHD,Statemented Support Academies,Other Public Bodies,Downend School,1192.50, 30-Jul-2021
1471,Revenue,CAHD,Statemented Support Academies,Other Public Bodies,Downend School,1544.49, 30-Jul-2021
1472,Revenue,CAHD,Social Lettings Agency,Rent,Individual,822.73, 22-Jul-2021
1473,Revenue,CAHD,Social Lettings Agency,Fees & Charges Income - General,Individual,-65.82, 22-Jul-2021
1474,Revenue,CAHD,Adult & Community Learning - Growth Funding,Computer Equipment - Purchase,DSG Retail Limited,4257.96, 23-Jul-2021
1475,Revenue,CAHD,CSC - Vinney Green Secure Unit,Educational Materials,DSG Retail Limited,1040.83, 23-Jul-2021
1476,Revenue,CAHD,Schools Specific Grant Income,Other Public Bodies,Durham School,630.00, 13-Jul-2021
1477,Revenue,CAHD,CSC - Professional Fees Foster Carers,Therapeutic Fostering Fee,Individual,577.00, 02-Jul-2021
1478,Revenue,CAHD,CSC - Professional Fees Foster Carers,Therapeutic Fostering Fee,Individual,577.00, 09-Jul-2021
1479,Revenue,CAHD,CSC - Professional Fees Foster Carers,Therapeutic Fostering Fee,Individual,577.00, 16-Jul-2021
1480,Revenue,CAHD,CSC - Professional Fees Foster Carers,Therapeutic Fostering Fee,Individual,577.00, 23-Jul-2021
1481,Revenue,CAHD,CSC - Professional Fees Foster Carers,Therapeutic Fostering Fee,Individual,577.00, 30-Jul-2021
1482,Revenue,CAHD,North - Community based support,Permanent Residential,East Court,2763.56, 27-Jul-2021
1483,Revenue,CAHD,CSC - Residential Placements,Permanent Residential,East Sussex County Council,5445.00, 29-Jul-2021
1484,Revenue,CAHD,Central - Commissioned Services,Permanent Residential,Edendale Lodge,3000.00, 27-Jul-2021
1485,Revenue,CAHD,Central - Commissioned Services,Permanent Residential,Edgemont House Ltd,7314.29, 27-Jul-2021
1486,Revenue,CAHD,Central - Commissioned Services,Permanent Residential,Edgemont House Ltd,3200.00, 27-Jul-2021
1487,Revenue,CAHD,South - Commissioned Services,Permanent Residential,Edgemont House Ltd,3273.60, 27-Jul-2021
1488,Revenue,CAHD,South - Commissioned Services,Permanent Residential,Edgemont House Ltd,3339.08, 27-Jul-2021
1489,Revenue,CAHD,South - Commissioned Services,Permanent Residential,Edgemont House Ltd,3130.40, 27-Jul-2021
1490,Revenue,CAHD,South - Commissioned Services,Permanent Nursing,Edgemont View Ltd,3580.52, 27-Jul-2021
1491,Revenue,CAHD,South Glos Users in South Glos Homes,Permanent Nursing,Edgemont View Ltd,750.40, 27-Jul-2021
1492,Revenue,CAHD,South - Commissioned Services,Permanent Nursing,Edgemont View Ltd,3478.20, 27-Jul-2021
1493,Revenue,CAHD,South Glos Users in South Glos Homes,Permanent Nursing,Edgemont View Ltd,750.40, 27-Jul-2021
1494,Revenue,CAHD,South - Commissioned Services,Respite Planned - Nursing,Edgemont View Ltd,1750.00, 27-Jul-2021
1495,Revenue,CAHD,South Glos Users in South Glos Homes,Permanent Nursing,Edgemont View Ltd,750.40, 27-Jul-2021
1496,Revenue,CAHD,South - Commissioned Services,Permanent Nursing,Edgemont View Ltd,3478.20, 27-Jul-2021
1497,Revenue,CAHD,South Glos Users in South Glos Homes,Permanent Nursing,Edgemont View Ltd,750.40, 27-Jul-2021
1498,Revenue,CAHD,South Glos Users in South Glos Homes,Permanent Nursing,Edgemont View Ltd,750.40, 27-Jul-2021
1499,Revenue,CAHD,South - Commissioned Services,Permanent Nursing,Edgemont View Ltd,3682.80, 27-Jul-2021
1500,Revenue,CAHD,South Glos Users in South Glos Homes,Permanent Nursing,Edgemont View Ltd,750.40, 27-Jul-2021
1501,Revenue,CAHD,South - Commissioned Services,Permanent Nursing,Edgemont View Ltd,3580.52, 27-Jul-2021
1502,Revenue,CAHD,South Glos Users in South Glos Homes,Permanent Nursing,Edgemont View Ltd,750.40, 27-Jul-2021
1503,Revenue,CAHD,South Glos Users in South Glos Homes,Permanent Nursing,Edgemont View Ltd,750.40, 27-Jul-2021
1504,Revenue,CAHD,South Glos Users in South Glos Homes,Permanent Nursing,Edgemont View Ltd,750.40, 27-Jul-2021
1505,Revenue,CAHD,South - Commissioned Services,Permanent Nursing,Edgemont View Ltd,3989.72, 27-Jul-2021
1506,Revenue,CAHD,South Glos Users in South Glos Homes,Permanent Nursing,Edgemont View Ltd,750.40, 27-Jul-2021
1507,Revenue,CAHD,South Glos Users in South Glos Homes,Permanent Nursing,Edgemont View Ltd,750.40, 27-Jul-2021
1508,Revenue,CAHD,South - Commissioned Services,Permanent Nursing,Edgemont View Ltd,3478.20, 27-Jul-2021
1509,Revenue,CAHD,South Glos Users in South Glos Homes,Permanent Nursing,Edgemont View Ltd,750.40, 27-Jul-2021
1510,Revenue,CAHD,South - Commissioned Services,Permanent Nursing,Edgemont View Ltd,3739.76, 27-Jul-2021
1511,Revenue,CAHD,South Glos Users in South Glos Homes,Permanent Nursing,Edgemont View Ltd,750.40, 27-Jul-2021
1512,Revenue,CAHD,Covid - ASC - Infection Control,Grants to Voluntary Bodies,Edgemont View Ltd,541.04, 07-Jul-2021
1513,Revenue,CAHD,ASC Rapid Testing Fund,Grants to Voluntary Bodies,Edgemont View Ltd,586.14, 07-Jul-2021
1514,Revenue,CAHD,Planning and Partnerships Procurement,Other Supplies & Services,Eldercare,2728.25, 19-Jul-2021
1515,Revenue,CAHD,Planning and Partnerships Procurement,Other Supplies & Services,Eldercare,2648.18, 19-Jul-2021
1516,Revenue,CAHD,Supporting People Programme,Grants to Voluntary Bodies,Elim Housing Association Limited,5362.00, 01-Jul-2021
1517,Revenue,CAHD,Supporting People Programme,Grants to Voluntary Bodies,Elim Housing Association Limited,5362.00, 30-Jul-2021
1518,Revenue,CAHD,Social Lettings Agency,Rent,Individual,1321.36, 13-Jul-2021
1519,Revenue,CAHD,Social Lettings Agency,Fees & Charges Income - General,Individual,-79.30, 13-Jul-2021
1520,Revenue,CAHD,CSC - Legal Fees,Legal Fees,Individual,500.00, 16-Jul-2021
1521,Revenue,CAHD,Minor Adaptations Service,Operational Equipment,Ellis Building Products (EBP) Ltd,497.07, 30-Jul-2021
1522,Revenue,CAHD,North - Community based support,Permanent Residential,Ellsworth House,10016.24, 27-Jul-2021
1523,Revenue,CAHD,Placements OLA Special Schools and RB,Other L.A.s - General,Elmfield School for Deaf Children,1268.04, 27-Jul-2021
1524,Revenue,CAHD,Placements OLA Special Schools and RB,Other L.A.s - General,Elmfield School for Deaf Children,792.41, 27-Jul-2021
1525,Revenue,CAHD,Placements OLA Special Schools and RB,Other L.A.s - General,Elmfield School for Deaf Children,1268.04, 27-Jul-2021
1526,Revenue,CAHD,Placements OLA Special Schools and RB,Other L.A.s - General,Elmfield School for Deaf Children,1268.04, 27-Jul-2021
1527,Revenue,CAHD,Placements OLA Special Schools and RB,Other L.A.s - General,Elmfield School for Deaf Children,1268.04, 27-Jul-2021
1528,Revenue,CAHD,Placements OLA Special Schools and RB,Other L.A.s - General,Elmfield School for Deaf Children,792.41, 27-Jul-2021
1529,Revenue,CAHD,Placements OLA Special Schools and RB,Other L.A.s - General,Elmfield School for Deaf Children,1268.04, 27-Jul-2021
1530,Revenue,CAHD,CSC - Adoption Support Fund,Post Adoption,Individual,556.00, 07-Jul-2021
1531,Revenue,CAHD,Special ISB,Other Public Bodies,Enable Trust,6794.56, 30-Jul-2021
1532,Revenue,CAHD,Special ISB,Other Public Bodies,Enable Trust,1540.84, 30-Jul-2021
1533,Revenue,CAHD,Special ISB,Other Public Bodies,Enable Trust,1175.88, 30-Jul-2021
1534,Revenue,CAHD,Special ISB,Other Public Bodies,Enable Trust,1175.88, 30-Jul-2021
1535,Revenue,CAHD,Special ISB,Other Public Bodies,Enable Trust,892.04, 30-Jul-2021
1536,Revenue,CAHD,Special ISB,Other Public Bodies,Enable Trust,1540.84, 30-Jul-2021
1537,Revenue,CAHD,Special ISB,Other Public Bodies,Enable Trust,1540.84, 30-Jul-2021
1538,Revenue,CAHD,Special ISB,Other Public Bodies,Enable Trust,1175.88, 30-Jul-2021
1539,Revenue,CAHD,Special ISB,Other Public Bodies,Enable Trust,1175.88, 30-Jul-2021
1540,Revenue,CAHD,Special ISB,Other Public Bodies,Enable Trust,1175.88, 30-Jul-2021
1541,Revenue,CAHD,Special ISB,Other Public Bodies,Enable Trust,1540.84, 30-Jul-2021
1542,Revenue,CAHD,Special ISB,Other Public Bodies,Enable Trust,648.69, 30-Jul-2021
1543,Revenue,CAHD,Special ISB,Other Public Bodies,Enable Trust,892.04, 30-Jul-2021
1544,Revenue,CAHD,Special ISB,Other Public Bodies,Enable Trust,892.04, 30-Jul-2021
1545,Revenue,CAHD,Special ISB,Other Public Bodies,Enable Trust,1175.88, 30-Jul-2021
1546,Revenue,CAHD,Special ISB,Other Public Bodies,Enable Trust,1175.88, 30-Jul-2021
1547,Revenue,CAHD,Special ISB,Other Public Bodies,Enable Trust,1175.88, 30-Jul-2021
1548,Revenue,CAHD,Special ISB,Other Public Bodies,Enable Trust,1540.84, 30-Jul-2021
1549,Revenue,CAHD,Special ISB,Other Public Bodies,Enable Trust,648.69, 30-Jul-2021
1550,Revenue,CAHD,Special ISB,Other Public Bodies,Enable Trust,1702.97, 30-Jul-2021
1551,Revenue,CAHD,Special ISB,Other Public Bodies,Enable Trust,1540.84, 30-Jul-2021
1552,Revenue,CAHD,Special ISB,Other Public Bodies,Enable Trust,1175.88, 30-Jul-2021
1553,Revenue,CAHD,Special ISB,Other Public Bodies,Enable Trust,1175.88, 30-Jul-2021
1554,Revenue,CAHD,Special ISB,Other Public Bodies,Enable Trust,892.04, 30-Jul-2021
1555,Revenue,CAHD,Special ISB,Other Public Bodies,Enable Trust,1175.88, 30-Jul-2021
1556,Revenue,CAHD,Special ISB,Other Public Bodies,Enable Trust,892.04, 30-Jul-2021
1557,Revenue,CAHD,Special ISB,Other Public Bodies,Enable Trust,2189.53, 30-Jul-2021
1558,Revenue,CAHD,Special ISB,Other Public Bodies,Enable Trust,1175.88, 30-Jul-2021
1559,Revenue,CAHD,Special ISB,Other Public Bodies,Enable Trust,1175.88, 30-Jul-2021
1560,Revenue,CAHD,Special ISB,Other Public Bodies,Enable Trust,1175.88, 30-Jul-2021
1561,Revenue,CAHD,Special ISB,Other Public Bodies,Enable Trust,1175.88, 30-Jul-2021
1562,Revenue,CAHD,Special ISB,Other Public Bodies,Enable Trust,2189.53, 30-Jul-2021
1563,Revenue,CAHD,Special ISB,Other Public Bodies,Enable Trust,1175.88, 30-Jul-2021
1564,Revenue,CAHD,Special ISB,Other Public Bodies,Enable Trust,1540.84, 30-Jul-2021
1565,Revenue,CAHD,Special ISB,Other Public Bodies,Enable Trust,892.04, 30-Jul-2021
1566,Revenue,CAHD,Special ISB,Other Public Bodies,Enable Trust,1540.84, 30-Jul-2021
1567,Revenue,CAHD,Special ISB,Other Public Bodies,Enable Trust,1175.88, 30-Jul-2021
1568,Revenue,CAHD,Special ISB,Other Public Bodies,Enable Trust,1540.84, 30-Jul-2021
1569,Revenue,CAHD,Special ISB,Other Public Bodies,Enable Trust,1175.88, 30-Jul-2021
1570,Revenue,CAHD,Special ISB,Other Public Bodies,Enable Trust,1540.84, 30-Jul-2021
1571,Revenue,CAHD,Special ISB,Other Public Bodies,Enable Trust,1175.88, 30-Jul-2021
1572,Revenue,CAHD,Special ISB,Other Public Bodies,Enable Trust,1175.88, 30-Jul-2021
1573,Revenue,CAHD,Special ISB,Other Public Bodies,Enable Trust,1175.88, 30-Jul-2021
1574,Revenue,CAHD,Special ISB,Other Public Bodies,Enable Trust,1175.88, 30-Jul-2021
1575,Revenue,CAHD,Special ISB,Other Public Bodies,Enable Trust,2189.53, 30-Jul-2021
1576,Revenue,CAHD,Special ISB,Other Public Bodies,Enable Trust,1540.84, 30-Jul-2021
1577,Revenue,CAHD,Special ISB,Other Public Bodies,Enable Trust,892.04, 30-Jul-2021
1578,Revenue,CAHD,Special ISB,Other Public Bodies,Enable Trust,892.04, 30-Jul-2021
1579,Revenue,CAHD,Special ISB,Other Public Bodies,Enable Trust,1540.84, 30-Jul-2021
1580,Revenue,CAHD,Special ISB,Other Public Bodies,Enable Trust,1540.84, 30-Jul-2021
1581,Revenue,CAHD,Special ISB,Other Public Bodies,Enable Trust,1175.88, 30-Jul-2021
1582,Revenue,CAHD,Special ISB,Other Public Bodies,Enable Trust,1175.88, 30-Jul-2021
1583,Revenue,CAHD,Special ISB,Other Public Bodies,Enable Trust,1540.84, 30-Jul-2021
1584,Revenue,CAHD,Special ISB,Other Public Bodies,Enable Trust,1540.84, 30-Jul-2021
1585,Revenue,CAHD,Special ISB,Other Public Bodies,Enable Trust,1175.88, 30-Jul-2021
1586,Revenue,CAHD,Special ISB,Other Public Bodies,Enable Trust,1175.88, 30-Jul-2021
1587,Revenue,CAHD,Special ISB,Other Public Bodies,Enable Trust,1175.88, 30-Jul-2021
1588,Revenue,CAHD,Special ISB,Other Public Bodies,Enable Trust,1175.88, 30-Jul-2021
1589,Revenue,CAHD,Special ISB,Other Public Bodies,Enable Trust,1175.88, 30-Jul-2021
1590,Revenue,CAHD,Special ISB,Other Public Bodies,Enable Trust,1540.84, 30-Jul-2021
1591,Revenue,CAHD,Special ISB,Other Public Bodies,Enable Trust,2189.53, 30-Jul-2021
1592,Revenue,CAHD,Special ISB,Other Public Bodies,Enable Trust,2189.53, 30-Jul-2021
1593,Revenue,CAHD,Special ISB,Other Public Bodies,Enable Trust,1175.88, 30-Jul-2021
1594,Revenue,CAHD,Special ISB,Other Public Bodies,Enable Trust,648.69, 30-Jul-2021
1595,Revenue,CAHD,Special ISB,Other Public Bodies,Enable Trust,1175.88, 30-Jul-2021
1596,Revenue,CAHD,Special ISB,Other Public Bodies,Enable Trust,1175.88, 30-Jul-2021
1597,Revenue,CAHD,Special ISB,Other Public Bodies,Enable Trust,892.04, 30-Jul-2021
1598,Revenue,CAHD,Special ISB,Other Public Bodies,Enable Trust,1175.88, 30-Jul-2021
1599,Revenue,CAHD,Special ISB,Other Public Bodies,Enable Trust,892.04, 30-Jul-2021
1600,Revenue,CAHD,Special ISB,Other Public Bodies,Enable Trust,1540.84, 30-Jul-2021
1601,Revenue,CAHD,Special ISB,Other Public Bodies,Enable Trust,1175.88, 30-Jul-2021
1602,Revenue,CAHD,Special ISB,Other Public Bodies,Enable Trust,892.04, 30-Jul-2021
1603,Revenue,CAHD,Special ISB,Other Public Bodies,Enable Trust,1540.84, 30-Jul-2021
1604,Revenue,CAHD,Special ISB,Other Public Bodies,Enable Trust,1540.84, 30-Jul-2021
1605,Revenue,CAHD,Special ISB,Other Public Bodies,Enable Trust,1175.88, 30-Jul-2021
1606,Revenue,CAHD,Special ISB,Other Public Bodies,Enable Trust,2189.53, 30-Jul-2021
1607,Revenue,CAHD,Special ISB,Other Public Bodies,Enable Trust,2189.53, 30-Jul-2021
1608,Revenue,CAHD,Special ISB,Other Public Bodies,Enable Trust,2189.53, 30-Jul-2021
1609,Revenue,CAHD,Special ISB,Other Public Bodies,Enable Trust,892.04, 30-Jul-2021
1610,Revenue,CAHD,Special ISB,Other Public Bodies,Enable Trust,892.04, 30-Jul-2021
1611,Revenue,CAHD,Special ISB,Other Public Bodies,Enable Trust,1702.97, 30-Jul-2021
1612,Revenue,CAHD,Special ISB,Other Public Bodies,Enable Trust,1175.88, 30-Jul-2021
1613,Revenue,CAHD,Schools Specific Grant Income,Other Public Bodies,Enable Trust,630.00, 13-Jul-2021
1614,Revenue,CAHD,Schools Specific Grant Income,Other Public Bodies,Enable Trust,630.00, 13-Jul-2021
1615,Revenue,CAHD,Special ISB,Other Public Bodies,Enable Trust,1698.64, 30-Jul-2021
1616,Revenue,CAHD,Special ISB,Other Public Bodies,Enable Trust,1175.88, 30-Jul-2021
1617,Revenue,CAHD,Special ISB,Other Public Bodies,Enable Trust,1702.97, 30-Jul-2021
1618,Revenue,CAHD,Special ISB,Other Public Bodies,Enable Trust,892.04, 30-Jul-2021
1619,Revenue,CAHD,Special ISB,Other Public Bodies,Enable Trust,1702.97, 30-Jul-2021
1620,Revenue,CAHD,Special ISB,Other Public Bodies,Enable Trust,1175.88, 30-Jul-2021
1621,Revenue,CAHD,Special ISB,Other Public Bodies,Enable Trust,2189.53, 30-Jul-2021
1622,Revenue,CAHD,Special ISB,Other Public Bodies,Enable Trust,2189.53, 30-Jul-2021
1623,Revenue,CAHD,Special ISB,Other Public Bodies,Enable Trust,1508.32, 30-Jul-2021
1624,Revenue,CAHD,Special ISB,Other Public Bodies,Enable Trust,892.04, 30-Jul-2021
1625,Revenue,CAHD,Special ISB,Other Public Bodies,Enable Trust,892.04, 30-Jul-2021
1626,Revenue,CAHD,Special ISB,Other Public Bodies,Enable Trust,2513.88, 30-Jul-2021
1627,Revenue,CAHD,Special ISB,Other Public Bodies,Enable Trust,892.04, 30-Jul-2021
1628,Revenue,CAHD,Special ISB,Other Public Bodies,Enable Trust,892.04, 30-Jul-2021
1629,Revenue,CAHD,Special ISB,Other Public Bodies,Enable Trust,1702.97, 30-Jul-2021
1630,Revenue,CAHD,Special ISB,Other Public Bodies,Enable Trust,1702.97, 30-Jul-2021
1631,Revenue,CAHD,Special ISB,Other Public Bodies,Enable Trust,1702.97, 30-Jul-2021
1632,Revenue,CAHD,Special ISB,Other Public Bodies,Enable Trust,1702.97, 30-Jul-2021
1633,Revenue,CAHD,Special ISB,Other Public Bodies,Enable Trust,1175.88, 30-Jul-2021
1634,Revenue,CAHD,Special ISB,Other Public Bodies,Enable Trust,1175.88, 30-Jul-2021
1635,Revenue,CAHD,Special ISB,Other Public Bodies,Enable Trust,1702.97, 30-Jul-2021
1636,Revenue,CAHD,Special ISB,Other Public Bodies,Enable Trust,1702.97, 30-Jul-2021
1637,Revenue,CAHD,Special ISB,Other Public Bodies,Enable Trust,1175.88, 30-Jul-2021
1638,Revenue,CAHD,Special ISB,Other Public Bodies,Enable Trust,1702.97, 30-Jul-2021
1639,Revenue,CAHD,Special ISB,Other Public Bodies,Enable Trust,1175.88, 30-Jul-2021
1640,Revenue,CAHD,Special ISB,Other Public Bodies,Enable Trust,1175.88, 30-Jul-2021
1641,Revenue,CAHD,Special ISB,Other Public Bodies,Enable Trust,1175.88, 30-Jul-2021
1642,Revenue,CAHD,Special ISB,Other Public Bodies,Enable Trust,1175.88, 30-Jul-2021
1643,Revenue,CAHD,Special ISB,Other Public Bodies,Enable Trust,1175.88, 30-Jul-2021
1644,Revenue,CAHD,Special ISB,Other Public Bodies,Enable Trust,1175.88, 30-Jul-2021
1645,Revenue,CAHD,Special ISB,Other Public Bodies,Enable Trust,2189.53, 30-Jul-2021
1646,Revenue,CAHD,Special ISB,Other Public Bodies,Enable Trust,1702.97, 30-Jul-2021
1647,Revenue,CAHD,Special ISB,Other Public Bodies,Enable Trust,1702.97, 30-Jul-2021
1648,Revenue,CAHD,Special ISB,Other Public Bodies,Enable Trust,892.04, 30-Jul-2021
1649,Revenue,CAHD,Special ISB,Other Public Bodies,Enable Trust,648.69, 30-Jul-2021
1650,Revenue,CAHD,Special ISB,Other Public Bodies,Enable Trust,1175.88, 30-Jul-2021
1651,Revenue,CAHD,Special ISB,Other Public Bodies,Enable Trust,892.04, 30-Jul-2021
1652,Revenue,CAHD,Special ISB,Other Public Bodies,Enable Trust,1175.88, 30-Jul-2021
1653,Revenue,CAHD,Special ISB,Other Public Bodies,Enable Trust,1702.97, 30-Jul-2021
1654,Revenue,CAHD,Special ISB,Other Public Bodies,Enable Trust,1540.84, 30-Jul-2021
1655,Revenue,CAHD,Special ISB,Other Public Bodies,Enable Trust,892.04, 30-Jul-2021
1656,Revenue,CAHD,Special ISB,Other Public Bodies,Enable Trust,1702.97, 30-Jul-2021
1657,Revenue,CAHD,Special ISB,Other Public Bodies,Enable Trust,1175.88, 30-Jul-2021
1658,Revenue,CAHD,Special ISB,Other Public Bodies,Enable Trust,1175.88, 30-Jul-2021
1659,Revenue,CAHD,Special ISB,Other Public Bodies,Enable Trust,1175.88, 30-Jul-2021
1660,Revenue,CAHD,Special ISB,Other Public Bodies,Enable Trust,892.04, 30-Jul-2021
1661,Revenue,CAHD,Special ISB,Other Public Bodies,Enable Trust,892.04, 30-Jul-2021
1662,Revenue,CAHD,Special ISB,Other Public Bodies,Enable Trust,892.04, 30-Jul-2021
1663,Revenue,CAHD,Special ISB,Other Public Bodies,Enable Trust,1175.88, 30-Jul-2021
1664,Revenue,CAHD,Special ISB,Other Public Bodies,Enable Trust,892.04, 30-Jul-2021
1665,Revenue,CAHD,Special ISB,Other Public Bodies,Enable Trust,1175.88, 30-Jul-2021
1666,Revenue,CAHD,Special ISB,Other Public Bodies,Enable Trust,1175.88, 30-Jul-2021
1667,Revenue,CAHD,Special ISB,Other Public Bodies,Enable Trust,892.04, 30-Jul-2021
1668,Revenue,CAHD,Special ISB,Other Public Bodies,Enable Trust,892.04, 30-Jul-2021
1669,Revenue,CAHD,Special ISB,Other Public Bodies,Enable Trust,1175.88, 30-Jul-2021
1670,Revenue,CAHD,Special ISB,Other Public Bodies,Enable Trust,1175.88, 30-Jul-2021
1671,Revenue,CAHD,Special ISB,Other Public Bodies,Enable Trust,1175.88, 30-Jul-2021
1672,Revenue,CAHD,Special ISB,Other Public Bodies,Enable Trust,1702.97, 30-Jul-2021
1673,Revenue,CAHD,Special ISB,Other Public Bodies,Enable Trust,1175.88, 30-Jul-2021
1674,Revenue,CAHD,Special ISB,Other Public Bodies,Enable Trust,892.04, 30-Jul-2021
1675,Revenue,CAHD,Special ISB,Other Public Bodies,Enable Trust,892.04, 30-Jul-2021
1676,Revenue,CAHD,Special ISB,Other Public Bodies,Enable Trust,2189.53, 30-Jul-2021
1677,Revenue,CAHD,Special ISB,Other Public Bodies,Enable Trust,1175.88, 30-Jul-2021
1678,Revenue,CAHD,Special ISB,Other Public Bodies,Enable Trust,892.04, 30-Jul-2021
1679,Revenue,CAHD,Special ISB,Other Public Bodies,Enable Trust,2189.53, 30-Jul-2021
1680,Revenue,CAHD,Special ISB,Other Public Bodies,Enable Trust,1540.84, 30-Jul-2021
1681,Revenue,CAHD,Special ISB,Other Public Bodies,Enable Trust,648.69, 30-Jul-2021
1682,Revenue,CAHD,Special ISB,Other Public Bodies,Enable Trust,1175.88, 30-Jul-2021
1683,Revenue,CAHD,Special ISB,Other Public Bodies,Enable Trust,2189.53, 30-Jul-2021
1684,Revenue,CAHD,Special ISB,Other Public Bodies,Enable Trust,1175.88, 30-Jul-2021
1685,Revenue,CAHD,Special ISB,Other Public Bodies,Enable Trust,2189.53, 30-Jul-2021
1686,Revenue,CAHD,Special ISB,Other Public Bodies,Enable Trust,1021.76, 30-Jul-2021
1687,Revenue,CAHD,Special ISB,Other Public Bodies,Enable Trust,1702.97, 30-Jul-2021
1688,Revenue,CAHD,Special ISB,Other Public Bodies,Enable Trust,1702.97, 30-Jul-2021
1689,Revenue,CAHD,Special ISB,Other Public Bodies,Enable Trust,1702.97, 30-Jul-2021
1690,Revenue,CAHD,Special ISB,Other Public Bodies,Enable Trust,2513.88, 30-Jul-2021
1691,Revenue,CAHD,Special ISB,Other Public Bodies,Enable Trust,2189.53, 30-Jul-2021
1692,Revenue,CAHD,Special ISB,Other Public Bodies,Enable Trust,1702.97, 30-Jul-2021
1693,Revenue,CAHD,Special ISB,Other Public Bodies,Enable Trust,1702.97, 30-Jul-2021
1694,Revenue,CAHD,Special ISB,Other Public Bodies,Enable Trust,1175.88, 30-Jul-2021
1695,Revenue,CAHD,Special ISB,Other Public Bodies,Enable Trust,1702.97, 30-Jul-2021
1696,Revenue,CAHD,Special ISB,Other Public Bodies,Enable Trust,2513.88, 30-Jul-2021
1697,Revenue,CAHD,Special ISB,Other Public Bodies,Enable Trust,2513.88, 30-Jul-2021
1698,Revenue,CAHD,Special ISB,Other Public Bodies,Enable Trust,1313.73, 30-Jul-2021
1699,Revenue,CAHD,Special ISB,Other Public Bodies,Enable Trust,1175.88, 30-Jul-2021
1700,Revenue,CAHD,Special ISB,Other Public Bodies,Enable Trust,2189.53, 30-Jul-2021
1701,Revenue,CAHD,Special ISB,Other Public Bodies,Enable Trust,1175.88, 30-Jul-2021
1702,Revenue,CAHD,Special ISB,Other Public Bodies,Enable Trust,1540.84, 30-Jul-2021
1703,Revenue,CAHD,Special ISB,Other Public Bodies,Enable Trust,1702.97, 30-Jul-2021
1704,Revenue,CAHD,Special ISB,Other Public Bodies,Enable Trust,1702.97, 30-Jul-2021
1705,Revenue,CAHD,Special ISB,Other Public Bodies,Enable Trust,2189.53, 30-Jul-2021
1706,Revenue,CAHD,Special ISB,Other Public Bodies,Enable Trust,1175.88, 30-Jul-2021
1707,Revenue,CAHD,Schools Specific Grant Income,Other Public Bodies,Endeavour Academy Trust,630.00, 13-Jul-2021
1708,Revenue,CAHD,CSC - Agency Fostering,Foster Parent Allowances,Enhanced Foster Care Limited,4683.00, 15-Jul-2021
1709,Revenue,CAHD,CSC - Agency Fostering,Foster Parent Allowances,Enhanced Foster Care Limited,4683.00, 15-Jul-2021
1710,Revenue,CAHD,North - Community based support,Other Small Contracts,Epiphany In Care,4209.92, 05-Jul-2021
1711,Revenue,CAHD,North - Community based support,Other Small Contracts,Epiphany In Care,4209.92, 05-Jul-2021
1712,Revenue,CAHD,North - Community based support,Other Small Contracts,Epiphany In Care,9808.32, 23-Jul-2021
1713,Revenue,CAHD,Central - Commissioned Services,Other Small Contracts,Epiphany In Care,1214.40, 20-Jul-2021
1714,Revenue,CAHD,CSC - Residential Placements,Permanent Residential,Esland North Ltd,18128.57, 05-Jul-2021
1715,Revenue,CAHD,CSC - Residential Placements,Permanent Residential,Esland North Ltd,36257.14, 05-Jul-2021
1716,Revenue,CAHD,North - S117,Permanent Residential,Evolve House,6553.60, 27-Jul-2021
1717,Revenue,CAHD,Schools Specific Grant Income,Other Public Bodies,Excalibur Academies Trust T/A,630.00, 13-Jul-2021
1718,Revenue,CAHD,Placements OLA Special Schools and RB,Other L.A.s - General,Excalibur Academies Trust T/A,2238.77, 27-Jul-2021
1719,Revenue,CAHD,Social Lettings Agency,Prop.Serv. General Repairs,Express Property Services Limited,39.00, 12-Jul-2021
1720,Revenue,CAHD,Social Lettings Agency,Prop.Serv. General Repairs,Express Property Services Limited,211.00, 12-Jul-2021
1721,Revenue,CAHD,Social Lettings Agency,Prop.Serv. General Repairs,Express Property Services Limited,1730.00, 12-Jul-2021
1722,Revenue,CAHD,Social Lettings Agency,Prop.Serv. General Repairs,Express Property Services Limited,343.70, 12-Jul-2021
1723,Revenue,CAHD,Social Lettings Agency,Prop.Serv. General Repairs,Express Property Services Limited,200.00, 12-Jul-2021
1724,Revenue,CAHD,Social Lettings Agency,Prop.Serv. General Repairs,Express Property Services Limited,103.00, 12-Jul-2021
1725,Revenue,CAHD,Social Lettings Agency,Prop.Serv. General Repairs,Express Property Services Limited,71.50, 12-Jul-2021
1726,Revenue,CAHD,Social Lettings Agency,Prop.Serv. General Repairs,Express Property Services Limited,83.00, 12-Jul-2021
1727,Revenue,CAHD,Social Lettings Agency,Prop.Serv. General Repairs,Express Property Services Limited,795.00, 12-Jul-2021
1728,Revenue,CAHD,Social Lettings Agency,Prop.Serv. General Repairs,Express Property Services Limited,263.00, 12-Jul-2021
1729,Revenue,CAHD,Social Lettings Agency,Prop.Serv. General Repairs,Express Property Services Limited,53.00, 12-Jul-2021
1730,Revenue,CAHD,Social Lettings Agency,Prop.Serv. General Repairs,Express Property Services Limited,210.00, 12-Jul-2021
1731,Revenue,CAHD,Social Lettings Agency,Prop.Serv. General Repairs,Express Property Services Limited,7.00, 12-Jul-2021
1732,Revenue,CAHD,Homeless - Private Sector Leasing,Prop.Serv. General Repairs,Express Property Services Limited,49.00, 12-Jul-2021
1733,Revenue,CAHD,Homeless - Private Sector Leasing,Prop.Serv. General Repairs,Express Property Services Limited,150.00, 12-Jul-2021
1734,Revenue,CAHD,Homeless - Private Sector Leasing,Prop.Serv. General Repairs,Express Property Services Limited,68.00, 12-Jul-2021
1735,Revenue,CAHD,Extra Care Housing,Private & Voluntary Home Care,Extra Care Charitable Trust,27505.67, 12-Jul-2021
1736,Revenue,CAHD,Covid - ASC - Infection Control,Grants to Voluntary Bodies,Extra Care Charitable Trust,2421.78, 07-Jul-2021
1737,Revenue,CAHD,ASC Rapid Testing Fund,Grants to Voluntary Bodies,Extra Care Charitable Trust,2623.67, 07-Jul-2021
1738,Revenue,CAHD,North - Community based support,Permanent Residential,Eyre Court,5400.00, 27-Jul-2021
1739,Revenue,CAHD,North - Community based support,Permanent Residential,Eyre Court,5430.00, 27-Jul-2021
1740,Revenue,CAHD,Covid - ASC - Infection Control,Grants to Voluntary Bodies,Eyre Court,1313.95, 07-Jul-2021
1741,Revenue,CAHD,ASC Rapid Testing Fund,Grants to Voluntary Bodies,Eyre Court,1423.49, 07-Jul-2021
1742,Revenue,CAHD,South - Commissioned Services,Permanent Nursing,Fairview Court,3976.16, 27-Jul-2021
1743,Revenue,CAHD,South Glos Users in South Glos Homes,Permanent Nursing,Fairview Court,750.40, 27-Jul-2021
1744,Revenue,CAHD,South Glos Users in South Glos Homes,Permanent Nursing,Fairview Court,750.40, 27-Jul-2021
1745,Revenue,CAHD,South Glos Users in South Glos Homes,Permanent Nursing,Fairview Court,750.40, 27-Jul-2021
1746,Revenue,CAHD,Central - Commissioned Services,Permanent Nursing,Fairview Court,4800.00, 27-Jul-2021
1747,Revenue,CAHD,South Glos Users in South Glos Homes,Permanent Nursing,Fairview Court,750.40, 27-Jul-2021
1748,Revenue,CAHD,South Glos Users in South Glos Homes,Permanent Nursing,Fairview Court,750.40, 27-Jul-2021
1749,Revenue,CAHD,South - S117,Permanent Nursing,Fairview Court,4355.24, 27-Jul-2021
1750,Revenue,CAHD,South Glos Users in South Glos Homes,Permanent Nursing,Fairview Court,750.40, 27-Jul-2021
1751,Revenue,CAHD,South - Commissioned Services,Permanent Nursing,Fairview Court,4078.24, 27-Jul-2021
1752,Revenue,CAHD,South Glos Users in South Glos Homes,Permanent Nursing,Fairview Court,750.40, 27-Jul-2021
1753,Revenue,CAHD,South - Commissioned Services,Permanent Nursing,Fairview Court,7714.29, 27-Jul-2021
1754,Revenue,CAHD,South - Commissioned Services,Permanent Nursing,Fairview Court,4800.00, 27-Jul-2021
1755,Revenue,CAHD,South Glos Users in South Glos Homes,Permanent Nursing,Fairview Court,750.40, 27-Jul-2021
1756,Revenue,CAHD,South - Commissioned Services,Permanent Nursing,Fairview Court,4800.00, 27-Jul-2021
1757,Revenue,CAHD,South Glos Users in South Glos Homes,Permanent Nursing,Fairview Court,750.40, 27-Jul-2021
1758,Revenue,CAHD,South Glos Users in South Glos Homes,Permanent Nursing,Fairview Court,750.40, 27-Jul-2021
1759,Revenue,CAHD,South Glos Users in South Glos Homes,Permanent Nursing,Fairview Court,750.40, 27-Jul-2021
1760,Revenue,CAHD,South - Commissioned Services,Permanent Residential,Fairview Court,4141.76, 27-Jul-2021
1761,Revenue,CAHD,South Glos Users in South Glos Homes,Permanent Nursing,Fairview Court,750.40, 27-Jul-2021
1762,Revenue,CAHD,South - Commissioned Services,Permanent Nursing,Fairview Court,4910.40, 27-Jul-2021
1763,Revenue,CAHD,South Glos Users in South Glos Homes,Permanent Nursing,Fairview Court,750.40, 27-Jul-2021
1764,Revenue,CAHD,South Glos Users in South Glos Homes,Permanent Nursing,Fairview Court,750.40, 27-Jul-2021
1765,Revenue,CAHD,Covid 19- Spend on behalf of NHS,Respite Planned - Nursing,Fairview Court,7310.14, 27-Jul-2021
1766,Revenue,CAHD,South - Commissioned Services,Permanent Nursing,Fairview Court,3887.40, 27-Jul-2021
1767,Revenue,CAHD,South Glos Users in South Glos Homes,Permanent Nursing,Fairview Court,750.40, 27-Jul-2021
1768,Revenue,CAHD,North - Community based support,Permanent Residential,Fairview Court,3397.84, 27-Jul-2021
1769,Revenue,CAHD,South - Commissioned Services,Permanent Nursing,Fairview Court,4232.92, 27-Jul-2021
1770,Revenue,CAHD,South Glos Users in South Glos Homes,Permanent Nursing,Fairview Court,750.40, 27-Jul-2021
1771,Revenue,CAHD,South Glos Users in South Glos Homes,Permanent Nursing,Fairview Court,750.40, 27-Jul-2021
1772,Revenue,CAHD,South Glos Users in South Glos Homes,Permanent Nursing,Fairview Court,2599.60, 27-Jul-2021
1773,Revenue,CAHD,South Glos Users in South Glos Homes,Permanent Nursing,Fairview Court,750.40, 27-Jul-2021
1774,Revenue,CAHD,South - Commissioned Services,Permanent Nursing,Fairview Court,4800.00, 27-Jul-2021
1775,Revenue,CAHD,South Glos Users in South Glos Homes,Permanent Nursing,Fairview Court,750.40, 27-Jul-2021
1776,Revenue,CAHD,South Glos Users in South Glos Homes,Permanent Nursing,Fairview Court,1688.40, 27-Jul-2021
1777,Revenue,CAHD,South Glos Users in South Glos Homes,Permanent Nursing,Fairview Court,750.40, 27-Jul-2021
1778,Revenue,CAHD,South Glos Users in South Glos Homes,Permanent Nursing,Fairview Court,1688.40, 27-Jul-2021
1779,Revenue,CAHD,South Glos Users in South Glos Homes,Permanent Nursing,Fairview Court,750.40, 27-Jul-2021
1780,Revenue,CAHD,South - Commissioned Services,Permanent Nursing,Fairview Court,5237.76, 27-Jul-2021
1781,Revenue,CAHD,South Glos Users in South Glos Homes,Permanent Nursing,Fairview Court,750.40, 27-Jul-2021
1782,Revenue,CAHD,South Glos Users in South Glos Homes,Permanent Nursing,Fairview Court,750.40, 27-Jul-2021
1783,Revenue,CAHD,South Glos Users in South Glos Homes,Permanent Nursing,Fairview Court,1661.60, 27-Jul-2021
1784,Revenue,CAHD,South Glos Users in South Glos Homes,Permanent Nursing,Fairview Court,750.40, 27-Jul-2021
1785,Revenue,CAHD,South Glos Users in South Glos Homes,Permanent Nursing,Fairview Court,2733.60, 27-Jul-2021
1786,Revenue,CAHD,South Glos Users in South Glos Homes,Permanent Nursing,Fairview Court,750.40, 27-Jul-2021
1787,Revenue,CAHD,South Glos Users in South Glos Homes,Permanent Nursing,Fairview Court,2733.60, 27-Jul-2021
1788,Revenue,CAHD,South Glos Users in South Glos Homes,Permanent Nursing,Fairview Court,750.40, 27-Jul-2021
1789,Revenue,CAHD,South - Commissioned Services,Permanent Nursing,Fairview Court,3635.08, 27-Jul-2021
1790,Revenue,CAHD,South Glos Users in South Glos Homes,Permanent Nursing,Fairview Court,750.40, 27-Jul-2021
1791,Revenue,CAHD,North - Community based support,Permanent Nursing,Fairview Court,8057.14, 27-Jul-2021
1792,Revenue,CAHD,North - Community based support,Permanent Nursing,Fairview Court,4800.00, 27-Jul-2021
1793,Revenue,CAHD,South - Commissioned Services,Permanent Nursing,Fairview Court,3701.96, 27-Jul-2021
1794,Revenue,CAHD,South Glos Users in South Glos Homes,Permanent Nursing,Fairview Court,750.40, 27-Jul-2021
1795,Revenue,CAHD,South - Commissioned Services,Permanent Nursing,Fairview Court,4232.92, 27-Jul-2021
1796,Revenue,CAHD,South Glos Users in South Glos Homes,Permanent Nursing,Fairview Court,750.40, 27-Jul-2021
1797,Revenue,CAHD,Covid - ASC - Infection Control,Grants to Voluntary Bodies,Fairview Court,8243.27, 30-Jul-2021
1798,Revenue,CAHD,Covid - ASC - Infection Control,Grants to Voluntary Bodies,Fairview Court,1262.42, 07-Jul-2021
1799,Revenue,CAHD,ASC Rapid Testing Fund,Grants to Voluntary Bodies,Fairview Court,8388.80, 30-Jul-2021
1800,Revenue,CAHD,ASC Rapid Testing Fund,Grants to Voluntary Bodies,Fairview Court,1367.66, 07-Jul-2021
1801,Revenue,CAHD,South - Commissioned Services,Permanent Residential,Fairview House,3800.00, 27-Jul-2021
1802,Revenue,CAHD,South - Commissioned Services,Permanent Residential,Fairview House,2403.64, 27-Jul-2021
1803,Revenue,CAHD,Central - Commissioned Services,Permanent Residential,Fairview House,11050.00, 27-Jul-2021
1804,Revenue,CAHD,Central - Commissioned Services,Permanent Residential,Fairview House,4007.14, 27-Jul-2021
1805,Revenue,CAHD,Central - Commissioned Services,Permanent Residential,Fairview House,3400.00, 27-Jul-2021
1806,Revenue,CAHD,South - Commissioned Services,Permanent Residential,Fairview House,3478.20, 27-Jul-2021
1807,Revenue,CAHD,North - Community based support,Permanent Residential,Fairview House,3800.00, 27-Jul-2021
1808,Revenue,CAHD,North - Community based support,Fees & Charges Income - General,Fairview House,5617.82, 27-Jul-2021
1809,Revenue,CAHD,North - Community based support,Fees & Charges Income - General,Fairview House,4136.20, 27-Jul-2021
1810,Revenue,CAHD,North - Community based support,Fees & Charges Income - General,Fairview House,1956.86, 27-Jul-2021
1811,Revenue,CAHD,North - Community based support,Fees & Charges Income - General,Fairview House,2020.11, 27-Jul-2021
1812,Revenue,CAHD,South - Commissioned Services,Permanent Residential,Fairview House,3600.00, 27-Jul-2021
